Workbook

Sheet Skriveni (hidden)
A1: VP | B1: AOP | C1: IZNOS01 | D1: IZNOS02 | E1: IZNOS03 | F1: IZNOS04 | G1: KONTRBR | H1: RAZLIKA | I1: RAZLIKA1 | J1: POLJE | K1: TEKST | L1: BROJ
A2: 151 | B2: =PRRAS!C12 -> 1 | C2: =PRRAS!D12 -> 11037394 | D2: =PRRAS!E12 -> 12004529 | G2: =(B2/1000)*(C2*1+D2*2) -> 35046.452 | H2: =ABS(C2-ROUND(C2,0))+ABS(D2-ROUND(D2,0)) -> 0 | I2: 0 | J2: VP151 | K2: =RefStr!B25 -> DA | L2: =IF(RefStr!B25="DA",1,0) -> 1
A3: 151 | B3: =PRRAS!C13 -> 2 | C3: =PRRAS!D13 -> 0 | D3: =PRRAS!E13 -> 0 | G3: =(B3/1000)*(C3*1+D3*2) -> 0 | H3: =ABS(C3-ROUND(C3,0))+ABS(D3-ROUND(D3,0)) -> 0 | I3: 0 | J3: VP153 | K3: =RefStr!B27 -> NE | L3: =IF(RefStr!B27="DA",1,0) -> 0
A4: 151 | B4: =PRRAS!C14 -> 3 | C4: =PRRAS!D14 -> 0 | D4: =PRRAS!E14 -> 0 | G4: =(B4/1000)*(C4*1+D4*2) -> 0 | H4: =ABS(C4-ROUND(C4,0))+ABS(D4-ROUND(D4,0)) -> 0 | I4: 0 | J4: VP154 | K4: =RefStr!B29 -> NE | L4: =IF(RefStr!B29="DA",1,0) -> 0
A5: 151 | B5: =PRRAS!C15 -> 4 | C5: =PRRAS!D15 -> 0 | D5: =PRRAS!E15 -> 0 | G5: =(B5/1000)*(C5*1+D5*2) -> 0 | H5: =ABS(C5-ROUND(C5,0))+ABS(D5-ROUND(D5,0)) -> 0 | I5: 0 | J5: VP156 | K5: =IF(RefStr!B31<>"",RefStr!B31, "NE") -> DA | L5: =IF(RefStr!B31="DA",1,0) -> 1
A6: 151 | B6: =PRRAS!C16 -> 5 | C6: =PRRAS!D16 -> 0 | D6: =PRRAS!E16 -> 0 | G6: 0 | H6: 0 | I6: 0 | J6: VP158 | K6: =RefStr!B33 -> DA | L6: =IF(RefStr!B33="DA",1,0) -> 1
A7: 151 | B7: =PRRAS!C17 -> 6 | C7: =PRRAS!D17 -> 0 | D7: =PRRAS!E17 -> 0 | G7: 0 | H7: 0 | I7: 0 | J7: VP159 | K7: =IF(A1756=159,RefStr!B35,"NE") -> NE | L7: 0
A8: 151 | B8: =PRRAS!C18 -> 7 | C8: =PRRAS!D18 -> 0 | D8: =PRRAS!E18 -> 0 | G8: 0 | H8: 0 | I8: 0 | J8: VP160 | K8: =IF(A1756=160,RefStr!B35,"NE") -> NE | L8: 0
A9: 151 | B9: =PRRAS!C19 -> 8 | C9: =PRRAS!D19 -> 0 | D9: =PRRAS!E19 -> 0 | G9: 0 | H9: 0 | I9: 0 | J9: VP161 | K9: =RefStr!B37 -> NE | L9: =IF(RefStr!B37="DA",1,0) -> 0
A10: 151 | B10: =PRRAS!C20 -> 9 | C10: =PRRAS!D20 -> 0 | D10: =PRRAS!E20 -> 0 | G10: 0 | H10: 0 | I10: 0 | J10: VP162 | K10: NE | L10: =IF(AND(RefStr!B35="DA",A1756=162),1,0) -> 0
A11: 151 | B11: =PRRAS!C21 -> 10 | C11: =PRRAS!D21 -> 0 | D11: =PRRAS!E21 -> 0 | G11: 0 | H11: 0 | I11: 0 | J11: VP163 | K11: NE | L11: =IF(AND(RefStr!B35="DA",A1756=163),1,0) -> 0
A12: 151 | B12: =PRRAS!C22 -> 11 | C12: =PRRAS!D22 -> 0 | D12: =PRRAS!E22 -> 0 | G12: 0 | H12: 0 | I12: 0 | J12: RAZDOBLJE | K12: =TRIM(RefStr!F6) -> 2014-12 | L12: =IF(RefStr!F6<>0,100*INT(VALUE(MID(RefStr!F6,1,4)))+INT(VALUE(MID(RefStr!F6,6,2))), 0) -> 201412
A13: 151 | B13: =PRRAS!C23 -> 12 | C13: =PRRAS!D23 -> 0 | D13: =PRRAS!E23 -> 0 | G13: 0 | H13: 0 | I13: 0 | J13: DATUMOD | K13: =TEXT(RefStr!K10,"YYYYMMDD") -> 20140101 | L13: =YEAR(RefStr!K10)*10000+MONTH(RefStr!K10)*100+DAY(RefStr!K10) -> 20140101
A14: 151 | B14: =PRRAS!C24 -> 13 | C14: =PRRAS!D24 -> 0 | D14: =PRRAS!E24 -> 0 | G14: 0 | H14: 0 | I14: 0 | J14: DATUMDO | K14: =TEXT(RefStr!K12,"YYYYMMDD") -> 20141231 | L14: =YEAR(RefStr!K12)*10000+MONTH(RefStr!K12)*100+DAY(RefStr!K12) -> 20141231
A15: 151 | B15: =PRRAS!C25 -> 14 | C15: =PRRAS!D25 -> 0 | D15: =PRRAS!E25 -> 0 | G15: 0 | H15: 0 | I15: 0 | J15: RKP | K15: =TEXT(RefStr!B6,"00000") -> 14402 | L15: =INT(VALUE(RefStr!B6)) -> 14402
A16: 151 | B16: =PRRAS!C26 -> 15 | C16: =PRRAS!D26 -> 0 | D16: =PRRAS!E26 -> 0 | G16: 0 | H16: 0 | I16: 0 | J16: MATBROJ | K16: =TEXT(RefStr!B8,"00000000") -> 03324281 | L16: =INT(VALUE(RefStr!B8)) -> 3324281
A17: 151 | B17: =PRRAS!C27 -> 16 | C17: =PRRAS!D27 -> 0 | D17: =PRRAS!E27 -> 0 | G17: 0 | H17: 0 | I17: 0 | J17: NAZIV | K17: =TRIM(RefStr!B10) -> OŠ VUGROVEC - KAŠINA | L17: =LEN(Skriveni!K17) -> 20
A18: 151 | B18: =PRRAS!C28 -> 17 | C18: =PRRAS!D28 -> 0 | D18: =PRRAS!E28 -> 0 | G18: 0 | H18: 0 | I18: 0 | J18: POSTA | K18: =TEXT(RefStr!B12,"00000") -> 10362 | L18: =INT(VALUE(RefStr!B12)) -> 10362
A19: 151 | B19: =PRRAS!C29 -> 18 | C19: =PRRAS!D29 -> 0 | D19: =PRRAS!E29 -> 0 | G19: 0 | H19: 0 | I19: 0 | J19: MJESTO | K19: =TRIM(RefStr!C12) -> KAŠINA | L19: =LEN(Skriveni!K19) -> 6
A20: 151 | B20: =PRRAS!C30 -> 19 | C20: =PRRAS!D30 -> 0 | D20: =PRRAS!E30 -> 0 | G20: 0 | H20: 0 | I20: 0 | J20: ADRESA | K20: =TRIM(RefStr!B14) -> IVANA MAŽURANIĆA 43 | L20: =LEN(Skriveni!K20) -> 19
A21: 151 | B21: =PRRAS!C31 -> 20 | C21: =PRRAS!D31 -> 0 | D21: =PRRAS!E31 -> 0 | G21: 0 | H21: 0 | I21: 0 | J21: RAZINA | K21: =TEXT(RefStr!B16,"00") -> 31 | L21: =INT(VALUE(RefStr!B16)) -> 31
A22: 151 | B22: =PRRAS!C32 -> 21 | C22: =PRRAS!D32 -> 0 | D22: =PRRAS!E32 -> 0 | G22: 0 | H22: 0 | I22: 0 | J22: DJELAT | K22: =TEXT(RefStr!B18,"0000") -> 8520 | L22: =INT(VALUE(RefStr!B18)) -> 8520
A23: 151 | B23: =PRRAS!C33 -> 22 | C23: =PRRAS!D33 -> 0 | D23: =PRRAS!E33 -> 0 | G23: 0 | H23: 0 | I23: 0 | J23: RAZDJEL | K23: =TEXT(RefStr!B20,"000") -> 000 | L23: =INT(VALUE(RefStr!B20)) -> 0
A24: 151 | B24: =PRRAS!C34 -> 23 | C24: =PRRAS!D34 -> 0 | D24: =PRRAS!E34 -> 0 | G24: 0 | H24: 0 | I24: 0 | J24: OPCINA | K24: =TEXT(RefStr!B22,"000") -> 133 | L24: =INT(VALUE(RefStr!B22)) -> 133
A25: 151 | B25: =PRRAS!C35 -> 24 | C25: =PRRAS!D35 -> 0 | D25: =PRRAS!E35 -> 0 | G25: 0 | H25: 0 | I25: 0 | J25: ZUPANIJA | K25: =IF(ISNUMBER(RefStr!N22), TEXT(RefStr!N22, "00"),"00") -> 21 | L25: =IF(ISERROR(RefStr!N22),0,INT(VALUE(RefStr!N22))) -> 21
A26: 151 | B26: =PRRAS!C36 -> 25 | C26: =PRRAS!D36 -> 0 | D26: =PRRAS!E36 -> 0 | G26: 0 | H26: 0 | I26: 0 | J26: OIB | K26: =TEXT(RefStr!K14, "00000000000") -> 43748649227 | L26: =INT(VALUE(RefStr!K14)) -> 43748649227
A27: 151 | B27: =PRRAS!C37 -> 26 | C27: =PRRAS!D37 -> 0 | D27: =PRRAS!E37 -> 0 | G27: 0 | H27: 0 | I27: 0 | J27: KONTAKT | K27: =TRIM(RefStr!H25) -> NADA MILEC | L27: =LEN(RefStr!H25) -> 10
A28: 151 | B28: =PRRAS!C38 -> 27 | C28: =PRRAS!D38 -> 0 | D28: =PRRAS!E38 -> 0 | G28: 0 | H28: 0 | I28: 0 | J28: TEL | K28: =TRIM(RefStr!H27) -> 012059256 | L28: =LEN(RefStr!H27) -> 9
A29: 151 | B29: =PRRAS!C39 -> 28 | C29: =PRRAS!D39 -> 0 | D29: =PRRAS!E39 -> 0 | G29: 0 | H29: 0 | I29: 0 | J29: FAX | K29: =TRIM(RefStr!K27) -> 012056837 | L29: =LEN(RefStr!K27) -> 9
A30: 151 | B30: =PRRAS!C40 -> 29 | C30: =PRRAS!D40 -> 0 | D30: =PRRAS!E40 -> 0 | G30: 0 | H30: 0 | I30: 0 | J30: E_POSTA | K30: =TRIM(RefStr!H29) -> nadamilec1@gmail.com | L30: =LEN(RefStr!H29) -> 20
A31: 151 | B31: =PRRAS!C41 -> 30 | C31: =PRRAS!D41 -> 0 | D31: =PRRAS!E41 -> 0 | G31: 0 | H31: 0 | I31: 0 | J31: E_POSTAOBV | K31: =TRIM(RefStr!H31) -> ured@os-vugrovec-kasina.skole.hr | L31: =LEN(RefStr!H31) -> 32
A32: 151 | B32: =PRRAS!C42 -> 31 | C32: =PRRAS!D42 -> 0 | D32: =PRRAS!E42 -> 0 | G32: 0 | H32: 0 | I32: 0 | J32: ZAK_PREDST | K32: =TRIM(RefStr!H33) -> VLADIMIR VUGER | L32: =LEN(RefStr!H33) -> 14
A33: 151 | B33: =PRRAS!C43 -> 32 | C33: =PRRAS!D43 -> 0 | D33: =PRRAS!E43 -> 0 | G33: 0 | H33: 0 | I33: 0 | J33: KONTBR | K33: =SUM(G2:G1975) -> 245300595.8 | L33: =SUM(G2:G1975) -> 245300595.8
A34: 151 | B34: =PRRAS!C44 -> 33 | C34: =PRRAS!D44 -> 0 | D34: =PRRAS!E44 -> 0 | G34: 0 | H34: 0 | I34: 0 | J34: RAZLIKA | K34: =IF(SUM(H2:H1922)<>0,"LIPE","NULA") -> NULA | L34: =SUM(H2:H1922) -> 0
A35: 151 | B35: =PRRAS!C45 -> 34 | C35: =PRRAS!D45 -> 0 | D35: =PRRAS!E45 -> 0 | G35: 0 | H35: 0 | I35: 0 | J35: BRKONT | K35: =TEXT(Kont!E2, "000") -> 000 | L35: =IF(ISERROR(Kont!E2),1,Kont!E2) -> 0
A36: 151 | B36: =PRRAS!C46 -> 35 | C36: =PRRAS!D46 -> 0 | D36: =PRRAS!E46 -> 0 | G36: 0 | H36: 0 | I36: 0 | J36: VER | K36: 306 | L36: 306
A37: 151 | B37: =PRRAS!C47 -> 36 | C37: =PRRAS!D47 -> 0 | D37: =PRRAS!E47 -> 0 | G37: 0 | H37: 0 | I37: 0
A38: 151 | B38: =PRRAS!C48 -> 37 | C38: =PRRAS!D48 -> 0 | D38: =PRRAS!E48 -> 0 | G38: 0 | H38: 0 | I38: 0
A39: 151 | B39: =PRRAS!C49 -> 38 | C39: =PRRAS!D49 -> 0 | D39: =PRRAS!E49 -> 0 | G39: 0 | H39: 0 | I39: 0
A40: 151 | B40: =PRRAS!C50 -> 39 | C40: =PRRAS!D50 -> 0 | D40: =PRRAS!E50 -> 0 | G40: 0 | H40: 0 | I40: 0
A41: 151 | B41: =PRRAS!C51 -> 40 | C41: =PRRAS!D51 -> 0 | D41: =PRRAS!E51 -> 0 | G41: 0 | H41: 0 | I41: 0
A42: 151 | B42: =PRRAS!C52 -> 41 | C42: =PRRAS!D52 -> 0 | D42: =PRRAS!E52 -> 0 | G42: 0 | H42: 0 | I42: 0
A43: 151 | B43: =PRRAS!C53 -> 42 | C43: =PRRAS!D53 -> 0 | D43: =PRRAS!E53 -> 0 | G43: 0 | H43: 0 | I43: 0
A44: 151 | B44: =PRRAS!C54 -> 43 | C44: =PRRAS!D54 -> 0 | D44: =PRRAS!E54 -> 0 | G44: 0 | H44: 0 | I44: 0
A45: 151 | B45: =PRRAS!C55 -> 44 | C45: =PRRAS!D55 -> 0 | D45: =PRRAS!E55 -> 0 | G45: 0 | H45: 0 | I45: 0
A46: 151 | B46: =PRRAS!C56 -> 45 | C46: =PRRAS!D56 -> 0 | D46: =PRRAS!E56 -> 0 | G46: 0 | H46: 0 | I46: 0
A47: 151 | B47: =PRRAS!C57 -> 46 | C47: =PRRAS!D57 -> 0 | D47: =PRRAS!E57 -> 0 | G47: 0 | H47: 0 | I47: 0
A48: 151 | B48: =PRRAS!C58 -> 47 | C48: =PRRAS!D58 -> 0 | D48: =PRRAS!E58 -> 0 | G48: 0 | H48: 0 | I48: 0
A49: 151 | B49: =PRRAS!C59 -> 48 | C49: =PRRAS!D59 -> 0 | D49: =PRRAS!E59 -> 0 | G49: 0 | H49: 0 | I49: 0
A50: 151 | B50: =PRRAS!C60 -> 49 | C50: =PRRAS!D60 -> 0 | D50: =PRRAS!E60 -> 0 | G50: 0 | H50: 0 | I50: 0
A51: 151 | B51: =PRRAS!C61 -> 50 | C51: =PRRAS!D61 -> 0 | D51: =PRRAS!E61 -> 0 | G51: 0 | H51: 0 | I51: 0
A52: 151 | B52: =PRRAS!C62 -> 51 | C52: =PRRAS!D62 -> 0 | D52: =PRRAS!E62 -> 0 | G52: 0 | H52: 0 | I52: 0
A53: 151 | B53: =PRRAS!C63 -> 52 | C53: =PRRAS!D63 -> 0 | D53: =PRRAS!E63 -> 0 | G53: 0 | H53: 0 | I53: 0
A54: 151 | B54: =PRRAS!C64 -> 53 | C54: =PRRAS!D64 -> 0 | D54: =PRRAS!E64 -> 0 | G54: 0 | H54: 0 | I54: 0
A55: 151 | B55: =PRRAS!C65 -> 54 | C55: =PRRAS!D65 -> 0 | D55: =PRRAS!E65 -> 0 | G55: 0 | H55: 0 | I55: 0
A56: 151 | B56: =PRRAS!C66 -> 55 | C56: =PRRAS!D66 -> 0 | D56: =PRRAS!E66 -> 0 | G56: 0 | H56: 0 | I56: 0
A57: 151 | B57: =PRRAS!C67 -> 56 | C57: =PRRAS!D67 -> 0 | D57: =PRRAS!E67 -> 0 | G57: 0 | H57: 0 | I57: 0
A58: 151 | B58: =PRRAS!C68 -> 57 | C58: =PRRAS!D68 -> 0 | D58: =PRRAS!E68 -> 0 | G58: 0 | H58: 0 | I58: 0
A59: 151 | B59: =PRRAS!C69 -> 58 | C59: =PRRAS!D69 -> 0 | D59: =PRRAS!E69 -> 0 | G59: 0 | H59: 0 | I59: 0
A60: 151 | B60: =PRRAS!C70 -> 59 | C60: =PRRAS!D70 -> 0 | D60: =PRRAS!E70 -> 0 | G60: 0 | H60: 0 | I60: 0
A61: 151 | B61: =PRRAS!C71 -> 60 | C61: =PRRAS!D71 -> 0 | D61: =PRRAS!E71 -> 0 | G61: 0 | H61: 0 | I61: 0
A62: 151 | B62: =PRRAS!C72 -> 61 | C62: =PRRAS!D72 -> 0 | D62: =PRRAS!E72 -> 0 | G62: 0 | H62: 0 | I62: 0
A63: 151 | B63: =PRRAS!C73 -> 62 | C63: =PRRAS!D73 -> 0 | D63: =PRRAS!E73 -> 0 | G63: 0 | H63: 0 | I63: 0
A64: 151 | B64: =PRRAS!C74 -> 63 | C64: =PRRAS!D74 -> 0 | D64: =PRRAS!E74 -> 0 | G64: 0 | H64: 0 | I64: 0
A65: 151 | B65: =PRRAS!C75 -> 64 | C65: =PRRAS!D75 -> 0 | D65: =PRRAS!E75 -> 0 | G65: 0 | H65: 0 | I65: 0
A66: 151 | B66: =PRRAS!C76 -> 65 | C66: =PRRAS!D76 -> 0 | D66: =PRRAS!E76 -> 0 | G66: 0 | H66: 0 | I66: 0
A67: 151 | B67: =PRRAS!C77 -> 66 | C67: =PRRAS!D77 -> 0 | D67: =PRRAS!E77 -> 0 | G67: 0 | H67: 0 | I67: 0
A68: 151 | B68: =PRRAS!C78 -> 67 | C68: =PRRAS!D78 -> 491 | D68: =PRRAS!E78 -> 276 | G68: 69.881 | H68: 0 | I68: 0
A69: 151 | B69: =PRRAS!C79 -> 68 | C69: =PRRAS!D79 -> 491 | D69: =PRRAS!E79 -> 276 | G69: =(B69/1000)*(C69*1+D69*2) -> 70.924 | H69: =ABS(C69-ROUND(C69,0))+ABS(D69-ROUND(D69,0)) -> 0 | I69: 0
A70: 151 | B70: =PRRAS!C80 -> 69 | C70: =PRRAS!D80 -> 0 | D70: =PRRAS!E80 -> 0 | G70: 0 | H70: 0 | I70: 0
A71: 151 | B71: =PRRAS!C81 -> 70 | C71: =PRRAS!D81 -> 491 | D71: =PRRAS!E81 -> 276 | G71: 73.01 | H71: 0 | I71: 0
A72: 151 | B72: =PRRAS!C82 -> 71 | C72: =PRRAS!D82 -> 0 | D72: =PRRAS!E82 -> 0 | G72: 0 | H72: 0 | I72: 0
A73: 151 | B73: =PRRAS!C83 -> 72 | C73: =PRRAS!D83 -> 0 | D73: =PRRAS!E83 -> 0 | G73: 0 | H73: 0 | I73: 0
A74: 151 | B74: =PRRAS!C84 -> 73 | C74: =PRRAS!D84 -> 0 | D74: =PRRAS!E84 -> 0 | G74: 0 | H74: 0 | I74: 0
A75: 151 | B75: =PRRAS!C85 -> 74 | C75: =PRRAS!D85 -> 0 | D75: =PRRAS!E85 -> 0 | G75: 0 | H75: 0 | I75: 0
A76: 151 | B76: =PRRAS!C86 -> 75 | C76: =PRRAS!D86 -> 0 | D76: =PRRAS!E86 -> 0 | G76: 0 | H76: 0 | I76: 0
A77: 151 | B77: =PRRAS!C87 -> 76 | C77: =PRRAS!D87 -> 0 | D77: =PRRAS!E87 -> 0 | G77: 0 | H77: 0 | I77: 0
A78: 151 | B78: =PRRAS!C88 -> 77 | C78: =PRRAS!D88 -> 0 | D78: =PRRAS!E88 -> 0 | G78: 0 | H78: 0 | I78: 0
A79: 151 | B79: =PRRAS!C89 -> 78 | C79: =PRRAS!D89 -> 0 | D79: =PRRAS!E89 -> 0 | G79: 0 | H79: 0 | I79: 0
A80: 151 | B80: =PRRAS!C90 -> 79 | C80: =PRRAS!D90 -> 0 | D80: =PRRAS!E90 -> 0 | G80: 0 | H80: 0 | I80: 0
A81: 151 | B81: =PRRAS!C91 -> 80 | C81: =PRRAS!D91 -> 0 | D81: =PRRAS!E91 -> 0 | G81: 0 | H81: 0 | I81: 0
A82: 151 | B82: =PRRAS!C92 -> 81 | C82: =PRRAS!D92 -> 0 | D82: =PRRAS!E92 -> 0 | G82: 0 | H82: 0 | I82: 0
A83: 151 | B83: =PRRAS!C93 -> 82 | C83: =PRRAS!D93 -> 0 | D83: =PRRAS!E93 -> 0 | G83: 0 | H83: 0 | I83: 0
A84: 151 | B84: =PRRAS!C94 -> 83 | C84: =PRRAS!D94 -> 0 | D84: =PRRAS!E94 -> 0 | G84: 0 | H84: 0 | I84: 0
A85: 151 | B85: =PRRAS!C95 -> 84 | C85: =PRRAS!D95 -> 0 | D85: =PRRAS!E95 -> 0 | G85: 0 | H85: 0 | I85: 0
A86: 151 | B86: =PRRAS!C96 -> 85 | C86: =PRRAS!D96 -> 0 | D86: =PRRAS!E96 -> 0 | G86: 0 | H86: 0 | I86: 0
A87: 151 | B87: =PRRAS!C97 -> 86 | C87: =PRRAS!D97 -> 0 | D87: =PRRAS!E97 -> 0 | G87: 0 | H87: 0 | I87: 0
A88: 151 | B88: =PRRAS!C98 -> 87 | C88: =PRRAS!D98 -> 0 | D88: =PRRAS!E98 -> 0 | G88: 0 | H88: 0 | I88: 0
A89: 151 | B89: =PRRAS!C99 -> 88 | C89: =PRRAS!D99 -> 0 | D89: =PRRAS!E99 -> 0 | G89: 0 | H89: 0 | I89: 0
A90: 151 | B90: =PRRAS!C100 -> 89 | C90: =PRRAS!D100 -> 0 | D90: =PRRAS!E100 -> 0 | G90: 0 | H90: 0 | I90: 0
A91: 151 | B91: =PRRAS!C101 -> 90 | C91: =PRRAS!D101 -> 626906 | D91: =PRRAS!E101 -> 626425 | G91: 169178.04 | H91: 0 | I91: 0
A92: 151 | B92: =PRRAS!C102 -> 91 | C92: =PRRAS!D102 -> 0 | D92: =PRRAS!E102 -> 0 | G92: 0 | H92: 0 | I92: 0
A93: 151 | B93: =PRRAS!C103 -> 92 | C93: =PRRAS!D103 -> 0 | D93: =PRRAS!E103 -> 0 | G93: 0 | H93: 0 | I93: 0
A94: 151 | B94: =PRRAS!C104 -> 93 | C94: =PRRAS!D104 -> 0 | D94: =PRRAS!E104 -> 0 | G94: 0 | H94: 0 | I94: 0
A95: 151 | B95: =PRRAS!C105 -> 94 | C95: =PRRAS!D105 -> 0 | D95: =PRRAS!E105 -> 0 | G95: 0 | H95: 0 | I95: 0
A96: 151 | B96: =PRRAS!C106 -> 95 | C96: =PRRAS!D106 -> 0 | D96: =PRRAS!E106 -> 0 | G96: 0 | H96: 0 | I96: 0
A97: 151 | B97: =PRRAS!C107 -> 96 | C97: =PRRAS!D107 -> 626906 | D97: =PRRAS!E107 -> 626425 | G97: 180456.576 | H97: 0 | I97: 0
A98: 151 | B98: =PRRAS!C108 -> 97 | C98: =PRRAS!D108 -> 0 | D98: =PRRAS!E108 -> 0 | G98: 0 | H98: 0 | I98: 0
A99: 151 | B99: =PRRAS!C109 -> 98 | C99: =PRRAS!D109 -> 0 | D99: =PRRAS!E109 -> 0 | G99: 0 | H99: 0 | I99: 0
A100: 151 | B100: =PRRAS!C110 -> 99 | C100: =PRRAS!D110 -> 0 | D100: =PRRAS!E110 -> 0 | G100: 0 | H100: 0 | I100: 0
A101: 151 | B101: =PRRAS!C111 -> 100 | C101: =PRRAS!D111 -> 0 | D101: =PRRAS!E111 -> 0 | G101: 0 | H101: 0 | I101: 0
A102: 151 | B102: =PRRAS!C112 -> 101 | C102: =PRRAS!D112 -> 626906 | D102: =PRRAS!E112 -> 626425 | G102: 189855.356 | H102: 0 | I102: 0
A103: 151 | B103: =PRRAS!C113 -> 102 | C103: =PRRAS!D113 -> 0 | D103: =PRRAS!E113 -> 0 | G103: 0 | H103: 0 | I103: 0
A104: 151 | B104: =PRRAS!C114 -> 103 | C104: =PRRAS!D114 -> 0 | D104: =PRRAS!E114 -> 0 | G104: 0 | H104: 0 | I104: 0
A105: 151 | B105: =PRRAS!C115 -> 104 | C105: =PRRAS!D115 -> 0 | D105: =PRRAS!E115 -> 0 | G105: 0 | H105: 0 | I105: 0
A106: 151 | B106: =PRRAS!C116 -> 105 | C106: =PRRAS!D116 -> 0 | D106: =PRRAS!E116 -> 0 | G106: 0 | H106: 0 | I106: 0
A107: 151 | B107: =PRRAS!C117 -> 106 | C107: =PRRAS!D117 -> 0 | D107: =PRRAS!E117 -> 0 | G107: 0 | H107: 0 | I107: 0
A108: 151 | B108: =PRRAS!C118 -> 107 | C108: =PRRAS!D118 -> 62057 | D108: =PRRAS!E118 -> 42207 | G108: 15672.397 | H108: 0 | I108: 0
A109: 151 | B109: =PRRAS!C119 -> 108 | C109: =PRRAS!D119 -> 62057 | D109: =PRRAS!E119 -> 42207 | G109: 15818.868 | H109: 0 | I109: 0
A110: 151 | B110: =PRRAS!C120 -> 109 | C110: =PRRAS!D120 -> 0 | D110: =PRRAS!E120 -> 0 | G110: 0 | H110: 0 | I110: 0
A111: 151 | B111: =PRRAS!C121 -> 110 | C111: =PRRAS!D121 -> 62057 | D111: =PRRAS!E121 -> 42207 | G111: 16111.81 | H111: 0 | I111: 0
A112: 151 | B112: =PRRAS!C122 -> 111 | C112: =PRRAS!D122 -> 0 | D112: =PRRAS!E122 -> 0 | G112: 0 | H112: 0 | I112: 0
A113: 151 | B113: =PRRAS!C123 -> 112 | C113: =PRRAS!D123 -> 0 | D113: =PRRAS!E123 -> 0 | G113: 0 | H113: 0 | I113: 0
A114: 151 | B114: =PRRAS!C124 -> 113 | C114: =PRRAS!D124 -> 0 | D114: =PRRAS!E124 -> 0 | G114: 0 | H114: 0 | I114: 0
A115: 151 | B115: =PRRAS!C125 -> 114 | C115: =PRRAS!D125 -> 10342492 | D115: =PRRAS!E125 -> 11308266 | G115: 3757328.736 | H115: 0 | I115: 0
A116: 151 | B116: =PRRAS!C126 -> 115 | C116: =PRRAS!D126 -> 10342492 | D116: =PRRAS!E126 -> 11308266 | G116: 3790287.76 | H116: 0 | I116: 0
A117: 151 | B117: =PRRAS!C127 -> 116 | C117: =PRRAS!D127 -> 10258407 | D117: =PRRAS!E127 -> 11081580 | G117: 3760901.772 | H117: 0 | I117: 0
A118: 151 | B118: =PRRAS!C128 -> 117 | C118: =PRRAS!D128 -> 84085 | D118: =PRRAS!E128 -> 226686 | G118: 62882.469 | H118: 0 | I118: 0
A119: 151 | B119: =PRRAS!C129 -> 118 | C119: =PRRAS!D129 -> 0 | D119: =PRRAS!E129 -> 0 | G119: 0 | H119: 0 | I119: 0
A120: 151 | B120: =PRRAS!C130 -> 119 | C120: =PRRAS!D130 -> 5448 | D120: =PRRAS!E130 -> 27355 | G120: 7158.802 | H120: 0 | I120: 0
A121: 151 | B121: =PRRAS!C131 -> 120 | C121: =PRRAS!D131 -> 0 | D121: =PRRAS!E131 -> 0 | G121: 0 | H121: 0 | I121: 0
A122: 151 | B122: =PRRAS!C132 -> 121 | C122: =PRRAS!D132 -> 0 | D122: =PRRAS!E132 -> 0 | G122: 0 | H122: 0 | I122: 0
A123: 151 | B123: =PRRAS!C133 -> 122 | C123: =PRRAS!D133 -> 0 | D123: =PRRAS!E133 -> 0 | G123: 0 | H123: 0 | I123: 0
A124: 151 | B124: =PRRAS!C134 -> 123 | C124: =PRRAS!D134 -> 0 | D124: =PRRAS!E134 -> 0 | G124: 0 | H124: 0 | I124: 0
A125: 151 | B125: =PRRAS!C135 -> 124 | C125: =PRRAS!D135 -> 0 | D125: =PRRAS!E135 -> 0 | G125: 0 | H125: 0 | I125: 0
A126: 151 | B126: =PRRAS!C136 -> 125 | C126: =PRRAS!D136 -> 0 | D126: =PRRAS!E136 -> 0 | G126: 0 | H126: 0 | I126: 0
A127: 151 | B127: =PRRAS!C137 -> 126 | C127: =PRRAS!D137 -> 0 | D127: =PRRAS!E137 -> 0 | G127: 0 | H127: 0 | I127: 0
A128: 151 | B128: =PRRAS!C138 -> 127 | C128: =PRRAS!D138 -> 0 | D128: =PRRAS!E138 -> 0 | G128: 0 | H128: 0 | I128: 0
A129: 151 | B129: =PRRAS!C139 -> 128 | C129: =PRRAS!D139 -> 0 | D129: =PRRAS!E139 -> 0 | G129: 0 | H129: 0 | I129: 0
A130: 151 | B130: =PRRAS!C140 -> 129 | C130: =PRRAS!D140 -> 0 | D130: =PRRAS!E140 -> 0 | G130: 0 | H130: 0 | I130: 0
A131: 151 | B131: =PRRAS!C141 -> 130 | C131: =PRRAS!D141 -> 5448 | D131: =PRRAS!E141 -> 27355 | G131: 7820.54 | H131: 0 | I131: 0
A132: 151 | B132: =PRRAS!C142 -> 131 | C132: =PRRAS!D142 -> 5448 | D132: =PRRAS!E142 -> 27355 | G132: 7880.698 | H132: 0 | I132: 0
A133: 151 | B133: =PRRAS!C143 -> 132 | C133: =PRRAS!D143 -> 10990856 | D133: =PRRAS!E143 -> 11572861 | G133: =(B133/1000)*(C133*1+D133*2) -> 4506028.296 | H133: =ABS(C133-ROUND(C133,0))+ABS(D133-ROUND(D133,0)) -> 0 | I133: 0
A134: 151 | B134: =PRRAS!C144 -> 133 | C134: =PRRAS!D144 -> 7856688 | D134: =PRRAS!E144 -> 8220529 | G134: 3231600.218 | H134: 0 | I134: 0
A135: 151 | B135: =PRRAS!C145 -> 134 | C135: =PRRAS!D145 -> 5422763 | D135: =PRRAS!E145 -> 5585972 | G135: 2223690.738 | H135: 0 | I135: 0
A136: 151 | B136: =PRRAS!C146 -> 135 | C136: =PRRAS!D146 -> 5232265 | D136: =PRRAS!E146 -> 5365884 | G136: 2155144.455 | H136: 0 | I136: 0
A137: 151 | B137: =PRRAS!C147 -> 136 | C137: =PRRAS!D147 -> 0 | D137: =PRRAS!E147 -> 0 | G137: 0 | H137: 0 | I137: 0
A138: 151 | B138: =PRRAS!C148 -> 137 | C138: =PRRAS!D148 -> 56244 | D138: =PRRAS!E148 -> 71226 | G138: 27221.352 | H138: 0 | I138: 0
A139: 151 | B139: =PRRAS!C149 -> 138 | C139: =PRRAS!D149 -> 134254 | D139: =PRRAS!E149 -> 148862 | G139: 59612.964 | H139: 0 | I139: 0
A140: 151 | B140: =PRRAS!C150 -> 139 | C140: =PRRAS!D150 -> 85981 | D140: =PRRAS!E150 -> 62578 | G140: 29348.043 | H140: 0 | I140: 0
A141: 151 | B141: =PRRAS!C151 -> 140 | C141: =PRRAS!D151 -> 85981 | D141: =PRRAS!E151 -> 62578 | G141: 29559.18 | H141: 0 | I141: 0
A142: 151 | B142: =PRRAS!C152 -> 141 | C142: =PRRAS!D152 -> 2347944 | D142: =PRRAS!E152 -> 2571979 | G142: 1056358.182 | H142: 0 | I142: 0
A143: 151 | B143: =PRRAS!C153 -> 142 | C143: =PRRAS!D153 -> 1352552 | D143: =PRRAS!E153 -> 1404437 | G143: 590922.492 | H143: 0 | I143: 0
A144: 151 | B144: =PRRAS!C154 -> 143 | C144: =PRRAS!D154 -> 890245 | D144: =PRRAS!E154 -> 1050262 | G144: 427679.967 | H144: 0 | I144: 0
A145: 151 | B145: =PRRAS!C155 -> 144 | C145: =PRRAS!D155 -> 105147 | D145: =PRRAS!E155 -> 117280 | G145: 48917.808 | H145: 0 | I145: 0
A146: 151 | B146: =PRRAS!C156 -> 145 | C146: =PRRAS!D156 -> 2599075 | D146: =PRRAS!E156 -> 2725050 | G146: 1167130.375 | H146: 0 | I146: 0
A147: 151 | B147: =PRRAS!C157 -> 146 | C147: =PRRAS!D157 -> 307030 | D147: =PRRAS!E157 -> 358091 | G147: 149388.952 | H147: 0 | I147: 0
A148: 151 | B148: =PRRAS!C158 -> 147 | C148: =PRRAS!D158 -> 25063 | D148: =PRRAS!E158 -> 33474 | G148: 13525.617 | H148: 0 | I148: 0
A149: 151 | B149: =PRRAS!C159 -> 148 | C149: =PRRAS!D159 -> 268583 | D149: =PRRAS!E159 -> 294073 | G149: 126795.892 | H149: 0 | I149: 0
A150: 151 | B150: =PRRAS!C160 -> 149 | C150: =PRRAS!D160 -> 9736 | D150: =PRRAS!E160 -> 21920 | G150: 7982.824 | H150: 0 | I150: 0
A151: 151 | B151: =PRRAS!C161 -> 150 | C151: =PRRAS!D161 -> 3648 | D151: =PRRAS!E161 -> 8624 | G151: 3134.4 | H151: 0 | I151: 0
A152: 151 | B152: =PRRAS!C162 -> 151 | C152: =PRRAS!D162 -> 1361856 | D152: =PRRAS!E162 -> 1206912 | G152: 570127.68 | H152: 0 | I152: 0
A153: 151 | B153: =PRRAS!C163 -> 152 | C153: =PRRAS!D163 -> 119353 | D153: =PRRAS!E163 -> 105908 | G153: 50337.688 | H153: 0 | I153: 0
A154: 151 | B154: =PRRAS!C164 -> 153 | C154: =PRRAS!D164 -> 597155 | D154: =PRRAS!E164 -> 504873 | G154: 245855.853 | H154: 0 | I154: 0
A155: 151 | B155: =PRRAS!C165 -> 154 | C155: =PRRAS!D165 -> 600159 | D155: =PRRAS!E165 -> 521637 | G155: 253088.682 | H155: 0 | I155: 0
A156: 151 | B156: =PRRAS!C166 -> 155 | C156: =PRRAS!D166 -> 30228 | D156: =PRRAS!E166 -> 34577 | G156: 15404.21 | H156: 0 | I156: 0
A157: 151 | B157: =PRRAS!C167 -> 156 | C157: =PRRAS!D167 -> 13018 | D157: =PRRAS!E167 -> 35017 | G157: 12956.112 | H157: 0 | I157: 0
A158: 151 | B158: =PRRAS!C168 -> 157 | C158: =PRRAS!D168 -> 0 | D158: =PRRAS!E168 -> 0 | G158: 0 | H158: 0 | I158: 0
A159: 151 | B159: =PRRAS!C169 -> 158 | C159: =PRRAS!D169 -> 1943 | D159: =PRRAS!E169 -> 4900 | G159: 1855.394 | H159: 0 | I159: 0
A160: 151 | B160: =PRRAS!C170 -> 159 | C160: =PRRAS!D170 -> 679882 | D160: =PRRAS!E170 -> 748902 | G160: 346252.074 | H160: 0 | I160: 0
A161: 151 | B161: =PRRAS!C171 -> 160 | C161: =PRRAS!D171 -> 254507 | D161: =PRRAS!E171 -> 294797 | G161: 135056.16 | H161: 0 | I161: 0
A162: 151 | B162: =PRRAS!C172 -> 161 | C162: =PRRAS!D172 -> 74037 | D162: =PRRAS!E172 -> 88186 | G162: 40315.849 | H162: 0 | I162: 0
A163: 151 | B163: =PRRAS!C173 -> 162 | C163: =PRRAS!D173 -> 3539 | D163: =PRRAS!E173 -> 4196 | G163: 1932.822 | H163: 0 | I163: 0
A164: 151 | B164: =PRRAS!C174 -> 163 | C164: =PRRAS!D174 -> 141065 | D164: =PRRAS!E174 -> 137037 | G164: 67667.657 | H164: 0 | I164: 0
A165: 151 | B165: =PRRAS!C175 -> 164 | C165: =PRRAS!D175 -> 0 | D165: =PRRAS!E175 -> 0 | G165: 0 | H165: 0 | I165: 0
A166: 151 | B166: =PRRAS!C176 -> 165 | C166: =PRRAS!D176 -> 44490 | D166: =PRRAS!E176 -> 43005 | G166: 21532.5 | H166: 0 | I166: 0
A167: 151 | B167: =PRRAS!C177 -> 166 | C167: =PRRAS!D177 -> 121157 | D167: =PRRAS!E177 -> 140731 | G167: 66834.754 | H167: 0 | I167: 0
A168: 151 | B168: =PRRAS!C178 -> 167 | C168: =PRRAS!D178 -> 14099 | D168: =PRRAS!E178 -> 15381 | G168: 7491.787 | H168: 0 | I168: 0
A169: 151 | B169: =PRRAS!C179 -> 168 | C169: =PRRAS!D179 -> 26988 | D169: =PRRAS!E179 -> 25569 | G169: 13125.168 | H169: 0 | I169: 0
A170: 151 | B170: =PRRAS!C180 -> 169 | C170: =PRRAS!D180 -> 0 | D170: =PRRAS!E180 -> 0 | G170: 0 | H170: 0 | I170: 0
A171: 151 | B171: =PRRAS!C181 -> 170 | C171: =PRRAS!D181 -> 0 | D171: =PRRAS!E181 -> 0 | G171: 0 | H171: 0 | I171: 0
A172: 151 | B172: =PRRAS!C182 -> 171 | C172: =PRRAS!D182 -> 250307 | D172: =PRRAS!E182 -> 411145 | G172: 183414.087 | H172: 0 | I172: 0
A173: 151 | B173: =PRRAS!C183 -> 172 | C173: =PRRAS!D183 -> 41694 | D173: =PRRAS!E183 -> 107969 | G173: 44312.704 | H173: 0 | I173: 0
A174: 151 | B174: =PRRAS!C184 -> 173 | C174: =PRRAS!D184 -> 30908 | D174: =PRRAS!E184 -> 29216 | G174: 15455.82 | H174: 0 | I174: 0
A175: 151 | B175: =PRRAS!C185 -> 174 | C175: =PRRAS!D185 -> 883 | D175: =PRRAS!E185 -> 2580 | G175: 1051.482 | H175: 0 | I175: 0
A176: 151 | B176: =PRRAS!C186 -> 175 | C176: =PRRAS!D186 -> 1950 | D176: =PRRAS!E186 -> 2350 | G176: 1163.75 | H176: 0 | I176: 0
A177: 151 | B177: =PRRAS!C187 -> 176 | C177: =PRRAS!D187 -> 0 | D177: =PRRAS!E187 -> 30 | G177: 10.56 | H177: 0 | I177: 0
A178: 151 | B178: =PRRAS!C188 -> 177 | C178: =PRRAS!D188 -> 174872 | D178: =PRRAS!E188 -> 269000 | G178: 126178.344 | H178: 0 | I178: 0
A179: 151 | B179: =PRRAS!C189 -> 178 | C179: =PRRAS!D189 -> 6338 | D179: =PRRAS!E189 -> 5295 | G179: 3013.184 | H179: 0 | I179: 0
A180: 151 | B180: =PRRAS!C190 -> 179 | C180: =PRRAS!D190 -> 0 | D180: =PRRAS!E190 -> 0 | G180: 0 | H180: 0 | I180: 0
A181: 151 | B181: =PRRAS!C191 -> 180 | C181: =PRRAS!D191 -> 0 | D181: =PRRAS!E191 -> 0 | G181: 0 | H181: 0 | I181: 0
A182: 151 | B182: =PRRAS!C192 -> 181 | C182: =PRRAS!D192 -> 0 | D182: =PRRAS!E192 -> 0 | G182: 0 | H182: 0 | I182: 0
A183: 151 | B183: =PRRAS!C193 -> 182 | C183: =PRRAS!D193 -> 0 | D183: =PRRAS!E193 -> 0 | G183: 0 | H183: 0 | I183: 0
A184: 151 | B184: =PRRAS!C194 -> 183 | C184: =PRRAS!D194 -> 0 | D184: =PRRAS!E194 -> 0 | G184: 0 | H184: 0 | I184: 0
A185: 151 | B185: =PRRAS!C195 -> 184 | C185: =PRRAS!D195 -> 0 | D185: =PRRAS!E195 -> 0 | G185: 0 | H185: 0 | I185: 0
A186: 151 | B186: =PRRAS!C196 -> 185 | C186: =PRRAS!D196 -> 0 | D186: =PRRAS!E196 -> 0 | G186: 0 | H186: 0 | I186: 0
A187: 151 | B187: =PRRAS!C197 -> 186 | C187: =PRRAS!D197 -> 0 | D187: =PRRAS!E197 -> 0 | G187: 0 | H187: 0 | I187: 0
A188: 151 | B188: =PRRAS!C198 -> 187 | C188: =PRRAS!D198 -> 0 | D188: =PRRAS!E198 -> 0 | G188: 0 | H188: 0 | I188: 0
A189: 151 | B189: =PRRAS!C199 -> 188 | C189: =PRRAS!D199 -> 0 | D189: =PRRAS!E199 -> 0 | G189: 0 | H189: 0 | I189: 0
A190: 151 | B190: =PRRAS!C200 -> 189 | C190: =PRRAS!D200 -> 0 | D190: =PRRAS!E200 -> 0 | G190: 0 | H190: 0 | I190: 0
A191: 151 | B191: =PRRAS!C201 -> 190 | C191: =PRRAS!D201 -> 0 | D191: =PRRAS!E201 -> 0 | G191: 0 | H191: 0 | I191: 0
A192: 151 | B192: =PRRAS!C202 -> 191 | C192: =PRRAS!D202 -> 0 | D192: =PRRAS!E202 -> 0 | G192: 0 | H192: 0 | I192: 0
A193: 151 | B193: =PRRAS!C203 -> 192 | C193: =PRRAS!D203 -> 6338 | D193: =PRRAS!E203 -> 5295 | G193: 3250.176 | H193: 0 | I193: 0
A194: 151 | B194: =PRRAS!C204 -> 193 | C194: =PRRAS!D204 -> 4707 | D194: =PRRAS!E204 -> 5295 | G194: 2952.321 | H194: 0 | I194: 0
A195: 151 | B195: =PRRAS!C205 -> 194 | C195: =PRRAS!D205 -> 0 | D195: =PRRAS!E205 -> 0 | G195: 0 | H195: 0 | I195: 0
A196: 151 | B196: =PRRAS!C206 -> 195 | C196: =PRRAS!D206 -> 1631 | D196: =PRRAS!E206 -> 0 | G196: 318.045 | H196: 0 | I196: 0
A197: 151 | B197: =PRRAS!C207 -> 196 | C197: =PRRAS!D207 -> 0 | D197: =PRRAS!E207 -> 0 | G197: =(B197/1000)*(C197*1+D197*2) -> 0 | H197: =ABS(C197-ROUND(C197,0))+ABS(D197-ROUND(D197,0)) -> 0 | I197: 0
A198: 151 | B198: =PRRAS!C208 -> 197 | C198: =PRRAS!D208 -> 0 | D198: =PRRAS!E208 -> 0 | G198: 0 | H198: 0 | I198: 0
A199: 151 | B199: =PRRAS!C209 -> 198 | C199: =PRRAS!D209 -> 0 | D199: =PRRAS!E209 -> 0 | G199: 0 | H199: 0 | I199: 0
A200: 151 | B200: =PRRAS!C210 -> 199 | C200: =PRRAS!D210 -> 0 | D200: =PRRAS!E210 -> 0 | G200: 0 | H200: 0 | I200: 0
... 1775 more rows

Sheet Upute
B1: Prelazak na Referentnu stranicu ––––>
A2: OSNOVNE UPUTE ZA UNOS PODATAKA
A3: ="Ver. " & MID(Skriveni!K36,1,1) & "." & MID(Skriveni!K36,2,1) & "." & MID(Skriveni!K36,3,1) & "." -> Ver. 3.0.6.
A4: Čak i iskusnim korisnicima u radu s Excel-om, preporuča se da pažljivo prouče upute o popunjavanju. Posebnu pozornost na ove upute trebaju obratiti obveznici koji obrasce popunjavaju u OpenOffice-u, verziji Excel-a 2007 ili novijeg te iz nekog vanjskog programa (računovodstveni program i slično). Datoteke popunjene na taj način učestalo su problematične i nemoguće ih je učitati jer datoteke nisu pripremljene na način kako je navedeno u uputama. Ova verzija datoteke predviđena je za popunjavanje svih vrsta obrazaca, za sve razine te za sva razdoblja u 2013. i 2014. godini. Predaja ovih obrazaca za sada je moguća samo u poslovnicama Fine, a predaja putem web servisa je u planu.
A5: Sva bitna pravila o popunjavanju obrazaca, poslovnim pravilima navedena su u nastavku uputa, ono što nije objašnjeno u uputama opisano je u kontrolama koje javljaju pogrešku. Prije nego rješenje problema potražite na broju telefona ili adresi e-pošte na dnu uputa, pokušajte ga pronaći u sklopu uputa. Razina 11, tj. korisnici koji ovu Excel datoteku ujedno koriste i za predaju svojim nadležnim ministarstvima mogu je koristiti, ali pri tome moraju zanemariti kontrolu koja govori da razina 11 ne predaje mjesečni obrazac obveze. Kod mjesečnog izvještaja Obveze, oznaka VP159 ili VP160 (mjesečni ili tromjesečni obrazac) zavisi od upisane razine, samo razina 11 i 12 imaju mjesečne obveze, dok sve ostale razine predaju samo kvartalne Obveze. Sve kontrole postavljene su tako da provjeravaju obveznost predaje obrazaca za potrebe financijskog izvještavanja, a ne u neke druge svrhe i za druge nadležne institucije. Matematičke kontrole vrijede uvijek, a kontrole obveznosti u slučaju da obrazac dostavljate nekom drugom možete zanemariti.
A6: U polja Datum od i Datum do upisuju se stvarni datumi unutar razdoblja izvještavanja u kojem je obveznik bio aktivan (tj. poslovao). Obveznik koji je počeo s radom tokom godine, upisuje datum stvarnog početka rada, a obveznik koji je prestaje s radom ili postaje druga vrsta obveznika upisuju stvarni datum prestanka rada, što znači da se u tim slučajevima ne upisuju 1.1. u Datum od, niti 31.12 u Datum do polje. Isti upisani datumi se prenose i na naslovnicu Referentne stranice. Za razliku od upisanih datuma, datumi na pojedinačnom obrascu se određuju prema odabranoj AOP oznaci razdoblja, tj. bez obzira koliko je obveznik stvarno poslovao unutar razdoblja obrade. Primjerice, za odabrano razdoblje 2012-12 na bilanci će se pojaviti datumi razdoblja za koje se izvještava (tj. 1.1. do 31. 12.), dok će se na obrascu obveze pojaviti datumi 1.10 do 31. 12 jer je to stvarno razdoblje izvještavanja za taj obrazac. Isto tako, ako se neki obrazac ne predaje za neko određeno razdoblje, u zaglavlju tog obrasca će biti ispisan tekst - "za odabrano razdoblje i razinu obrazac se ne popunjava" (primjerice, Bil se popunjava samo za razdoblje 20XX-12, PR-RAS se popunjava samo za kvartale, dok se mjesečne obveze predaju za sve mjesece itd.).
A7: Obveznici više nisu dužni kod predaje u FINA-u ispisati kompletno sve obrasce već samo ispisanu i ovjerenu Referentnu stranicu, potpisanu od strane zakonskog predstavnika obveznika. Isto tako, uz ispis Referentne stranice potrebno je dostaviti i obrazac na magnetnom mediju (disketu, CD, USB stick). Obrasci koji su računalno popunjeni i ispisani na papiru, neće se preuzeti bez magnetnog medija. Korisnici koji nemaju nikakvu mogućnost popunjavanja obrazaca na računalu, već upisuju podatke ručno u prazan ispisani obrazac moraju dostaviti kompletne obrasce, s tim da svaka stranica obrasca mora biti potpisana od strane ovlaštene osobe.
A8: Navigacija kroz Excel datoteku riješena je na način da se sa svakog obrasca možete se vratiti na Referentnu stranicu, ili direktno na kontrole vezane za taj obrazac (klikom na žuti tekst na plavoj podlozi na vrhu ekrana), a sa referentne stranice možete se prebaciti na šifarnike, upute i kontrole. Sa referentne stranice na svaki od obrazaca prebacujete se klikom na ime obrasca na popisu obrazaca. Sa kontrola obrasca moguće je vratiti se na Referentnu stranicu (na vrhu ekrana) ili na svaki pojedini obrazac - klikom na ime obrasca u naslovima dijela kontrola koje se odnose na taj obrazac. Kako bi što bolje označili koja polja služe za navigaciju, ona su obojana tamnomodrozelenom bojom s žutim slovima. Mjesto za radni list Novosti je predviđeno, a ugradit ćemo ga u sljedeću verziju Excel datoteke kada to bude potrebno. Zbog toga je navigacija na List novosti bijela (Neaktivna).
A9: Osnovni podaci o obvezniku unose se u radni list "RefStr" (Referentna stranica). Podaci u zaglavlju upisani u Referentnu stranicu prenose se automatizmom na sve ostale radne listove i obrasce. Time je osigurano da svi podaci iz zaglavlja, u svim obrascima budu identični. Svi podaci u zaglavlju čiji opis je označen tamnomodrom bojom obavezni su za unos.
A10: Oznaka razdoblja, razine, šifre općine i djelatnosti možete upisati rukom ili izabrati s padajućeg izbornika na tom unosnom polju. Izbjegavajte unos ovih podataka metodama Copy/Paste iz nekih drugih Excel datoteka (Kopiraj/Zalijepi) kako ne biste prenijeli i neke formate iz te druge datoteke, a time spomenutu šifru učinili neprepoznatljivom za programsko učitavanje. Polja predviđena za unos u zaglavlju Referentne stranice označena su sivim rasterom. Razdoblje se unosi na način GGGG-MM gdje je GGGG godina, a MM mjesec u kojem završava razdoblje izvještavanja. Kako biste bili sigurni da nećete imati problema oko popunjavanja obrazaca, preporučeno je da regionalne postavke na računalu budu namještene za Hrvatsku, format datuma: DD.MM.GGGG (DD.MM.YYYY), a kod brojevnih vrijednosti točka za odvajanje tisućica, zarez kao decimalno mjesto.
A11: Novost u odnosu na prijašnje obrasce je da se sve brojčane oznake (RKP, matični broj, broj pošte, razina, šifra djelatnosti, razdjel te šifra općine) unose kao brojevna vrijednost, bez vodećih nula, a nakon unosa, na Referentnoj stranici će se pokazati s vodećim nulama tamo gdje je to potrebno. Ovaj način uveden je kako bi istu Excel datoteku bilo moguće popunjavati i u Excel-u i u OpenOffice-u.
A12: U obrasce se unose iznosi samo pojedinačnih AOP oznaka. Sumarne AOP oznake se zaštićene su, u njih nije moguć unos, a izračunavaju se automatski na osnovu upisanih pojedinačnih iznosa. Upisuju se samo cjelobrojne vrijednosti. Iznosi s lipama nisu dopušteni. Sumarne AOP oznake u obrascu obojane su blijedosivom bojom. Vrijednosti tih pozicija izračunat će se automatski na osnovu upisanih pojedinačnih stavaka. Na obrascima koji imaju stupac indeks, taj podatak se ne upisuje već se izračunava automatski na osnovu upisanih vrijednosti. Tamo gdje indeks nije moguće izračunati pojavit će se crtica "-", a tamo gdje je indeks veći od 10000 pojavit će se tekst ">>100".
A13: Vrlo važno: Kod unosa vrijednosti naprednijim metodama Kopiraj/Zalijepi (Copy/Paste) iz nekih drugih dokumenata OBAVEZNO koristite metodu Copy (Kopiraj), a ne Cut (Izreži), jer se kod korištenja metode Cut/Paste nepovratno pokvari struktura datoteke. Isto tako, kod Paste metode koristite opciju Paste Special (Posebno lijepljenje), pa odaberite Vrijednosti (Value). Ni u kom slučaju ne prenosite krivo upisane iznose s jedne AOP pozicije na drugu tako da ih prenosite mišem. Isto tako, ne brišite postojeće radne listove, ne mijenjajte nazive postojećih, ne uključujte dijeljenje ili zaštitu radne knjige, ne ubacujte linkove na neke druge dokumente. S obzirom da su svi radni listovi međusobno povezani formulama koje služe kao kontrola, svaka od spomenutih radnji rezultira da Excel datoteka postane neupotrebljiva za računalnu obradu i morat ćete ispuniti novu datoteku.
A14: Kontrole obrazaca podijeljene su na općenite (kontrole popunjenosti pojedinih obrazaca, popunjenost zaglavlja, kontrole između obrazaca) te na kontrole na razini pojedinog obrasca. Općenite kontrole provjeravajte tek kada popunite sve obrasce koje ste dužni predati. Ako ste dužni predati neki obrazac (prema razdoblju predaje i razini), a niste ga popunili kontrola će na to upozoriti, isto tako, upozorit će ako ste popunili obrazac koji niste dužni predati. Kontrole na razini pojedinog obrasca provjeravajte nakon popunjavanja tog obrasca. Ako neka kontrola nije zadovoljena ispravite podatak.
A15: Na listu Kontrole nakon unosa možete provjeriti jesu li zadovoljene neke osnovne kontrole na podacima. Ako neke kontrole nisu zadovoljene, pojavit će se tekst "Nije zadovoljena" pored opisa što ta kontrola provjerava. Nezadovoljena kontrola može značiti krivi podatak ili samo upozorenje da provjerite podatak. Ako je upozorenje provjerite koje AOP-e kontrola provjerava a ako je pogreška u podacima, ispravite vrijednost AOP-a koje kontrola provjerava i napišite ispravne vrijednosti. Sve dok postoji samo jedna kontrola koja nije zadovoljena, a koja mora biti zadovoljena, na naslovnoj strani obrasca biti će poruka "Nisu zadovoljene sve osnovne kontrole, broj kontrola: X", gdje X označava broj svih obveznih kontrola koje još uvijek nisu zadovoljene.
A16: Na referentnoj stranici pored imena svakog obrasca postoji stupac "Kontroliran" u kojem piše "DA" ako su sve kontrole zadovoljene, a ako nisu, umjesto teksta "DA" pojavljuje se broj kontrola na razini tog obrasca koje su još u grešci. Ako na Referentnoj stranici, pored imena nekog obrasca u stupcu "Popunjen" stoji "NE" eventualne kontrole na razini tog obrasca koje nisu zadovoljene možete zanemariti jer se taj obrazac neće ni učitati. Ako pored svakog obrasca piše da je kontroliran ("DA"), a i dalje na referentnoj stranici piše da obrazac nije ispravan, nije zadovoljena neka od općenitih kontrola.
A17: Oznaka "DA" na referentnoj stranici pored imena svakog obrasca pojavit će se nakon unosa barem jednog iznosa različitog od nule. To još uvijek ne znači da je taj obrazac potpun, i ispravan ali signalizira da je nešto upisano u taj obrazac, i smatra se da je korisnik i taj obrazac predao. Ne unosite iznose u obrasce koje niste dužni predati. Posebnost je obrazac P-VRIO, koji kod nekih obveznika može sadržavati sve nule, tj. nema niti jednu vrijednost različitu od nule. Kod obrasca P-VRIO oznaka "DA" ili "NE" ne dodjeljuje se automatski nego je mora upisati (ili odabrati s popisa) korisnik.
A18: Obveznici koji su koristili mogućnost da stave oznaku "Vrijedi i kao konsolidirani" više nemaju tu mogućnost, iz razloga što obvezni set obrazaca razine 22 i razine 23, te razine 11 i 12 nije isti, već moraju predati dvije Excel datoteke i dvije ispisane i potpisane Referentne stranice.
A19: Česta pogreška pri unosu je da nakon brisanja vrijednosti nekog AOP-a u ćeliji ostane upisan razmak koji se ne vidi na ekranu, kad se to dogodi, polje kontrolni broj na vrhu obrasca bit će popunjeno s vrijednošću #VRIJ ili #VALUE. U tom slučaju, ako ne uspijete pronaći na kojem AOP-u je upisan razmak ili neki drugi znak koji nije brojevna vrijednost, popunite sva polja koja nemaju podataka nulama.
A20: Važno: S obzirom da velik broj obveznika obrasce popunjava direktno iz svojih računovodstvenih aplikacija, prije dostavljanja takvog obrasca u poslovnicu FINA-e (bez obzira u kojem programu je popunjavan) neophodno je da tako popunjene obrasce otvore u Excel-u, te nakon toga ponovo snime kroz Excel jer te vanjske aplikacije iako popune sva polja u obrascu, nemaju mogućnost da pokrenu i sve izračune i kontrole u obrascima. Znači, nakon što obrazac popuni vanjska aplikacija, te ga otvorite kako biste ispisali referentnu stranicu, obavezno nakon ispisa te stranice snimite ponovo sve promjene u obrascu (kod izlaska iz Excel-a on Vas pita želite li snimiti promjene, treba obavezno odgovoriti sa Da.
A21: Korisnici Open Office-a: U vrijeme izrade obrasca zadnja aktualna verzija OpenOffice-a na hrvatskom jeziku je bila 3.2.1. Obrazac popunjen u ovoj verziji Open Office-a moguće je učitati u aplikaciju i s njim nije bilo problema u učitavanju. Koristite li starije verzije OpenOffice-a možete s Interneta besplatno skinuti zadnju verziju Open Officea, jer obrasci popunjeni u starijim verzijama mogli bi biti nečitki nakon predaje u FINA-u. Verzije Excela kojima je moguće bez problema popuniti obrazac su 97, 2000, XP, 2003 te 2007. Praksa je pokazala da neke verzije Excel-a ne rade dobro bez zadnjih zakrpa (Service Pack-ova) te provjerite s svojim informatičarima imate li na računalu instalirane sve zakrpe za program koji koristitie za popunjavanje. Korisnici Excel-a verzije 2007 i 2010, moraju prilikom snimanja Excel datoteke odabrati format 97-2003 jer najnoviji Excel format 2007 nije podržan. Prilikom prvog snimanja u ovoj novoj verziji Excel-a on će ponuditi konverziju u najnoviji format, pri tome treba odabrati da datoteka ostane u starom 2003 formatu, a ako ste pogreškom pretvorili u novi format 2007, potrebno je kroz opciju File (Datoteka), Save As (Snimi kao) ponovo snimiti u stariji format na način da se odabere format 97-2003 (na dnu prozora za snimanje).
A22: Oznaka razine unosi se kao dvoznamenkasta šifra a šifre znače: 11 - proračunski korisnik državnog proračuna i glava unutar nadležnog ministarstva; 12 - nadježno ministarstvo/razdjel - konsolidirani izvještaj; 21 - proračunski korisnik jedinice lokalne i područne (regionalne) samouprave; 22 - proračun jedinice lokalne i područne (regionalne) samouprave; 23 - konsolidirani proračun jedinice lokalne i područne (regionalne) samouprave; 31 - proračunski korisnik jedinice lokalne i područne (regionalne) samouprave koji obavlja poslove u sklopu funkcija koje se decentraliziraju 41 - izvanproračunski korisnik državnog proračuna 42 - izvanproračunski korisnik jedinice lokalne i područne (regionalne) samouprave
A23: Imate li problema tehničke naravi s popunjavanjem obrasca, pošaljite putem e-pošte opis pogreške koja vam se javlja, koji program i koju verziju koristite za popunjavanje, te zajedno s svojim kontakt podacima problematičnu Excel datoteku na adresu e-pošte: rgfi@fina.hr.

Sheet RefStr
A1: Novosti | C1: Uputa | E1: Kontrole | G1: Sifre | J1: Promjene
J2: Referentna stranica
A4: Izvještaji proračuna, proračunskih i izvanproračunskih korisnika
A5: =IF(AND(K10<>"",K12<>""), "za razdoblje: " & TEXT(K10, "d. mmmm yyyy.") & " – " & TEXT(K12, "d. mmmm yyyy."),"za razdoblje od ________________ do ______________") -> za razdoblje: 1. siječanj 2014. – 31. prosinac 2014.
A6: Broj RKP-a: | B6: 14402 | D6: AOP oznaka razdoblja: | F6: 2014-12 | J6: =SUM(Skriveni!G2:G1975) -> 245300595.8
A8: Matični broj: | B8: 3324281 | J8: Kontrolni broj izvještaja | P8: 1 | Q8: ZAGREBAČKA | R8: 11 | S8: proračunski korisnik državnog proračuna i glava unutar nadležnog ministarstva
P9: 2 | Q9: KRAPINSKO-ZAGORSKA | R9: 12 | S9: nadježno ministarstvo/razdjel - konsolidirani izvještaj
A10: Naziv obveznika: | B10: OŠ VUGROVEC - KAŠINA | J10: Od datuma: | K10: 2014-01-01 | P10: 3 | Q10: SISAČKO-MOSLAVAČKA | R10: 13 | S10: opća država
P11: 4 | Q11: KARLOVAČKA | R11: 21 | S11: proračunski korisnik jedinice lokalne i područne (regionalne) samouprave
A12: Pošta i mjesto: | B12: 10362 | C12: KAŠINA | J12: Do datuma: | K12: 2014-12-31 | P12: 5 | Q12: VARAŽDINSKA | R12: 22 | S12: proračun jedinice lokalne i područne (regionalne) samouprave
P13: 6 | Q13: KOPRIVNIČKO-KRIŽEVAČKA | R13: 23 | S13: konsolidirani proračun jedinice lokalne i područne (regionalne) samouprave
A14: Ulica i kućni broj: | B14: IVANA MAŽURANIĆA 43 | J14: OIB: | K14: 43748649227 | P14: 7 | Q14: BJELOVARSKO-BILOGORSKA | R14: 31 | S14: proračunski korisnik jedinice lokalne i područne (regionalne) samouprave koji obavlja poslove u sklopu funkcija koje se decentraliziraju
P15: 8 | Q15: PRIMORSKO-GORANSKA | R15: 41 | S15: izvanproračunski korisnik državnog proračuna
A16: Razina: | B16: 31 | C16: =IF(B16>0,LOOKUP(B16,R8:R16,S8:S16),"Razina nije upisana") -> proračunski korisnik jedinice lokalne i područne (regionalne) samouprave koji obavlja poslove u sklopu funkcija koje se decentraliziraju | P16: 9 | Q16: LIČKO-SENJSKA | R16: 42 | S16: izvanproračunski korisnik jedinice lokalne i područne (regionalne) samouprave
P17: 10 | Q17: VIROVITIČKO-PODRAVSKA
A18: Šifra djelatnosti: | B18: 8520 | C18: =IF(B18>0,LOOKUP(B18,Sifre!A249:A863,Sifre!B249:B863),"Djelatnost nije upisana") -> Osnovno obrazovanje | P18: 11 | Q18: POŽEŠKO-SLAVONSKA
P19: 12 | Q19: BRODSKO-POSAVSKA
A20: Razdjel: | B20: 0 | C20: =IF(B20<>"","Razdjel: " & LOOKUP(B20,R66:R116,S66:S116),"Razdjel nije upisan") -> Razdjel: NEMA RAZDJELA | P20: 13 | Q20: ZADARSKA
P21: 14 | Q21: OSIJEČKO-BARANJSKA
A22: Šifra grada/opć.: | B22: 133 | C22: =IF(B22>0, "Županija: " & LOOKUP(N22,P8:P28,Q8:Q28) & ", grad/općina: " & LOOKUP(B22,N66:N622,O66:O622),"šifra grada/općine nije upisana") -> Županija: GRAD ZAGREB, grad/općina: GRAD ZAGREB | N22: =LOOKUP(B22,N66:N622,P66:P622) -> 21 | P22: 15 | Q22: ŠIBENSKO-KNINSKA
P23: 16 | Q23: VUKOVARSKO-SRIJEMSKA
B24: Popunjen | D24: Pogreški | P24: 17 | Q24: SPLITSKO-DALMATINSKA
A25: Pregled popunjenosti obrazaca: | B25: =IF(SUM(Skriveni!C2:F615)=0,"NE", "DA") -> DA | C25: PR-RAS (VP 151) | E25: =IF(AND(B25="DA",Kont!E26>0),Kont!E26,"NE") -> NE | G25: Osoba za kontaktiranje: | H25: NADA MILEC | P25: 18 | Q25: ISTARSKA
P26: 19 | Q26: DUBROVAČKO-NERETVANSKA
B27: =IF(SUM(Skriveni!C901:C1165)<>0,"DA","NE") -> NE | C27: NT (VP 153) | E27: =IF(AND(B27="DA",Kont!E270>0),Kont!E270,"NE") -> NE | G27: Telefon: | H27: 012059256 | J27: Telefax: | K27: 012056837 | P27: 20 | Q27: MEĐIMURSKA
P28: 21 | Q28: GRAD ZAGREB
B29: =IF(SUM(Skriveni!C1300:D1435)<>0,"DA","NE") -> NE | C29: RAS funkcijski (VP 154) | E29: =IF(AND(B29="DA",Kont!E319>0),Kont!E319,"NE") -> NE | G29: Adresa e-pošte za kontakt: | H29: nadamilec1@gmail.com
B31: DA | C31: P-VRIO (VP 156) | E31: =IF(AND(B31="DA",Kont!E265>0),Kont!E265,"NE") -> NE | G31: Adresa e-pošte obveznika: | H31: ured@os-vugrovec-kasina.skole.hr
B33: =IF(SUM(Skriveni!C1481:D1694)<>0,"DA","NE") -> DA | C33: BIL (VP 158) | E33: =IF(AND(B33="DA",Kont!E237>0),Kont!E237,"NE") -> NE | G33: Zakonski predstavnik: | H33: VLADIMIR VUGER
B35: =IF(SUM(Skriveni!C1756:C1838)<>0,"DA","NE") -> NE | C35: Obveze (VP 159 i 160) | E35: =IF(AND(B35="DA",Kont!E261>0),Kont!E261,"NE") -> NE
B37: =IF(SUM(Skriveni!C1850:D1922)<>0,"DA","NE") -> NE | C37: S-PR-RAS (VP 161) | E37: =IF(AND(B37="DA",Kont!E300>0),Kont!E300,"NE") -> NE | G37: Stanje kontrola: | H37: =IF(Kont!E2>0,"Nisu zadovoljene sve osnovne kontrole, broj kontrola: " & Kont!E2,"Sve osnovne kontrole su zadovoljene") -> Sve osnovne kontrole su zadovoljene
A39: Obrazac | B39: Opis značenja AOP oznake | I39: AOP oznaka | J39: Prvi stupac podataka | K39: Zadnji stupac podataka | N39: RAZD | O39: OPIS1 mjesečni | P39: OPIS2 kvartal | Q39: OPIS3 godina | R39: OPIS4 na dan | W39: 111
A40: PR-RAS | B40: =PRRAS!B611 -> UKUPNI PRIHODI I PRIMICI (AOP 377+384) | I40: =PRRAS!C611 -> 598 | J40: =PRRAS!D611 -> 11037394 | K40: =PRRAS!E611 -> 12004529 | P40: za odabrano razdoblje i razinu obrazac se ne popunjava | Q40: za odabrano razdoblje i razinu obrazac se ne popunjava | R40: za odabrano razdoblje i razinu obrazac se ne popunjava | W40: 112
B41: =PRRAS!B612 -> UKUPNI RASHODI I IZDACI (AOP 378+490) | I41: =PRRAS!C612 -> 599 | J41: =PRRAS!D612 -> 11088226 | K41: =PRRAS!E612 -> 11799364 | N41: 2013-01 | O41: za razdoblje 1. do 31. siječnja 2013. godine | P41: za odabrano razdoblje i razinu obrazac se ne popunjava | Q41: za odabrano razdoblje i razinu obrazac se ne popunjava | R41: za odabrano razdoblje i razinu obrazac se ne popunjava | W41: 113
B42: =PRRAS!B613 -> VIŠAK PRIHODA I PRIMITAKA (AOP 598-599) | I42: =PRRAS!C613 -> 600 | J42: =PRRAS!D613 -> 0 | K42: =PRRAS!E613 -> 205165 | N42: 2013-02 | O42: za razdoblje 1. do 28. veljače 2013. godine | P42: za odabrano razdoblje i razinu obrazac se ne popunjava | Q42: za odabrano razdoblje i razinu obrazac se ne popunjava | R42: za odabrano razdoblje i razinu obrazac se ne popunjava | W42: 114
B43: =PRRAS!B614 -> MANJAK PRIHODA I PRIMITAKA (AOP 599-598) | I43: =PRRAS!C614 -> 601 | J43: =PRRAS!D614 -> 50832 | K43: =PRRAS!E614 -> 0 | N43: 2013-03 | O43: za razdoblje 1. do 31. ožujka 2013. godine | P43: za razdoblje 1. siječnja do 31. ožujka 2013. godine | Q43: za razdoblje 1. siječnja do 31. ožujka 2013. godine | R43: za odabrano razdoblje i razinu obrazac se ne popunjava | W43: 115
A44: NT | B44: =NT!B237 -> UKUPNI NETO PRIMICI (AOP 118+194+224-119-195-225) | I44: =NT!C237 -> 226 | J44: - | K44: =NT!D237 -> 0 | N44: 2013-04 | O44: za razdoblje 1. do 30. travnja 2013. godine | P44: za odabrano razdoblje i razinu obrazac se ne popunjava | Q44: za odabrano razdoblje i razinu obrazac se ne popunjava | R44: za odabrano razdoblje i razinu obrazac se ne popunjava | W44: 116
B45: =NT!B238 -> UKUPNI NETO IZDACI (AOP 119+195+225-118-194-224) | I45: =NT!C238 -> 227 | J45: - | K45: =NT!D238 -> 0 | N45: 2013-05 | O45: za razdoblje 1. do 31. svibnja 2013. godine | P45: za odabrano razdoblje i razinu obrazac se ne popunjava | Q45: za odabrano razdoblje i razinu obrazac se ne popunjava | R45: za odabrano razdoblje i razinu obrazac se ne popunjava | W45: 119
B46: =NT!B239 -> NOVČANA SREDSTVA NA POČETKU RAZDOBLJA | I46: =NT!C239 -> 228 | J46: - | K46: =NT!D239 -> 0 | N46: 2013-06 | O46: za razdoblje 1. do 30. lipnja 2013. godine | P46: za razdoblje 1. travnja do 30. lipnja 2013. godine | Q46: za razdoblje 1. siječnja do 30. lipnja 2013. godine | R46: za odabrano razdoblje i razinu obrazac se ne popunjava | W46: 121
B47: =NT!B240 -> NOVČANA SREDSTVA NA KRAJU RAZDOBLJA | I47: =NT!C240 -> 229 | J47: - | K47: =NT!D240 -> 0 | N47: 2013-07 | O47: za razdoblje 1. do 31. srpnja 2013. godine | P47: za odabrano razdoblje i razinu obrazac se ne popunjava | Q47: za odabrano razdoblje i razinu obrazac se ne popunjava | R47: za odabrano razdoblje i razinu obrazac se ne popunjava | W47: 122
A48: RAS-funkcijski | B48: =RasF!B12 -> Opće javne usluge (AOP 002+006+009+013 do 017) | I48: =RasF!C12 -> 1 | J48: =RasF!D12 -> 0 | K48: =RasF!E12 -> 0 | N48: 2013-08 | O48: za razdoblje 1. do 31. kolovoza 2013. godine | P48: za odabrano razdoblje i razinu obrazac se ne popunjava | Q48: za odabrano razdoblje i razinu obrazac se ne popunjava | R48: za odabrano razdoblje i razinu obrazac se ne popunjava | W48: 123
B49: =RasF!B42 -> Ekonomski poslovi (AOP 032+035+039+046+050+056+057+062+070) | I49: =RasF!C42 -> 31 | J49: =RasF!D42 -> 0 | K49: =RasF!E42 -> 0 | N49: 2013-09 | O49: za razdoblje 1. do 30. rujna 2013. godine | P49: za razdoblje 1. srpnja do 30. rujna 2013. godine | Q49: za razdoblje 1. siječnja do 30. rujna 2013. godine | R49: za odabrano razdoblje i razinu obrazac se ne popunjava | W49: 124
B50: =RasF!B95 -> Rashodi vezani za stanovanje i kom. pogodnosti koji nisu drugdje svrstani | I50: =RasF!C95 -> 84 | J50: =RasF!D95 -> 0 | K50: =RasF!E95 -> 0 | N50: 2013-10 | O50: za razdoblje 1. do 31. listopada 2013. godine | P50: za odabrano razdoblje i razinu obrazac se ne popunjava | Q50: za odabrano razdoblje i razinu obrazac se ne popunjava | R50: za odabrano razdoblje i razinu obrazac se ne popunjava | W50: 125
B51: =RasF!B121 -> Obrazovanje (AOP 111+114+117+118+121 do 124) | I51: =RasF!C121 -> 110 | J51: =RasF!D121 -> 0 | K51: =RasF!E121 -> 0 | N51: 2013-11 | O51: za razdoblje 1. do 30. studenoga 2013. godine | P51: za odabrano razdoblje i razinu obrazac se ne popunjava | Q51: za odabrano razdoblje i razinu obrazac se ne popunjava | R51: za odabrano razdoblje i razinu obrazac se ne popunjava | W51: 125
B52: =RasF!B148 -> Kontrolni zbroj (AOP 001+018+024+031+071+078+085+103+110+125) | I52: =RasF!C148 -> 137 | J52: =RasF!D148 -> 0 | K52: =RasF!E148 -> 0 | N52: 2013-12 | O52: za razdoblje 1. do 31. prosinca 2013. godine | P52: za razdoblje 1. listopada do 31. prosinca 2013. godine | Q52: za razdoblje 1. siječnja do 31. prosinca 2013. godine | R52: stanje na dan 31. prosinca 2013. godine | W52: 126
A53: P-VRIO | B53: =PVRIO!B12 -> Promjene u vrijednosti i obujmu imovine (AOP 002+018) | I53: =PVRIO!C12 -> 1 | J53: =PVRIO!D12 -> 0 | K53: =PVRIO!E12 -> 0 | N53: 2014-01 | O53: za razdoblje 1. do 31. siječnja 2014. godine | P53: za odabrano razdoblje i razinu obrazac se ne popunjava | Q53: za odabrano razdoblje i razinu obrazac se ne popunjava | R53: za odabrano razdoblje i razinu obrazac se ne popunjava | W53: 127
B54: =PVRIO!B29 -> Promjene u obujmu imovine (AOP 019+026) | I54: =PVRIO!C29 -> 18 | J54: =PVRIO!D29 -> 0 | K54: =PVRIO!E29 -> 0 | N54: 2014-02 | O54: za razdoblje 1. do 28. veljače 2014. godine | P54: za odabrano razdoblje i razinu obrazac se ne popunjava | Q54: za odabrano razdoblje i razinu obrazac se ne popunjava | R54: za odabrano razdoblje i razinu obrazac se ne popunjava | W54: 128
B55: =PVRIO!B45 -> Promjene u vrijednosti (revalorizacija) i obujmu obveza (AOP 035+040) | I55: =PVRIO!C45 -> 34 | J55: =PVRIO!D45 -> 0 | K55: =PVRIO!E45 -> 0 | N55: 2014-03 | O55: za razdoblje 1. do 31. ožujka 2014. godine | P55: za razdoblje 1. siječnja do 31. ožujka 2014. godine | Q55: za razdoblje 1. siječnja do 31. ožujka 2014. godine | R55: za odabrano razdoblje i razinu obrazac se ne popunjava | W55: 129
B56: =PVRIO!B51 -> Promjene u obujmu obveza (AOP 041 do 044) | I56: =PVRIO!C51 -> 40 | J56: =PVRIO!D51 -> 0 | K56: =PVRIO!E51 -> 0 | N56: 2014-04 | O56: za razdoblje 1. do 30. travnja 2014. godine | P56: za odabrano razdoblje i razinu obrazac se ne popunjava | Q56: za odabrano razdoblje i razinu obrazac se ne popunjava | R56: za odabrano razdoblje i razinu obrazac se ne popunjava | W56: 130
A57: Bilanca | B57: =Bil!B12 -> IMOVINA (AOP 002+061) | I57: =Bil!C12 -> 1 | J57: =Bil!D12 -> 9003556 | K57: =Bil!E12 -> 9485507 | N57: 2014-05 | O57: za razdoblje 1. do 31. svibnja 2014. godine | P57: za odabrano razdoblje i razinu obrazac se ne popunjava | Q57: za odabrano razdoblje i razinu obrazac se ne popunjava | R57: za odabrano razdoblje i razinu obrazac se ne popunjava | W57: 141
B58: =Bil!B73 -> Novac u banci i blagajni (AOP 063 do 066) | I58: =Bil!C73 -> 62 | J58: =Bil!D73 -> 120325 | K58: =Bil!E73 -> 351348 | N58: 2014-06 | O58: za razdoblje 1. do 30. lipnja 2014. godine | P58: za razdoblje 1. travnja do 30. lipnja 2014. godine | Q58: za razdoblje 1. siječnja do 30. lipnja 2014. godine | R58: za odabrano razdoblje i razinu obrazac se ne popunjava | W58: 142
B59: =Bil!B136 -> Dionice i udjeli u glavnici trgovačkih društava u javnom sektoru | I59: =Bil!C136 -> 125 | J59: =Bil!D136 -> 0 | K59: =Bil!E136 -> 0 | N59: 2014-07 | O59: za razdoblje 1. do 31. srpnja 2014. godine | P59: za odabrano razdoblje i razinu obrazac se ne popunjava | Q59: za odabrano razdoblje i razinu obrazac se ne popunjava | R59: za odabrano razdoblje i razinu obrazac se ne popunjava | W59: 143
B60: =Bil!B209 -> Obveze za zajmove od inozemnih osiguravajućih društava | I60: =Bil!C209 -> 198 | J60: =Bil!D209 -> 0 | K60: =Bil!E209 -> 0 | N60: 2014-08 | O60: za razdoblje 1. do 31. kolovoza 2014. godine | P60: za odabrano razdoblje i razinu obrazac se ne popunjava | Q60: za odabrano razdoblje i razinu obrazac se ne popunjava | R60: za odabrano razdoblje i razinu obrazac se ne popunjava | W60: 144
A61: Obveze | B61: =Obv!B12 -> Stanje obveza na početku izvještajnog razdoblja (=AOP 036 iz prethodnog izvještaja) | I61: =Obv!C12 -> 1 | J61: - | K61: =Obv!D12 -> 0 | N61: 2014-09 | O61: za razdoblje 1. do 30. rujna 2014. godine | P61: za razdoblje 1. srpnja do 30. rujna 2014. godine | Q61: za razdoblje 1. siječnja do 30. rujna 2014. godine | R61: za odabrano razdoblje i razinu obrazac se ne popunjava | W61: 145
B62: =Obv!B47 -> Stanje obveza na kraju izvještajnog razdoblja (AOP 001+002-019) i (AOP 037+090) | I62: =Obv!C47 -> 36 | J62: - | K62: =Obv!D47 -> 0 | N62: 2014-10 | O62: za razdoblje 1. do 31. listopada 2014. godine | P62: za odabrano razdoblje i razinu obrazac se ne popunjava | Q62: za odabrano razdoblje i razinu obrazac se ne popunjava | R62: za odabrano razdoblje i razinu obrazac se ne popunjava | W62: 146
B63: =Obv!B48 -> Stanje dospjelih obveza na kraju izvještajnog razdoblja (AOP 038+043+079+084) | I63: =Obv!C48 -> 37 | J63: - | K63: =Obv!D48 -> 0 | N63: 2014-11 | O63: za razdoblje 1. do 30. studenoga 2014. godine | P63: za odabrano razdoblje i razinu obrazac se ne popunjava | Q63: za odabrano razdoblje i razinu obrazac se ne popunjava | R63: za odabrano razdoblje i razinu obrazac se ne popunjava | W63: 147
B64: =Obv!B54 -> Ukupno obveze za rashode poslovanja (AOP 044+049+054+059+064+069+074) | I64: =Obv!C54 -> 43 | J64: - | K64: =Obv!D54 -> 0 | N64: 2014-12 | O64: za razdoblje 1. do 31. prosinca 2014. godine | P64: za razdoblje 1. listopada do 31. prosinca 2014. godine | Q64: za razdoblje 1. siječnja do 31. prosinca 2014. godine | R64: stanje na dan 31. prosinca 2014. godine | W64: 149
A65: S-PR-RAS | B65: =SPRRAS!B12 -> PRIHODI POSLOVANJA (AOP 002 do 007) | I65: =SPRRAS!C12 -> 1 | J65: =SPRRAS!D12 -> 0 | K65: =SPRRAS!E12 -> 0 | W65: 150
B66: =SPRRAS!B19 -> RASHODI POSLOVANJA (AOP 009 do 015) | I66: =SPRRAS!C19 -> 8 | J66: =SPRRAS!D19 -> 0 | K66: =SPRRAS!E19 -> 0 | N66: 1 | O66: ANDRIJAŠEVCI | P66: 16 | R66: 0 | S66: NEMA RAZDJELA | W66: 161
B67: =SPRRAS!B38 -> UKUPNI PRIHODI (AOP 001+020) | I67: =SPRRAS!C38 -> 27 | J67: =SPRRAS!D38 -> 0 | K67: =SPRRAS!E38 -> 0 | N67: 2 | O67: ANTUNOVAC | P67: 14 | R67: 10 | S67: HRVATSKI SABOR | W67: 162
B68: =SPRRAS!B53 -> Rashodi za zaposlene kod korisnika (AOP 042+045+046) | I68: =SPRRAS!C53 -> 41 | J68: =SPRRAS!D53 -> 0 | K68: =SPRRAS!E53 -> 0 | N68: 3 | O68: BABINA GREDA | P68: 16 | R68: 13 | S68: URED PREDSJEDNIKA REPUBLIKE HRVATSKE PO PRESTANKU OBNAŠANJA | W68: 163
N69: 4 | O69: BAKAR | P69: 8 | R69: 15 | S69: URED PREDSJEDNIKA REPUBLIKE HRVATSKE | W69: 164
A70: U ___________________________________ dana _________________ 20____ godine. | J70: ="Verzija Excel datoteke: " & MID(Skriveni!K36,1,1) & "." & MID(Skriveni!K36,2,1) & "." & MID(Skriveni!K36,3,1) & "." -> Verzija Excel datoteke: 3.0.6. | N70: 5 | O70: BALE | P70: 18 | R70: 17 | S70: USTAVNI SUD REPUBLIKE HRVATSKE | W70: 170
N71: 6 | O71: BARBAN | P71: 18 | R71: 18 | S71: AGENCIJA ZA ZAŠTITU TRŽIŠNOG NATJECANJA | W71: 210
A72: (potpis voditelja računovodstva) | F72: M.P. | H72: (potpis zakonskog predstavnika) | N72: 7 | O72: BARILOVIĆI | P72: 4 | R72: 20 | S72: VLADA REPUBLIKE HRVATSKE | W72: 220
N73: 8 | O73: BAŠKA | P73: 8 | R73: 25 | S73: MINISTARSTVO FINANCIJA | W73: 230
N74: 9 | O74: BAŠKA VODA | P74: 17 | R74: 26 | S74: DRŽAVNI URED ZA TRGOVINSKU POLITIKU | W74: 240
N75: 10 | O75: BEBRINA | P75: 12 | R75: 27 | S75: RH SIGURNOSNO-OBAVJEŠTAJNA AGENCIJA | W75: 311
N76: 11 | O76: BEDEKOVČINA | P76: 2 | R76: 28 | S76: DRŽAVNI URED ZA SREDIŠNJU JAVNU NABAVU | W76: 312
N77: 12 | O77: BEDNJA | P77: 5 | R77: 29 | S77: DRŽAVNI URED ZA UPRAVLJANJE DRŽAVNOM IMOVINOM | W77: 321
N78: 13 | O78: BELI MANASTIR | P78: 14 | R78: 30 | S78: MINISTARSTVO OBRANE | W78: 322
N79: 15 | O79: BELICA | P79: 20 | R79: 32 | S79: DRŽAVNI URED ZA HRVATE IZVAN REPUBLIKE HRVATSKE | W79: 510
N80: 16 | O80: BELIŠĆE | P80: 14 | R80: 33 | S80: DRŽAVNI URED ZA OBNOVU I STAMBENO ZBRINJAVANJE | W80: 520
N81: 17 | O81: BENKOVAC | P81: 13 | R81: 40 | S81: MINISTARSTVO UNUTARNJIH POSLOVA | W81: 610
N82: 18 | O82: BEREK | P82: 7 | R82: 41 | S82: MINISTARSTVO BRANITELJA | W82: 620
N83: 19 | O83: BERETINEC | P83: 5 | R83: 48 | S83: MINISTARSTVO VANJSKIH I EUROPSKIH POSLOVA | W83: 710
N84: 20 | O84: BIBINJE | P84: 13 | R84: 49 | S84: MINISTARSTVO GOSPODARSTVA | W84: 721
N85: 21 | O85: BILJE | P85: 14 | R85: 51 | S85: MINISTARSTVO PODUZETNIŠTVA I OBRTA | W85: 729
N86: 22 | O86: BIOGRAD NA MORU | P86: 13 | R86: 55 | S86: MINISTARSTVO KULTURE | W86: 811
N87: 23 | O87: BIZOVAC | P87: 14 | R87: 60 | S87: MINISTARSTVO POLJOPRIVREDE | W87: 812
N88: 24 | O88: BJELOVAR | P88: 7 | R88: 61 | S88: MINISTARSTVO REGIONALNOGA RAZVOJA I FONDOVA EUROPSKE UNIJE | W88: 891
N89: 25 | O89: BLATO | P89: 19 | R89: 65 | S89: MINISTARSTVO POMORSTVA, PROMETA I INFRASTRUKTURE | W89: 892
N90: 26 | O90: BOGDANOVCI | P90: 16 | R90: 76 | S90: MINISTARSTVO GRADITELJSTVA I PROSTORNOGA UREĐENJA | W90: 893
N91: 27 | O91: BOL | P91: 17 | R91: 77 | S91: MINISTARSTVO ZAŠTITE OKOLIŠA I PRIRODE | W91: 899
N92: 29 | O92: BOROVO | P92: 16 | R92: 80 | S92: MINISTARSTVO ZNANOSTI, OBRAZOVANJA I SPORTA | W92: 910
N93: 30 | O93: BOSILJEVO | P93: 4 | R93: 86 | S93: MINISTARSTVO RADA I MIROVINSKOGA SUSTAVA | W93: 990
N94: 32 | O94: BOŠNJACI | P94: 16 | R94: 90 | S94: MINISTARSTVO TURIZMA | W94: 1011
N95: 33 | O95: BRCKOVLJANI | P95: 1 | R95: 95 | S95: MINISTARSTVO UPRAVE | W95: 1012
N96: 34 | O96: BRDOVEC | P96: 1 | R96: 96 | S96: MINISTARSTVO ZDRAVLJA | W96: 1013
N97: 35 | O97: BRESTOVAC | P97: 11 | R97: 102 | S97: MINISTARSTVO SOCIJALNE POLITIKE I MLADIH | W97: 1020
N98: 36 | O98: BREZNICA | P98: 5 | R98: 106 | S98: HRVATSKA AKADEMIJA ZNANOSTI I UMJETNOSTI | W98: 1031
N99: 37 | O99: BRINJE | P99: 9 | R99: 110 | S99: MINISTARSTVO PRAVOSUĐA | W99: 1032
N100: 38 | O100: BROD MORAVICE | P100: 8 | R100: 120 | S100: URED PUČKOG PRAVOBRANITELJA | W100: 1039
N101: 39 | O101: BRODSKI STUPNIK | P101: 12 | R101: 121 | S101: PRAVOBRANITELJ ZA DJECU | W101: 1041
N102: 40 | O102: BRTONIGLA | P102: 18 | R102: 122 | S102: PRAVOBRANITELJ/ICA ZA RAVNOPRAVNOST SPOLOVA | W102: 1042
N103: 41 | O103: BUDINŠČINA | P103: 2 | R103: 123 | S103: PRAVOBRANITELJ ZA OSOBE S INVALIDITETOM | W103: 1051
N104: 42 | O104: BUJE | P104: 18 | R104: 160 | S104: DRŽAVNI ZAVOD ZA STATISTIKU | W104: 1052
N105: 43 | O105: BUZET | P105: 18 | R105: 185 | S105: DRŽAVNI URED ZA REVIZIJU | W105: 1061
N106: 44 | O106: CERNA | P106: 16 | R106: 196 | S106: DRŽAVNA KOMISIJA ZA KONTROLU POSTUPAKA JAVNE NABAVE | W106: 1062
N107: 46 | O107: CERNIK | P107: 12 | R107: 225 | S107: DRŽAVNI INSPEKTORAT | W107: 1071
N108: 47 | O108: CEROVLJE | P108: 18 | R108: 230 | S108: KOMISIJA ZA ODNOSE S VJERSKIM ZAJEDNICAMA | W108: 1072
N109: 48 | O109: CESTICA | P109: 5 | R109: 235 | S109: DIGITALNI INFORMACIJSKO-DOKUMENTACIJSKI URED | W109: 1073
N110: 49 | O110: CETINGRAD | P110: 4 | R110: 240 | S110: URED VIJEĆA ZA NACIONALNU SIGURNOST | W110: 1081
N111: 50 | O111: CISTA PROVO | P111: 17 | R111: 241 | S111: OPERATIVNO-TEHNIČKI CENTAR ZA NADZOR TELEKOMUNIKACIJA | W111: 1082
N112: 51 | O112: CIVLJANE | P112: 15 | R112: 242 | S112: ZAVOD ZA SIGURNOST INFORMACIJSKIH SUSTAVA | W112: 1083
N113: 52 | O113: CRES | P113: 8 | R113: 250 | S113: AGENCIJA ZA ZAŠTITU OSOBNIH PODATAKA | W113: 1084
N114: 53 | O114: CRIKVENICA | P114: 8 | R114: 256 | S114: DRŽAVNI ZAVOD ZA RADIOLOŠKU I NUKLEARNU SIGURNOST | W114: 1085
N115: 54 | O115: CRNAC | P115: 10 | R115: 257 | S115: AGENCIJA ZA REGULACIJU TRŽIŠTA ŽELJEZNIČKIH USLUGA | W115: 1086
N116: 55 | O116: ČABAR | P116: 8 | R116: 258 | S116: POVJERENIK ZA INFORMIRANJE | W116: 1089
N117: 56 | O117: ČAČINCI | P117: 10 | W117: 1091
N118: 57 | O118: ČAĐAVICA | P118: 10 | W118: 1092
N119: 58 | O119: ČAGLIN | P119: 11 | W119: 1101
N120: 60 | O120: ČAKOVEC | P120: 20 | W120: 1102
N121: 61 | O121: ČAVLE | P121: 8 | W121: 1103
N122: 63 | O122: ČAZMA | P122: 7 | W122: 1104
N123: 64 | O123: ČEMINAC | P123: 14 | W123: 1105
N124: 65 | O124: ČEPIN | P124: 14 | W124: 1106
N125: 66 | O125: DARDA | P125: 14 | W125: 1107
N126: 67 | O126: DARUVAR | P126: 7 | W126: 1200
N127: 68 | O127: DAVOR | P127: 12 | W127: 1310
N128: 69 | O128: DELNICE | P128: 8 | W128: 1320
N129: 70 | O129: DESINIĆ | P129: 2 | W129: 1330
N130: 71 | O130: DEŽANOVAC | P130: 7 | W130: 1391
N131: 72 | O131: DICMO | P131: 17 | W131: 1392
N132: 74 | O132: DOBRINJ | P132: 8 | W132: 1393
N133: 75 | O133: DOMAŠINEC | P133: 20 | W133: 1394
N134: 77 | O134: BRELA | P134: 17 | W134: 1395
N135: 78 | O135: DONJA DUBRAVA | P135: 20 | W135: 1396
N136: 79 | O136: DONJA STUBICA | P136: 2 | W136: 1399
N137: 80 | O137: DONJA VOĆA | P137: 5 | W137: 1411
N138: 81 | O138: DONJI ANDRIJEVCI | P138: 12 | W138: 1412
N139: 82 | O139: DONJI KRALJEVEC | P139: 20 | W139: 1413
N140: 83 | O140: DONJI KUKURUZARI | P140: 3 | W140: 1414
N141: 84 | O141: DONJI LAPAC | P141: 9 | W141: 1419
N142: 85 | O142: DONJI MARTIJANEC | P142: 5 | W142: 1420
N143: 86 | O143: DONJI MIHOLJAC | P143: 14 | W143: 1431
N144: 87 | O144: MUĆ | P144: 17 | W144: 1439
N145: 88 | O145: PROLOŽAC | P145: 17 | W145: 1511
N146: 89 | O146: DONJI VIDOVEC | P146: 20 | W146: 1512
N147: 90 | O147: DRAGANIĆ | P147: 4 | W147: 1520
N148: 91 | O148: DRAŽ | P148: 14 | W148: 1610
N149: 92 | O149: DRENOVCI | P149: 16 | W149: 1621
N150: 94 | O150: DRENJE | P150: 14 | W150: 1622
N151: 95 | O151: DRNIŠ | P151: 15 | W151: 1623
N152: 96 | O152: DRNJE | P152: 6 | W152: 1624
N153: 97 | O153: DUBRAVA | P153: 1 | W153: 1629
N154: 98 | O154: DUBROVNIK | P154: 19 | W154: 1711
N155: 99 | O155: DUGA RESA | P155: 4 | W155: 1712
N156: 100 | O156: DUGI RAT | P156: 17 | W156: 1721
N157: 101 | O157: DUGO SELO | P157: 1 | W157: 1722
N158: 102 | O158: DVOR | P158: 3 | W158: 1723
N159: 103 | O159: ĐAKOVO | P159: 14 | W159: 1724
N160: 104 | O160: ĐELEKOVEC | P160: 6 | W160: 1729
N161: 105 | O161: ĐULOVAC | P161: 7 | W161: 1811
N162: 106 | O162: ĐURĐENOVAC | P162: 14 | W162: 1812
N163: 107 | O163: ĐURĐEVAC | P163: 6 | W163: 1813
N164: 108 | O164: ĐURMANEC | P164: 2 | W164: 1814
N165: 110 | O165: ERDUT | P165: 14 | W165: 1820
N166: 111 | O166: ERNESTINOVO | P166: 14 | W166: 1910
N167: 113 | O167: ERVENIK | P167: 15 | W167: 1920
N168: 114 | O168: FARKAŠEVAC | P168: 1 | W168: 2011
N169: 115 | O169: FERDINANDOVAC | P169: 6 | W169: 2012
N170: 116 | O170: FERIČANCI | P170: 14 | W170: 2013
N171: 117 | O171: FUŽINE | P171: 8 | W171: 2014
N172: 118 | O172: GARČIN | P172: 12 | W172: 2015
N173: 119 | O173: GAREŠNICA | P173: 7 | W173: 2016
N174: 120 | O174: GENERALSKI STOL | P174: 4 | W174: 2017
N175: 121 | O175: GLINA | P175: 3 | W175: 2020
N176: 122 | O176: GOLA | P176: 6 | W176: 2030
N177: 123 | O177: GORIČAN | P177: 20 | W177: 2041
N178: 124 | O178: GORJANI | P178: 14 | W178: 2042
N179: 125 | O179: GORNJA STUBICA | P179: 2 | W179: 2051
N180: 127 | O180: GORNJI BOGIĆEVCI | P180: 12 | W180: 2052
N181: 129 | O181: GORNJI KNEGINEC | P181: 5 | W181: 2053
N182: 130 | O182: GOSPIĆ | P182: 9 | W182: 2059
N183: 131 | O183: GRAČAC | P183: 13 | W183: 2060
N184: 132 | O184: GRAČIŠĆE | P184: 18 | W184: 2110
N185: 133 | O185: GRAD ZAGREB | P185: 21 | W185: 2120
N186: 134 | O186: GRADAC | P186: 17 | W186: 2211
N187: 135 | O187: GRADEC | P187: 1 | W187: 2219
N188: 136 | O188: GRADINA | P188: 10 | W188: 2221
N189: 137 | O189: GRADIŠTE | P189: 16 | W189: 2222
N190: 138 | O190: GROŽNJAN | P190: 18 | W190: 2223
N191: 139 | O191: GRUBIŠNO POLJE | P191: 7 | W191: 2229
N192: 140 | O192: GUNDINCI | P192: 12 | W192: 2311
N193: 141 | O193: GUNJA | P193: 16 | W193: 2312
N194: 144 | O194: HERCEGOVAC | P194: 7 | W194: 2313
N195: 145 | O195: HLEBINE | P195: 6 | W195: 2314
N196: 146 | O196: HRAŠĆINA | P196: 2 | W196: 2319
N197: 148 | O197: HRVACE | P197: 17 | W197: 2320
N198: 149 | O198: HRVATSKA DUBICA | P198: 3 | W198: 2331
N199: 150 | O199: HRVATSKA KOSTAJNICA | P199: 3 | W199: 2332
N200: 151 | O200: BREZNIČKI HUM | P200: 5 | W200: 2341
N201: 152 | O201: HUM NA SUTLI | P201: 2 | W201: 2342
N202: 153 | O202: HVAR | P202: 17 | W202: 2343
N203: 154 | O203: ILOK | P203: 16 | W203: 2344
N204: 155 | O204: IMOTSKI | P204: 17 | W204: 2349
N205: 156 | O205: IVANEC | P205: 5 | W205: 2351
N206: 158 | O206: IVANIĆ-GRAD | P206: 1 | W206: 2352
N207: 159 | O207: IVANKOVO | P207: 16 | W207: 2361
... 447 more rows

Sheet PRRAS
A1: <–––– Povratak na RefStr | C1: Kontrole obrasca PR-RAS ––––>
A2: IZVJEŠTAJ O PRIHODIMA I RASHODIMA, PRIMICIMA I IZDACIMA | E2: Obrazac PR-RAS VP 151
A3: =IF(RefStr!F6<>"",LOOKUP(RefStr!F6,RefStr!N40:N64,RefStr!Q40:Q64)," - razdoblje izvještavanja nije odabrano - ") -> za razdoblje 1. siječnja do 31. prosinca 2014. godine
A4: Obveznik: | B4: ="RKP: " & TEXT(INT(VALUE(RefStr!B6)),"00000") & ", " & "MB: " & TEXT(INT(VALUE(RefStr!B8)), "00000000") & " " & RefStr!B10 -> RKP: 14402, MB: 03324281 OŠ VUGROVEC - KAŠINA
B5: =RefStr!B12 & " " & RefStr!C12 & ", " & RefStr!B14 -> 10362 KAŠINA, IVANA MAŽURANIĆA 43
B6: ="Razina: " & RefStr!B16 & ", Razdjel: " & TEXT(INT(VALUE(RefStr!B20)), "000") -> Razina: 31, Razdjel: 000
B7: ="Djelatnost: " & RefStr!B18 & " " & RefStr!C18 -> Djelatnost: 8520 Osnovno obrazovanje
F8: iznosi u kunama, bez lipa
A9: Račun iz rač. plana | B9: NAZIV | C9: AOP | D9: Ostvareno u izvještajnom razdoblju prethodne godine | E9: Ostvareno u izvještajnom razdoblju tekuće godine | F9: Indeks (5/4)
A10: 1 | B10: 2 | C10: 3 | D10: 4 | E10: 5 | F10: 6
A11: PRIHODI I RASHODI POSLOVANJA
A12: 6 | B12: PRIHODI POSLOVANJA (AOP 002+039+047+067+090+107+114+119) | C12: 1 | D12: =D13+D50+D58+D78+D101+D118+D125+D130 -> 11037394 | E12: =E13+E50+E58+E78+E101+E118+E125+E130 -> 12004529 | F12: =IF(D12>0,IF(E12/D12>=100,">>100",E12/D12*100),"-") -> 108.7623492
A13: 61 | B13: Prihodi od poreza (AOP 003+012+018+024+032+035) | C13: 2 | D13: =D14+D23+D29+D35+D43+D46 -> 0 | E13: =E14+E23+E29+E35+E43+E46 -> 0 | F13: =IF(D13>0,IF(E13/D13>=100,">>100",E13/D13*100),"-") -> -
A14: 611 | B14: Porez i prirez na dohodak (AOP 004 do 009 - 010 - 011) | C14: 3 | D14: =SUM(D15:D20)-D21-D22 -> 0 | E14: =SUM(E15:E20)-E21-E22 -> 0 | F14: -
A15: 6111 | B15: Porez i prirez na dohodak od nesamostalnog rada | C15: 4 | D15: 0 | E15: 0 | F15: -
A16: 6112 | B16: Porez i prirez na dohodak od samostalnih djelatnosti | C16: 5 | D16: 0 | E16: 0 | F16: -
A17: 6113 | B17: Porez i prirez na dohodak od imovine i imovinskih prava | C17: 6 | D17: 0 | E17: 0 | F17: -
A18: 6114 | B18: Porez i prirez na dohodak od kapitala | C18: 7 | D18: 0 | E18: 0 | F18: -
A19: 6115 | B19: Porez i prirez na dohodak po godišnjoj prijavi | C19: 8 | D19: 0 | E19: 0 | F19: -
A20: 6116 | B20: Porez i prirez na dohodak utvrđen u postupku nadzora za prethodne godine | C20: 9 | D20: 0 | E20: 0 | F20: -
A21: 6117 | B21: Povrat poreza i prireza na dohodak po godišnjoj prijavi | C21: 10 | D21: 0 | E21: 0 | F21: -
A22: 6119 | B22: Povrat više ostvarenog poreza na dohodak za decentralizirane funkcije | C22: 11 | D22: 0 | E22: 0 | F22: -
A23: 612 | B23: Porez na dobit (AOP 013 do 016 - 017) | C23: 12 | D23: =SUM(D24:D27)-D28 -> 0 | E23: =SUM(E24:E27)-E28 -> 0 | F23: -
A24: 6121 | B24: Porez na dobit od poduzetnika | C24: 13 | D24: 0 | E24: 0 | F24: -
A25: 6122 | B25: Porez na dobit po odbitku na naknade za korištenje prava i za usluge | C25: 14 | D25: 0 | E25: 0 | F25: -
A26: 6123 | B26: Porez na dobit po odbitku na kamate, dividende i udjele u dobiti | C26: 15 | D26: 0 | E26: 0 | F26: -
A27: 6124 | B27: Porez na dobit po godišnjoj prijavi | C27: 16 | D27: 0 | E27: 0 | F27: -
A28: 6125 | B28: Povrat poreza na dobit po godišnjoj prijavi | C28: 17 | D28: 0 | E28: 0 | F28: -
A29: 613 | B29: Porezi na imovinu (AOP 019 do 023) | C29: 18 | D29: =SUM(D30:D34) -> 0 | E29: =SUM(E30:E34) -> 0 | F29: -
A30: 6131 | B30: Stalni porezi na nepokretnu imovinu | C30: 19 | D30: 0 | E30: 0 | F30: -
A31: 6132 | B31: Porez na nasljedstva i darove | C31: 20 | D31: 0 | E31: 0 | F31: -
A32: 6133 | B32: Porez na kapitalne i financijske transakcije | C32: 21 | D32: 0 | E32: 0 | F32: -
A33: 6134 | B33: Povremeni porezi na imovinu | C33: 22 | D33: 0 | E33: 0 | F33: -
A34: 6135 | B34: Ostali stalni porezi na imovinu | C34: 23 | D34: 0 | E34: 0 | F34: -
A35: 614 | B35: Porezi na robu i usluge (AOP 025 do 031) | C35: 24 | D35: =SUM(D36:D42) -> 0 | E35: =SUM(E36:E42) -> 0 | F35: -
A36: 6141 | B36: Porez na dodanu vrijednost | C36: 25 | D36: 0 | E36: 0 | F36: -
A37: 6142 | B37: Porez na promet | C37: 26 | D37: 0 | E37: 0 | F37: -
A38: 6143 | B38: Posebni porezi i trošarine | C38: 27 | D38: 0 | E38: 0 | F38: -
A39: 6145 | B39: Porezi na korištenje dobara ili izvođenje aktivnosti | C39: 28 | D39: 0 | E39: 0 | F39: -
A40: 6146 | B40: Ostali porezi na robu i usluge | C40: 29 | D40: 0 | E40: 0 | F40: -
A41: 6147 | B41: Porez na dobitke od igara na sreću i ostali porezi od igara na sreću | C41: 30 | D41: 0 | E41: 0 | F41: -
A42: 6148 | B42: Naknade za priređivanje igara na sreću | C42: 31 | D42: 0 | E42: 0 | F42: -
A43: 615 | B43: Porezi na međunarodnu trgovinu i transakcije (AOP 033+034) | C43: 32 | D43: =SUM(D44:D45) -> 0 | E43: =SUM(E44:E45) -> 0 | F43: -
A44: 6151 | B44: Carine i carinske pristojbe | C44: 33 | D44: 0 | E44: 0 | F44: -
A45: 6152 | B45: Ostali porezi na međunarodnu trgovinu i transakcije | C45: 34 | D45: 0 | E45: 0 | F45: -
A46: 616 | B46: Ostali prihodi od poreza (AOP 036 do 038) | C46: 35 | D46: =SUM(D47:D49) -> 0 | E46: =SUM(E47:E49) -> 0 | F46: -
A47: 6161 | B47: Ostali prihodi od poreza koje plaćaju pravne osobe | C47: 36 | D47: 0 | E47: 0 | F47: -
A48: 6162 | B48: Ostali prihodi od poreza koje plaćaju fizičke osobe | C48: 37 | D48: 0 | E48: 0 | F48: -
A49: 6163 | B49: Ostali neraspoređeni prihodi od poreza | C49: 38 | D49: 0 | E49: 0 | F49: -
A50: 62 | B50: Doprinosi (AOP 040+043+045) | C50: 39 | D50: =D51+D54+D56 -> 0 | E50: =E51+E54+E56 -> 0 | F50: -
A51: 621 | B51: Doprinosi za zdravstveno osiguranje (AOP 041+042) | C51: 40 | D51: =SUM(D52:D53) -> 0 | E51: =SUM(E52:E53) -> 0 | F51: -
A52: 6211 | B52: Doprinosi za obvezno zdravstveno osiguranje | C52: 41 | D52: 0 | E52: 0 | F52: -
A53: 6212 | B53: Doprinosi za obvezno zdravstveno osiguranje za slučaj ozljede na radu | C53: 42 | D53: 0 | E53: 0 | F53: -
A54: 622 | B54: Doprinosi za mirovinsko osiguranje (AOP 044) | C54: 43 | D54: =D55 -> 0 | E54: =E55 -> 0 | F54: -
A55: 6221 | B55: Doprinosi za mirovinsko osiguranje | C55: 44 | D55: 0 | E55: 0 | F55: -
A56: 623 | B56: Doprinosi za zapošljavanje (AOP 046) | C56: 45 | D56: =D57 -> 0 | E56: =E57 -> 0 | F56: -
A57: 6232 | B57: Doprinosi za obvezno osiguranje u slučaju nezaposlenosti | C57: 46 | D57: 0 | E57: 0 | F57: -
A58: 63 | B58: Pomoći iz inozemstva (darovnice) i od subjekata unutar općeg proračuna (AOP 048+051+056+061+064) | C58: 47 | D58: =D59+D62+D67+D72+D75 -> 0 | E58: =E59+E62+E67+E72+E75 -> 0 | F58: -
A59: 631 | B59: Pomoći od inozemnih vlada (AOP 049+050) | C59: 48 | D59: =SUM(D60:D61) -> 0 | E59: =SUM(E60:E61) -> 0 | F59: -
A60: 6311 | B60: Tekuće pomoći od inozemnih vlada | C60: 49 | D60: 0 | E60: 0 | F60: -
A61: 6312 | B61: Kapitalne pomoći od inozemnih vlada | C61: 50 | D61: 0 | E61: 0 | F61: -
A62: 632 | B62: Pomoći od međunarodnih organizacija te institucija i tijela EU (AOP 052 do 055) | C62: 51 | D62: =SUM(D63:D66) -> 0 | E62: =SUM(E63:E66) -> 0 | F62: -
A63: 6321 | B63: Tekuće pomoći od međunarodnih organizacija | C63: 52 | D63: 0 | E63: 0 | F63: -
A64: 6322 | B64: Kapitalne pomoći od međunarodnih organizacija | C64: 53 | D64: 0 | E64: 0 | F64: -
A65: 6323 | B65: Tekuće pomoći od institucija i tijela EU | C65: 54 | D65: 0 | E65: 0 | F65: -
A66: 6324 | B66: Kapitalne pomoći od institucija i tijela EU | C66: 55 | D66: 0 | E66: 0 | F66: -
A67: 633 | B67: Pomoći iz proračuna (AOP 057 do 060) | C67: 56 | D67: =SUM(D68:D71) -> 0 | E67: =SUM(E68:E71) -> 0 | F67: -
A68: 6331 | B68: Tekuće pomoći iz proračuna | C68: 57 | D68: 0 | E68: 0 | F68: -
A69: 6332 | B69: Kapitalne pomoći iz proračuna | C69: 58 | D69: 0 | E69: 0 | F69: -
A70: 6333 | B70: Tekuće pomoći od proračunskih korisnika temeljem prijenosa sredstava EU | C70: 59 | D70: 0 | E70: 0 | F70: -
A71: 6334 | B71: Kapitalne pomoći od proračunskih korisnika temeljem prijenosa sredstava EU | C71: 60 | D71: 0 | E71: 0 | F71: -
A72: 634 | B72: Pomoći od ostalih subjekata unutar općeg proračuna (AOP 062+063) | C72: 61 | D72: =SUM(D73:D74) -> 0 | E72: =SUM(E73:E74) -> 0 | F72: -
A73: 6341 | B73: Tekuće pomoći od ostalih subjekata unutar općeg proračuna | C73: 62 | D73: 0 | E73: 0 | F73: -
A74: 6342 | B74: Kapitalne pomoći od ostalih subjekata unutar općeg proračuna | C74: 63 | D74: 0 | E74: 0 | F74: -
A75: 635 | B75: Pomoći izravnanja za decentralizirane funkcije (AOP 065+066) | C75: 64 | D75: =SUM(D76:D77) -> 0 | E75: =SUM(E76:E77) -> 0 | F75: -
A76: 6351 | B76: Tekuće pomoći izravnanja za decentralizirane funkcije | C76: 65 | D76: 0 | E76: 0 | F76: -
A77: 6352 | B77: Kapitalne pomoći izravnanja za decentralizirane funkcije | C77: 66 | D77: 0 | E77: 0 | F77: =IF(D77>0,IF(E77/D77>=100,">>100",E77/D77*100),"-") -> -
A78: 64 | B78: Prihodi od imovine (AOP 068+076+082) | C78: 67 | D78: =D79+D87+D93 -> 491 | E78: =E79+E87+E93 -> 276 | F78: 56.21181263
A79: 641 | B79: Prihodi od financijske imovine (AOP 069 do 075) | C79: 68 | D79: =SUM(D80:D86) -> 491 | E79: =SUM(E80:E86) -> 276 | F79: 56.21181263
A80: 6412 | B80: Prihodi od kamata po vrijednosnim papirima | C80: 69 | D80: 0 | E80: 0 | F80: -
A81: 6413 | B81: Kamate na oročena sredstva i depozite po viđenju | C81: 70 | D81: 491 | E81: 276 | F81: 56.21181263
A82: 6414 | B82: Prihodi od zateznih kamata | C82: 71 | D82: 0 | E82: 0 | F82: -
A83: 6415 | B83: Prihodi od pozitivnih tečajnih razlika i razlika zbog primjene valutne klauzule | C83: 72 | D83: 0 | E83: 0 | F83: -
A84: 6416 | B84: Prihodi od dividendi | C84: 73 | D84: 0 | E84: 0 | F84: -
A85: 6417 | B85: Prihodi iz dobiti trgovačkih društava, kreditnih i ostalih financijskih institucija po posebnim propisima | C85: 74 | D85: 0 | E85: 0 | F85: -
A86: 6419 | B86: Ostali prihodi od financijske imovine | C86: 75 | D86: 0 | E86: 0 | F86: -
A87: 642 | B87: Prihodi od nefinancijske imovine (AOP 077 do 081) | C87: 76 | D87: =SUM(D88:D92) -> 0 | E87: =SUM(E88:E92) -> 0 | F87: -
A88: 6421 | B88: Naknade za koncesije | C88: 77 | D88: 0 | E88: 0 | F88: -
A89: 6422 | B89: Prihodi od zakupa i iznajmljivanja imovine | C89: 78 | D89: 0 | E89: 0 | F89: -
A90: 6423 | B90: Naknada za korištenje nefinancijske imovine | C90: 79 | D90: 0 | E90: 0 | F90: -
A91: 6424 | B91: Naknade za ceste | C91: 80 | D91: 0 | E91: 0 | F91: -
A92: 6429 | B92: Ostali prihodi od nefinancijske imovine | C92: 81 | D92: 0 | E92: 0 | F92: -
A93: 643 | B93: Prihodi od kamata na dane zajmove (AOP 083 do 089) | C93: 82 | D93: =SUM(D94:D100) -> 0 | E93: =SUM(E94:E100) -> 0 | F93: -
A94: 6431 | B94: Prihodi od kamata na dane zajmove međunarodnim organizacijama, institucijama i tijelima EU te inozemnim vladama | C94: 83 | D94: 0 | E94: 0 | F94: -
A95: 6432 | B95: Prihodi od kamata na dane zajmove neprofitnim organizacijama, građanima i kućanstvima | C95: 84 | D95: 0 | E95: 0 | F95: -
A96: 6433 | B96: Prihodi od kamata na dane zajmove kreditnim i ostalim financijskim institucijama u javnom sektoru | C96: 85 | D96: 0 | E96: 0 | F96: -
A97: 6434 | B97: Prihodi od kamata na dane zajmove trgovačkim društvima u javnom sektoru | C97: 86 | D97: 0 | E97: 0 | F97: -
A98: 6435 | B98: Prihodi od kamata na dane zajmove kreditnim i ostalim financijskim institucijama izvan javnog sektora | C98: 87 | D98: 0 | E98: 0 | F98: -
A99: 6436 | B99: Prihodi od kamata na dane zajmove trgovačkim društvima i obrtnicima izvan javnog sektora | C99: 88 | D99: 0 | E99: 0 | F99: -
A100: 6437 | B100: Prihodi od kamata na dane zajmove drugim razinama vlasti | C100: 89 | D100: 0 | E100: 0 | F100: -
A101: 65 | B101: Prihodi od upravnih i administrativnih pristojbi, pristojbi po posebnim propisima i naknada (AOP 091+096+103) | C101: 90 | D101: =D102+D107+D114 -> 626906 | E101: =E102+E107+E114 -> 626425 | F101: 99.92327398
A102: 651 | B102: Upravne i administrativne pristojbe (AOP 092 do 095) | C102: 91 | D102: =SUM(D103:D106) -> 0 | E102: =SUM(E103:E106) -> 0 | F102: -
A103: 6511 | B103: Državne upravne i sudske pristojbe | C103: 92 | D103: 0 | E103: 0 | F103: -
A104: 6512 | B104: Županijske, gradske i općinske pristojbe i naknade | C104: 93 | D104: 0 | E104: 0 | F104: -
A105: 6513 | B105: Ostale upravne pristojbe i naknade | C105: 94 | D105: 0 | E105: 0 | F105: -
A106: 6514 | B106: Ostale pristojbe i naknade | C106: 95 | D106: 0 | E106: 0 | F106: -
A107: 652 | B107: Prihodi po posebnim propisima (AOP 097 do 102) | C107: 96 | D107: =SUM(D108:D113) -> 626906 | E107: =SUM(E108:E113) -> 626425 | F107: 99.92327398
A108: 6521 | B108: Prihodi državne uprave | C108: 97 | D108: 0 | E108: 0 | F108: -
A109: 6522 | B109: Prihodi vodnog gospodarstva | C109: 98 | D109: 0 | E109: 0 | F109: -
A110: 6524 | B110: Doprinosi za šume | C110: 99 | D110: 0 | E110: 0 | F110: -
A111: 6525 | B111: Mjesni samodoprinos | C111: 100 | D111: 0 | E111: 0 | F111: -
A112: 6526 | B112: Ostali nespomenuti prihodi | C112: 101 | D112: 626906 | E112: 626425 | F112: 99.92327398
A113: 6527 | B113: Naknade od financijske imovine | C113: 102 | D113: 0 | E113: 0 | F113: -
A114: 653 | B114: Komunalni doprinosi i naknade (AOP 104 do 106) | C114: 103 | D114: =SUM(D115:D117) -> 0 | E114: =SUM(E115:E117) -> 0 | F114: -
A115: 6531 | B115: Komunalni doprinosi | C115: 104 | D115: 0 | E115: 0 | F115: -
A116: 6532 | B116: Komunalne naknade | C116: 105 | D116: 0 | E116: 0 | F116: -
A117: 6533 | B117: Naknade za priključak | C117: 106 | D117: 0 | E117: 0 | F117: -
A118: 66 | B118: Prihodi od prodaje proizvoda i robe te pruženih usluga i prihodi od donacija (AOP 108+111) | C118: 107 | D118: =D119+D122 -> 62057 | E118: =E119+E122 -> 42207 | F118: 68.01327812
A119: 661 | B119: Prihodi od prodaje proizvoda i robe te pruženih usluga (AOP 109+110) | C119: 108 | D119: =D120+D121 -> 62057 | E119: =E120+E121 -> 42207 | F119: 68.01327812
A120: 6614 | B120: Prihodi od prodaje proizvoda i robe | C120: 109 | D120: 0 | E120: 0 | F120: -
A121: 6615 | B121: Prihodi od pruženih usluga | C121: 110 | D121: 62057 | E121: 42207 | F121: 68.01327812
A122: 663 | B122: Donacije od pravnih i fizičkih osoba izvan općeg proračuna (AOP 112+113) | C122: 111 | D122: =D123+D124 -> 0 | E122: =E123+E124 -> 0 | F122: -
A123: 6631 | B123: Tekuće donacije | C123: 112 | D123: 0 | E123: 0 | F123: -
A124: 6632 | B124: Kapitalne donacije | C124: 113 | D124: 0 | E124: 0 | F124: -
A125: 67 | B125: Prihodi iz proračuna (AOP 115) | C125: 114 | D125: =D126 -> 10342492 | E125: =E126 -> 11308266 | F125: 109.3379236
A126: 671 | B126: Prihodi iz proračuna za financiranje redovne djelatnosti proračunskih korisnika (AOP 116 do 118) | C126: 115 | D126: =SUM(D127:D129) -> 10342492 | E126: =SUM(E127:E129) -> 11308266 | F126: 109.3379236
A127: 6711 | B127: Prihodi za financiranje rashoda poslovanja | C127: 116 | D127: 10258407 | E127: 11081580 | F127: 108.0243745
A128: 6712 | B128: Prihodi za financiranje rashoda za nabavu nefinancijske imovine | C128: 117 | D128: 84085 | E128: 226686 | F128: 269.5914848
A129: 6713 | B129: Prihodi na temelju ugovorenih obveza | C129: 118 | D129: 0 | E129: 0 | F129: -
A130: 68 | B130: Kazne, upravne mjere i ostali prihodi (AOP 120+130) | C130: 119 | D130: =D131+D141 -> 5448 | E130: =E131+E141 -> 27355 | F130: 502.1108664
A131: 681 | B131: Kazne i upravne mjere (AOP 121 do 129) | C131: 120 | D131: =SUM(D132:D140) -> 0 | E131: =SUM(E132:E140) -> 0 | F131: -
A132: 6811 | B132: Kazne za carinske prekršaje | C132: 121 | D132: 0 | E132: 0 | F132: -
A133: 6812 | B133: Kazne za devizne prekršaje | C133: 122 | D133: 0 | E133: 0 | F133: -
A134: 6813 | B134: Kazne za porezne prekršaje | C134: 123 | D134: 0 | E134: 0 | F134: -
A135: 6814 | B135: Kazne za prekršaje trgovačkih društava - privredne prijestupe | C135: 124 | D135: 0 | E135: 0 | F135: -
A136: 6815 | B136: Kazne za prekršaje u prometu | C136: 125 | D136: 0 | E136: 0 | F136: -
A137: 6816 | B137: Kazne i druge mjere u kaznenom postupku | C137: 126 | D137: 0 | E137: 0 | F137: -
A138: 6817 | B138: Kazne za prekršaje na kulturnim dobrima | C138: 127 | D138: 0 | E138: 0 | F138: -
A139: 6818 | B139: Upravne mjere | C139: 128 | D139: 0 | E139: 0 | F139: -
A140: 6819 | B140: Ostale kazne | C140: 129 | D140: 0 | E140: 0 | F140: -
A141: 683 | B141: Ostali prihodi (AOP 131) | C141: 130 | D141: =D142 -> 5448 | E141: =E142 -> 27355 | F141: =IF(D141>0,IF(E141/D141>=100,">>100",E141/D141*100),"-") -> 502.1108664
A142: 6831 | B142: Ostali prihodi | C142: 131 | D142: 5448 | E142: 27355 | F142: 502.1108664
A143: 3 | B143: RASHODI POSLOVANJA (AOP 133+145+178+197+205+217+224) | C143: 132 | D143: =D144+D156+D189+D208+D216+D228+D235 -> 10990856 | E143: =E144+E156+E189+E208+E216+E228+E235 -> 11572861 | F143: 105.2953564
A144: 31 | B144: Rashodi za zaposlene (AOP 134+139+141) | C144: 133 | D144: =D145+D150+D152 -> 7856688 | E144: =E145+E150+E152 -> 8220529 | F144: 104.6309717
A145: 311 | B145: Plaće (bruto) (AOP 135 do 138) | C145: 134 | D145: =SUM(D146:D149) -> 5422763 | E145: =SUM(E146:E149) -> 5585972 | F145: 103.0097019
A146: 3111 | B146: Plaće za redovan rad | C146: 135 | D146: 5232265 | E146: 5365884 | F146: 102.5537506
A147: 3112 | B147: Plaće u naravi | C147: 136 | D147: 0 | E147: 0 | F147: -
A148: 3113 | B148: Plaće za prekovremeni rad | C148: 137 | D148: 56244 | E148: 71226 | F148: 126.637508
A149: 3114 | B149: Plaće za posebne uvjete rada | C149: 138 | D149: 134254 | E149: 148862 | F149: 110.8808676
A150: 312 | B150: Ostali rashodi za zaposlene (AOP 140) | C150: 139 | D150: =D151 -> 85981 | E150: =E151 -> 62578 | F150: 72.78119585
A151: 3121 | B151: Ostali rashodi za zaposlene | C151: 140 | D151: 85981 | E151: 62578 | F151: 72.78119585
A152: 313 | B152: Doprinosi na plaće (AOP 142 do 144) | C152: 141 | D152: =SUM(D153:D155) -> 2347944 | E152: =SUM(E153:E155) -> 2571979 | F152: 109.5417523
A153: 3131 | B153: Doprinosi za mirovinsko osiguranje | C153: 142 | D153: 1352552 | E153: 1404437 | F153: 103.8360817
A154: 3132 | B154: Doprinosi za obvezno zdravstveno osiguranje | C154: 143 | D154: 890245 | E154: 1050262 | F154: 117.9744902
A155: 3133 | B155: Doprinosi za obvezno osiguranje u slučaju nezaposlenosti | C155: 144 | D155: 105147 | E155: 117280 | F155: 111.5390834
A156: 32 | B156: Materijalni rashodi (AOP 146+151+159+169+171) | C156: 145 | D156: =D157+D162+D170+D180+D182 -> 2599075 | E156: =E157+E162+E170+E180+E182 -> 2725050 | F156: 104.8469167
A157: 321 | B157: Naknade troškova zaposlenima (AOP 147 do 150) | C157: 146 | D157: =SUM(D158:D161) -> 307030 | E157: =SUM(E158:E161) -> 358091 | F157: 116.6306224
A158: 3211 | B158: Službena putovanja | C158: 147 | D158: 25063 | E158: 33474 | F158: 133.5594302
A159: 3212 | B159: Naknade za prijevoz, za rad na terenu i odvojeni život | C159: 148 | D159: 268583 | E159: 294073 | F159: 109.4905485
A160: 3213 | B160: Stručno usavršavanje zaposlenika | C160: 149 | D160: 9736 | E160: 21920 | F160: 225.1437962
A161: 3214 | B161: Ostale naknade troškova zaposlenima | C161: 150 | D161: 3648 | E161: 8624 | F161: 236.4035088
A162: 322 | B162: Rashodi za materijal i energiju (AOP 152 do 158) | C162: 151 | D162: =SUM(D163:D169) -> 1361856 | E162: =SUM(E163:E169) -> 1206912 | F162: 88.62258565
A163: 3221 | B163: Uredski materijal i ostali materijalni rashodi | C163: 152 | D163: 119353 | E163: 105908 | F163: 88.73509673
A164: 3222 | B164: Materijal i sirovine | C164: 153 | D164: 597155 | E164: 504873 | F164: 84.5463908
A165: 3223 | B165: Energija | C165: 154 | D165: 600159 | E165: 521637 | F165: 86.91646714
A166: 3224 | B166: Materijal i dijelovi za tekuće i investicijsko održavanje | C166: 155 | D166: 30228 | E166: 34577 | F166: 114.387323
A167: 3225 | B167: Sitni inventar i auto gume | C167: 156 | D167: 13018 | E167: 35017 | F167: 268.989092
A168: 3226 | B168: Vojna oprema | C168: 157 | D168: 0 | E168: 0 | F168: -
A169: 3227 | B169: Službena, radna i zaštitna odjeća i obuća | C169: 158 | D169: 1943 | E169: 4900 | F169: 252.1873392
A170: 323 | B170: Rashodi za usluge (AOP 160 do 168) | C170: 159 | D170: =SUM(D171:D179) -> 679882 | E170: =SUM(E171:E179) -> 748902 | F170: 110.1517616
A171: 3231 | B171: Usluge telefona, pošte i prijevoza | C171: 160 | D171: 254507 | E171: 294797 | F171: 115.8306058
A172: 3232 | B172: Usluge tekućeg i investicijskog održavanja | C172: 161 | D172: 74037 | E172: 88186 | F172: 119.1107149
A173: 3233 | B173: Usluge promidžbe i informiranja | C173: 162 | D173: 3539 | E173: 4196 | F173: 118.5645663
A174: 3234 | B174: Komunalne usluge | C174: 163 | D174: 141065 | E174: 137037 | F174: 97.14457874
A175: 3235 | B175: Zakupnine i najamnine | C175: 164 | D175: 0 | E175: 0 | F175: -
A176: 3236 | B176: Zdravstvene i veterinarske usluge | C176: 165 | D176: 44490 | E176: 43005 | F176: 96.66217127
A177: 3237 | B177: Intelektualne i osobne usluge | C177: 166 | D177: 121157 | E177: 140731 | F177: 116.1558969
A178: 3238 | B178: Računalne usluge | C178: 167 | D178: 14099 | E178: 15381 | F178: 109.0928435
A179: 3239 | B179: Ostale usluge | C179: 168 | D179: 26988 | E179: 25569 | F179: 94.7421076
A180: 324 | B180: Naknade troškova osobama izvan radnog odnosa (AOP 170) | C180: 169 | D180: =D181 -> 0 | E180: =E181 -> 0 | F180: -
A181: 3241 | B181: Naknade troškova osobama izvan radnog odnosa | C181: 170 | D181: 0 | E181: 0 | F181: -
A182: 329 | B182: Ostali nespomenuti rashodi poslovanja (AOP 172 do 177) | C182: 171 | D182: =SUM(D183:D188) -> 250307 | E182: =SUM(E183:E188) -> 411145 | F182: 164.2562933
A183: 3291 | B183: Naknade za rad predstavničkih i izvršnih tijela, povjerenstava i slično | C183: 172 | D183: 41694 | E183: 107969 | F183: 258.955725
A184: 3292 | B184: Premije osiguranja | C184: 173 | D184: 30908 | E184: 29216 | F184: 94.52568914
A185: 3293 | B185: Reprezentacija | C185: 174 | D185: 883 | E185: 2580 | F185: 292.1857305
A186: 3294 | B186: Članarine | C186: 175 | D186: 1950 | E186: 2350 | F186: 120.5128205
A187: 3295 | B187: Pristojbe i naknade | C187: 176 | D187: 0 | E187: 30 | F187: -
A188: 3299 | B188: Ostali nespomenuti rashodi poslovanja | C188: 177 | D188: 174872 | E188: 269000 | F188: 153.826799
A189: 34 | B189: Financijski rashodi (AOP 179+184+192) | C189: 178 | D189: =D190+D195+D203 -> 6338 | E189: =E190+E195+E203 -> 5295 | F189: 83.54370464
A190: 341 | B190: Kamate za izdane vrijednosne papire (AOP 180 do 183) | C190: 179 | D190: =SUM(D191:D194) -> 0 | E190: =SUM(E191:E194) -> 0 | F190: -
A191: 3411 | B191: Kamate za izdane trezorske zapise | C191: 180 | D191: 0 | E191: 0 | F191: -
A192: 3412 | B192: Kamate za izdane mjenice | C192: 181 | D192: 0 | E192: 0 | F192: -
A193: 3413 | B193: Kamate za izdane obveznice | C193: 182 | D193: 0 | E193: 0 | F193: -
A194: 3419 | B194: Kamate za ostale vrijednosne papire | C194: 183 | D194: 0 | E194: 0 | F194: -
A195: 342 | B195: Kamate za primljene kredite i zajmove (AOP 185 do 191) | C195: 184 | D195: =SUM(D196:D202) -> 0 | E195: =SUM(E196:E202) -> 0 | F195: -
A196: 3421 | B196: Kamate za primljene kredite i zajmove od međunarodnih organizacija, institucija i tijela EU te inozemnih vlada | C196: 185 | D196: 0 | E196: 0 | F196: -
A197: 3422 | B197: Kamate za primljene kredite i zajmove od kreditnih i ostalih financijskih institucija u javnom sektoru | C197: 186 | D197: 0 | E197: 0 | F197: -
A198: 3423 | B198: Kamate za primljene kredite i zajmove od kreditnih i ostalih financijskih institucija izvan javnog sektora | C198: 187 | D198: 0 | E198: 0 | F198: -
A199: 3425 | B199: Kamate za odobrene, a nerealizirane kredite i zajmove | C199: 188 | D199: 0 | E199: 0 | F199: -
A200: 3426 | B200: Kamate za primljene zajmove od trgovačkih društava u javnom sektoru | C200: 189 | D200: 0 | E200: 0 | F200: -
... 716 more rows

Sheet NT
A1: <–––– Povratak na RefStr | C1: Kontrole NT
A2: IZVJEŠTAJ O NOVČANIM TIJEKOVIMA | C2: Obrazac NT (VP 153)
A3: =IF(RefStr!F6<>"",LOOKUP(RefStr!F6,RefStr!N40:N64,RefStr!Q40:Q64)," - razdoblje izvještavanja nije odabrano - ") -> za razdoblje 1. siječnja do 31. prosinca 2014. godine
A4: Obveznik: | B4: ="RKP: " & TEXT(INT(VALUE(RefStr!B6)),"00000") & ", " & "MB: " & TEXT(INT(VALUE(RefStr!B8)), "00000000") & " " & RefStr!B10 -> RKP: 14402, MB: 03324281 OŠ VUGROVEC - KAŠINA
B5: =RefStr!B12 & " " & RefStr!C12 & ", " & RefStr!B14 -> 10362 KAŠINA, IVANA MAŽURANIĆA 43
B6: ="Razina: " & RefStr!B16 & ", Razdjel: " & TEXT(INT(VALUE(RefStr!B20)), "000") -> Razina: 31, Razdjel: 000
B7: ="Djelatnost: " & RefStr!B18 & " " & RefStr!C18 -> Djelatnost: 8520 Osnovno obrazovanje
D9: iznosi u kunama, bez lipa
A10: Račun iz rač. plana | B10: NAZIV | C10: AOP | D10: Ostvareno u izvještajnom razdoblju
A11: 1 | B11: 2 | C11: 3 | D11: 4
A12: 6 | B12: PRIMICI POSLOVANJA (AOP 002 do 009) | C12: 1 | D12: =SUM(D13:D20) -> 0
A13: 61 | B13: Porezi | C13: 2
A14: 62 | B14: Doprinosi | C14: 3
A15: 63 | B15: Pomoći iz inozemstva (darovnice) i od subjekata unutar općeg proračuna | C15: 4
A16: 64 | B16: Primici od imovine | C16: 5
A17: 65 | B17: Primici od upravnih i administrativnih pristojbi, pristojbi po posebnim propisima i naknada | C17: 6
A18: 66 | B18: Primici od prodaje proizvoda i robe te pruženih usluga i primici od donacija | C18: 7
A19: 67 | B19: Primici iz proračuna | C19: 8
A20: 68 | B20: Kazne, upravne mjere i ostali primici | C20: 9
A21: 3 | B21: IZDACI POSLOVANJA (AOP 011+023+056+075+083+095+102) | C21: 10 | D21: =D22+D34+D67+D86+D94+D106+D113 -> 0
A22: 31 | B22: Izdaci za zaposlene (AOP 012+017+019) | C22: 11 | D22: =D23+D28+D30 -> 0
A23: 311 | B23: Plaće (AOP 013 do 016) | C23: 12 | D23: =SUM(D24:D27) -> 0
A24: 3111 | B24: Plaće za redovan rad | C24: 13
A25: 3112 | B25: Plaće u naravi | C25: 14
A26: 3113 | B26: Plaće za prekovremeni rad | C26: 15
A27: 3114 | B27: Plaće za posebne uvjete rada | C27: 16
A28: 312 | B28: Ostali rashodi za zaposlene (AOP 018) | C28: 17 | D28: =D29 -> 0
A29: 3121 | B29: Ostali rashodi za zaposlene | C29: 18
A30: 313 | B30: Doprinosi na plaće (AOP 020 do 022) | C30: 19 | D30: =SUM(D31:D33) -> 0
A31: 3131 | B31: Doprinosi za mirovinsko osiguranje | C31: 20
A32: 3132 | B32: Doprinosi za obvezno zdravstveno osiguranje | C32: 21
A33: 3133 | B33: Doprinosi za obvezno osiguranje u slučaju nezaposlenosti | C33: 22
A34: 32 | B34: Materijalni izdaci (AOP 024+029+037+047+049) | C34: 23 | D34: =D35+D40+D48+D58+D60 -> 0
A35: 321 | B35: Naknade troškova zaposlenima (AOP 025 do 028) | C35: 24 | D35: =SUM(D36:D39) -> 0
A36: 3211 | B36: Službena putovanja | C36: 25
A37: 3212 | B37: Naknade za prijevoz, za rad na terenu i odvojeni život | C37: 26 | D37: 0
A38: 3213 | B38: Stručno usavršavanje zaposlenika | C38: 27
A39: 3214 | B39: Ostale naknade troškova zaposlenima | C39: 28
A40: 322 | B40: Izdaci za materijal i energiju (AOP 030 do 036) | C40: 29 | D40: =SUM(D41:D47) -> 0
A41: 3221 | B41: Uredski materijal i ostali materijalni izdaci | C41: 30
A42: 3222 | B42: Materijal i sirovine | C42: 31
A43: 3223 | B43: Energija | C43: 32
A44: 3224 | B44: Materijal i dijelovi za tekuće i investicijsko održavanje | C44: 33
A45: 3225 | B45: Sitni inventar i auto gume | C45: 34
A46: 3226 | B46: Vojna oprema | C46: 35
A47: 3227 | B47: Službena, radna i zaštitna odjeća i obuća | C47: 36
A48: 323 | B48: Izdaci za usluge (AOP 038 do 046) | C48: 37 | D48: =SUM(D49:D57) -> 0
A49: 3231 | B49: Usluge telefona, pošte i prijevoza | C49: 38
A50: 3232 | B50: Usluge tekućeg i investicijskog održavanja | C50: 39
A51: 3233 | B51: Usluge promidžbe i informiranja | C51: 40
A52: 3234 | B52: Komunalne usluge | C52: 41
A53: 3235 | B53: Zakupnine i najamnine | C53: 42
A54: 3236 | B54: Zdravstvene i veterinarske usluge | C54: 43
A55: 3237 | B55: Intelektualne i osobne usluge | C55: 44
A56: 3238 | B56: Računalne usluge | C56: 45
A57: 3239 | B57: Ostale usluge | C57: 46
A58: 324 | B58: Naknade troškova osobama izvan radnog odnosa (AOP 048) | C58: 47 | D58: =D59 -> 0
A59: 3241 | B59: Naknade troškova osobama izvan radnog odnosa | C59: 48
A60: 329 | B60: Ostali nespomenuti izdaci poslovanja (AOP 050 do 055) | C60: 49 | D60: =SUM(D61:D66) -> 0
A61: 3291 | B61: Naknade za rad predstavničkih i izvršnih tijela, povjerenstava i slično | C61: 50
A62: 3292 | B62: Premije osiguranja | C62: 51
A63: 3293 | B63: Reprezentacija | C63: 52
A64: 3294 | B64: Članarine | C64: 53
A65: 3295 | B65: Pristojbe i naknade | C65: 54
A66: 3299 | B66: Ostali nespomenuti izdaci poslovanja | C66: 55
A67: 34 | B67: Financijski izdaci (AOP 057+062+070) | C67: 56 | D67: =D68+D73+D81 -> 0
A68: 341 | B68: Kamate za izdane vrijednosne papire (AOP 058 do 061) | C68: 57 | D68: =SUM(D69:D72) -> 0
A69: 3411 | B69: Kamate za izdane trezorske zapise | C69: 58
A70: 3412 | B70: Kamate za izdane mjenice | C70: 59
A71: 3413 | B71: Kamate za izdane obveznice | C71: 60
A72: 3419 | B72: Kamate za ostale vrijednosne papire | C72: 61
A73: 342 | B73: Kamate za primljene kredite i zajmove (AOP 063 do 069) | C73: 62 | D73: =SUM(D74:D80) -> 0
A74: 3421 | B74: Kamate za primljene kredite i zajmove od međunarodnih organizacija, institucija i tijela EU te inozemnih vlada | C74: 63
A75: 3422 | B75: Kamate za primljene kredite i zajmove od kreditnih i ostalih financijskih institucija u javnom sektoru | C75: 64
A76: 3423 | B76: Kamate za primljene kredite i zajmove od kreditnih i ostalih financijskih institucija izvan javnog sektora | C76: 65
A77: 3425 | B77: Kamate za odobrene, a nerealizirane kredite i zajmove | C77: 66
A78: 3426 | B78: Kamate za primljene zajmove od trgovačkih društava u javnom sektoru | C78: 67
A79: 3427 | B79: Kamate za primljene zajmove od trgovačkih društava i obrtnika izvan javnog sektora | C79: 68
A80: 3428 | B80: Kamate za primljene zajmove od drugih razina vlasti | C80: 69
A81: 343 | B81: Ostali financijski izdaci (AOP 071 do 074) | C81: 70 | D81: =SUM(D82:D85) -> 0
A82: 3431 | B82: Bankarske usluge i usluge platnog prometa | C82: 71
A83: 3432 | B83: Negativne tečajne razlike i razlike zbog primjene valutne klauzule | C83: 72
A84: 3433 | B84: Zatezne kamate | C84: 73
A85: 3434 | B85: Ostali nespomenuti financijski izdaci | C85: 74
A86: 35 | B86: Subvencije (AOP 076+079) | C86: 75 | D86: =D87+D90 -> 0
A87: 351 | B87: Subvencije trgovačkim društvima u javnom sektoru (AOP 077+078) | C87: 76 | D87: =SUM(D88:D89) -> 0
A88: 3511 | B88: Subvencije kreditnim i ostalim financijskim institucijama u javnom sektoru | C88: 77
A89: 3512 | B89: Subvencije trgovačkim društvima u javnom sektoru | C89: 78
A90: 352 | B90: Subvencije trgovačkim društvima, poljoprivrednicima i obrtnicima izvan javnog sektora (AOP 080 do 082) | C90: 79 | D90: =SUM(D91:D93) -> 0
A91: 3521 | B91: Subvencije kreditnim i ostalim financijskim institucijama izvan javnog sektora | C91: 80
A92: 3522 | B92: Subvencije trgovačkim društvima izvan javnog sektora | C92: 81
A93: 3523 | B93: Subvencije poljoprivrednicima i obrtnicima | C93: 82
A94: 36 | B94: Pomoći dane u inozemstvo i unutar općeg proračuna (AOP 084+087+090) | C94: 83 | D94: =D95+D98+D101 -> 0
A95: 361 | B95: Pomoći inozemnim vladama (AOP 085+086) | C95: 84 | D95: =SUM(D96:D97) -> 0
A96: 3611 | B96: Tekuće pomoći inozemnim vladama | C96: 85
A97: 3612 | B97: Kapitalne pomoći inozemnim vladama | C97: 86
A98: 362 | B98: Pomoći međunarodnim organizacijama te institucijama i tijelima EU (AOP 088+089) | C98: 87 | D98: =SUM(D99:D100) -> 0
A99: 3621 | B99: Tekuće pomoći međunarodnim organizacijama te institucijama i tijelima EU | C99: 88
A100: 3622 | B100: Kapitalne pomoći međunarodnim organizacijama te institucijama i tijelima EU | C100: 89
A101: 363 | B101: Pomoći unutar općeg proračuna (AOP 091 do 094) | C101: 90 | D101: =SUM(D102:D105) -> 0
A102: 3631 | B102: Tekuće pomoći unutar općeg proračuna | C102: 91
A103: 3632 | B103: Kapitalne pomoći unutar općeg proračuna | C103: 92
A104: 3633 | B104: Tekuće pomoći proračunskim korisnicima temeljem prijenosa sredstava EU | C104: 93
A105: 3634 | B105: Kapitalne pomoći proračunskim korisnicima temeljem prijenosa sredstava EU | C105: 94
A106: 37 | B106: Naknade građanima i kućanstvima na temelju osiguranja i druge naknade (AOP 096+099) | C106: 95 | D106: =D107+D110 -> 0
A107: 371 | B107: Naknade građanima i kućanstvima na temelju osiguranja (AOP 097+098) | C107: 96 | D107: =SUM(D108:D109) -> 0
A108: 3711 | B108: Naknade građanima i kućanstvima u novcu | C108: 97
A109: 3712 | B109: Naknade građanima i kućanstvima u naravi | C109: 98
A110: 372 | B110: Naknade građanima i kućanstvima iz proračuna (AOP 100+101) | C110: 99 | D110: =SUM(D111:D112) -> 0
A111: 3721 | B111: Naknade građanima i kućanstvima u novcu | C111: 100
A112: 3722 | B112: Ostale naknade građanima i kućanstvima u naravi | C112: 101
A113: 38 | B113: Ostali izdaci (AOP 103+106+109+114) | C113: 102 | D113: =D114+D117+D120+D125 -> 0
A114: 381 | B114: Tekuće donacije (AOP 104+105) | C114: 103 | D114: =SUM(D115:D116) -> 0
A115: 3811 | B115: Tekuće donacije u novcu | C115: 104
A116: 3812 | B116: Tekuće donacije u naravi | C116: 105
A117: 382 | B117: Kapitalne donacije (AOP 107+108) | C117: 106 | D117: =SUM(D118:D119) -> 0
A118: 3821 | B118: Kapitalne donacije neprofitnim organizacijama | C118: 107
A119: 3822 | B119: Kapitalne donacije građanima i kućanstvima | C119: 108
A120: 383 | B120: Kazne, penali i naknade štete (AOP 110 do 113) | C120: 109 | D120: =SUM(D121:D124) -> 0
A121: 3831 | B121: Naknade štete pravnim i fizičkim osobama | C121: 110
A122: 3832 | B122: Penali, ležarine i drugo | C122: 111
A123: 3833 | B123: Naknade šteta zaposlenicima | C123: 112
A124: 3834 | B124: Ugovorene kazne i ostale naknade šteta | C124: 113
A125: 386 | B125: Kapitalne pomoći (AOP 115 do 117) | C125: 114 | D125: =SUM(D126:D128) -> 0
A126: 3861 | B126: Kapitalne pomoći kreditnim i ostalim financijskim institucijama te trgovačkim društvima u javnom sektoru | C126: 115
A127: 3862 | B127: Kapitalne pomoći kreditnim i ostalim financijskim institucijama te trgovačkim društvima izvan javnog sektora | C127: 116
A128: 3863 | B128: Kapitalne pomoći poljoprivrednicima i obrtnicima | C128: 117
B129: Neto primici iz poslovnih aktivnosti (AOP 001-010) | C129: 118 | D129: =IF(D12>=D21,D12-D21,0) -> 0
B130: Neto izdaci iz poslovnih aktivnosti (AOP 010-001) | C130: 119 | D130: =IF(D21>=D12,D21-D12,0) -> 0
A131: 7 | B131: Primici od prodaje nefinancijske imovine (AOP 121 do 124) | C131: 120 | D131: =SUM(D132:D135) -> 0
A132: 71 | B132: Primici od prodaje neproizvedene dugotrajne imovine | C132: 121
A133: 72 | B133: Primici od prodaje proizvedene dugotrajne imovine | C133: 122
A134: 73 | B134: Primici od prodaje plemenitih metala i ostalih pohranjenih vrijednosti | C134: 123
A135: 74 | B135: Primici od prodaje proizvedene kratkotrajne imovine | C135: 124
A136: 4 | B136: Izdaci za nabavu nefinancijske imovine (AOP 126+140+174+180+183) | C136: 125 | D136: =D137+D151+D185+D191+D194 -> 0
A137: 41 | B137: Izdaci za nabavu neproizvedene dugotrajne imovine (AOP 127+131+138) | C137: 126 | D137: =D138+D142+D149 -> 0
A138: 411 | B138: Materijalna imovina - prirodna bogatstva (AOP 128 do 130) | C138: 127 | D138: =SUM(D139:D141) -> 0
A139: 4111 | B139: Zemljište | C139: 128
A140: 4112 | B140: Rudna bogatstva | C140: 129
A141: 4113 | B141: Ostala prirodna materijalna imovina | C141: 130
A142: 412 | B142: Nematerijalna imovina (AOP 132 do 137) | C142: 131 | D142: =SUM(D143:D148) -> 0
A143: 4121 | B143: Patenti | C143: 132
A144: 4122 | B144: Koncesije | C144: 133
A145: 4123 | B145: Licence | C145: 134
A146: 4124 | B146: Ostala prava | C146: 135
A147: 4125 | B147: Goodwill | C147: 136
A148: 4126 | B148: Ostala nematerijalna imovina | C148: 137
A149: 418 | B149: Predujmovi za nabavu neproizvedene imovine (AOP 139) | C149: 138 | D149: =D150 -> 0
A150: 4181 | B150: Predujmovi za nabavu neproizvedene imovine | C150: 139
A151: 42 | B151: Izdaci za nabavu proizvedene dugotrajne imovine (AOP 141+146+154+159+164+167+172) | C151: 140 | D151: =D152+D157+D165+D170+D175+D178+D183 -> 0
A152: 421 | B152: Građevinski objekti (AOP 142 do 145) | C152: 141 | D152: =SUM(D153:D156) -> 0
A153: 4211 | B153: Stambeni objekti | C153: 142
A154: 4212 | B154: Poslovni objekti | C154: 143
A155: 4213 | B155: Ceste, željeznice i ostali prometni objekti | C155: 144
A156: 4214 | B156: Ostali građevinski objekti | C156: 145
A157: 422 | B157: Postrojenja i oprema (AOP 147 do 153) | C157: 146 | D157: =SUM(D158:D164) -> 0
A158: 4221 | B158: Uredska oprema i namještaj | C158: 147
A159: 4222 | B159: Komunikacijska oprema | C159: 148
A160: 4223 | B160: Oprema za održavanje i zaštitu | C160: 149
A161: 4224 | B161: Medicinska i laboratorijska oprema | C161: 150
A162: 4225 | B162: Instrumenti, uređaji i strojevi | C162: 151
A163: 4226 | B163: Sportska i glazbena oprema | C163: 152
A164: 4227 | B164: Uređaji, strojevi i oprema za ostale namjene | C164: 153
A165: 423 | B165: Prijevozna sredstva (AOP 155 do 158) | C165: 154 | D165: =SUM(D166:D169) -> 0
A166: 4231 | B166: Prijevozna sredstva u cestovnom prometu | C166: 155
A167: 4232 | B167: Prijevozna sredstva u željezničkom prometu | C167: 156
A168: 4233 | B168: Prijevozna sredstva u pomorskom i riječnom prometu | C168: 157
A169: 4234 | B169: Prijevozna sredstva u zračnom prometu | C169: 158
A170: 424 | B170: Knjige, umjetnička djela i ostale izložbene vrijednosti (AOP 160 do 163) | C170: 159 | D170: =SUM(D171:D174) -> 0
A171: 4241 | B171: Knjige | C171: 160
A172: 4242 | B172: Umjetnička djela (izložena u galerijama, muzejima i slično) | C172: 161
A173: 4243 | B173: Muzejski izlošci i predmeti prirodnih rijetkosti | C173: 162
A174: 4244 | B174: Ostale nespomenute izložbene vrijednosti | C174: 163
A175: 425 | B175: Višegodišnji nasadi i osnovno stado (AOP 165+166) | C175: 164 | D175: =SUM(D176:D177) -> 0
A176: 4251 | B176: Višegodišnji nasadi | C176: 165
A177: 4252 | B177: Osnovno stado | C177: 166
A178: 426 | B178: Nematerijalna proizvedena imovina (AOP 168 do 171) | C178: 167 | D178: =SUM(D179:D182) -> 0
A179: 4261 | B179: Istraživanje rudnih bogatstava | C179: 168
A180: 4262 | B180: Ulaganja u računalne programe | C180: 169
A181: 4263 | B181: Umjetnička, literarna i znanstvena djela | C181: 170
A182: 4264 | B182: Ostala nematerijalna proizvedena imovina | C182: 171
A183: 428 | B183: Predujmovi za nabavu proizvedene dugotrajne imovine (AOP 173) | C183: 172 | D183: =D184 -> 0
A184: 4281 | B184: Predujmovi za nabavu proizvedene dugotrajne imovine | C184: 173
A185: 43 | B185: Izdaci za nabavu plemenitih metala i ostalih pohranjenih vrijednosti (AOP 175+178) | C185: 174 | D185: =D186+D189 -> 0
A186: 431 | B186: Plemeniti metali i ostale pohranjene vrijednosti (AOP 176+177) | C186: 175 | D186: =SUM(D187:D188) -> 0
A187: 4311 | B187: Plemeniti metali i drago kamenje | C187: 176
A188: 4312 | B188: Pohranjene knjige, umjetnička djela i slične vrijednosti | C188: 177
A189: 438 | B189: Predujmovi za nabavu plemenitih metala, umjetničkih i znanstvenih djela i ostalih vrijednosti (AOP 179) | C189: 178 | D189: =D190 -> 0
A190: 4381 | B190: Predujmovi za nabavu plemenitih metala, umjetničkih i znanstvenih djela i ostalih vrijednosti | C190: 179
A191: 44 | B191: Izdaci za nabavu proizvedene kratkotrajne imovine (AOP 181) | C191: 180 | D191: =D192 -> 0
A192: 441 | B192: Izdaci za nabavu zaliha (AOP 182) | C192: 181 | D192: =D193 -> 0
A193: 4411 | B193: Strateške zalihe | C193: 182
A194: 45 | B194: Izdaci za dodatna ulaganja na nefinancijskoj imovini (AOP 184+186+188+190+192) | C194: 183 | D194: =D195+D197+D199+D201+D203 -> 0
A195: 451 | B195: Dodatna ulaganja na građevinskim objektima (AOP 185) | C195: 184 | D195: =D196 -> 0
A196: 4511 | B196: Dodatna ulaganja na građevinskim objektima | C196: 185
A197: 452 | B197: Dodatna ulaganja na postrojenjima i opremi (AOP 187) | C197: 186 | D197: =D198 -> 0
A198: 4521 | B198: Dodatna ulaganja na postrojenjima i opremi | C198: 187
A199: 453 | B199: Dodatna ulaganja na prijevoznim sredstvima (AOP 189) | C199: 188 | D199: =D200 -> 0
A200: 4531 | B200: Dodatna ulaganja na prijevoznim sredstvima | C200: 189
A201: 454 | B201: Dodatna ulaganja za ostalu nefinancijsku imovinu (AOP 191) | C201: 190 | D201: =D202 -> 0
... 210 more rows

Sheet RasF
A1: <–––– Povratak na RefStr | C1: Kontrole RAS-funkcijski
A2: IZVJEŠTAJ O RASHODIMA PREMA FUNKCIJSKOJ KLASIFIKACIJI | E2: Obrazac RAS-funkcijski VP 154
A3: =IF(RefStr!F6<>"",LOOKUP(RefStr!F6,RefStr!N40:N64,RefStr!Q40:Q64)," - prije popunjavanja obrasca izaberite razdoblje -") -> za razdoblje 1. siječnja do 31. prosinca 2014. godine
A4: Obveznik: | B4: ="RKP: " & TEXT(INT(VALUE(RefStr!B6)),"00000") & ", " & "MB: " & TEXT(INT(VALUE(RefStr!B8)), "00000000") & " " & RefStr!B10 -> RKP: 14402, MB: 03324281 OŠ VUGROVEC - KAŠINA
B5: =RefStr!B12 & " " & RefStr!C12 & ", " & RefStr!B14 -> 10362 KAŠINA, IVANA MAŽURANIĆA 43
B6: ="Razina: " & RefStr!B16 & ", Razdjel: " & TEXT(INT(VALUE(RefStr!B20)), "000") -> Razina: 31, Razdjel: 000
B7: ="Djelatnost: " & RefStr!B18 & " " & RefStr!C18 -> Djelatnost: 8520 Osnovno obrazovanje
F9: iznosi u kunama, bez lipa
A10: Brojč. ozn. funk. klas. | B10: NAZIV | C10: AOP | D10: Ostvareno u prethodnoj godini | E10: Ostvareno u tekućoj godini | F10: Indeks (5/4)
A11: 1 | B11: 2 | C11: 3 | D11: 4 | E11: 5 | F11: 6
A12: 01 | B12: Opće javne usluge (AOP 002+006+009+013 do 017) | C12: 1 | D12: =D13+D17+D20+SUM(D24:D28) -> 0 | E12: =E13+E17+E20+SUM(E24:E28) -> 0 | F12: =IF(D12>0,IF(E12/D12>=100,">>100",E12/D12*100),"-") -> -
A13: 011 | B13: Izvršna i zakonodavna tijela, financijski i fiskalni poslovi, vanjski poslovi (AOP 003 do 005) | C13: 2 | D13: =SUM(D14:D16) -> 0 | E13: =SUM(E14:E16) -> 0 | F13: =IF(D13>0,IF(E13/D13>=100,">>100",E13/D13*100),"-") -> -
A14: 0111 | B14: Izvršna i zakonodavna tijela | C14: 3 | F14: =IF(D14>0,IF(E14/D14>=100,">>100",E14/D14*100),"-") -> -
A15: 0112 | B15: Financijski i fiskalni poslovi | C15: 4 | F15: -
A16: 0113 | B16: Vanjski poslovi | C16: 5 | F16: -
A17: 012 | B17: Inozemna ekonomska pomoć (AOP 007+008) | C17: 6 | D17: =SUM(D18:D19) -> 0 | E17: =SUM(E18:E19) -> 0 | F17: -
A18: 0121 | B18: Ekonomska pomoć zemljama u razvoju i zemljama u tranziciji | C18: 7 | F18: -
A19: 0122 | B19: Ekonomska pomoć usmjerena preko međunarodnih agencija | C19: 8 | F19: -
A20: 013 | B20: Opće usluge (AOP 010 do 012) | C20: 9 | D20: =SUM(D21:D23) -> 0 | E20: =SUM(E21:E23) -> 0 | F20: -
A21: 0131 | B21: Opće usluge vezane za službenike | C21: 10 | F21: -
A22: 0132 | B22: Sveukupno planiranje i statističke usluge | C22: 11 | F22: -
A23: 0133 | B23: Ostale opće usluge | C23: 12 | F23: -
A24: 014 | B24: Osnovna istraživanja | C24: 13 | F24: -
A25: 015 | B25: Istraživanje i razvoj: Opće javne usluge | C25: 14 | F25: -
A26: 016 | B26: Opće javne usluge koje nisu drugdje svrstane | C26: 15 | F26: -
A27: 017 | B27: Transakcije vezane za javni dug | C27: 16 | F27: -
A28: 018 | B28: Prijenosi općeg karaktera između različitih državnih razina | C28: 17 | F28: -
A29: 02 | B29: Obrana (AOP 019 do 023) | C29: 18 | D29: =SUM(D30:D34) -> 0 | E29: =SUM(E30:E34) -> 0 | F29: -
A30: 021 | B30: Vojna obrana | C30: 19 | F30: -
A31: 022 | B31: Civilna obrana | C31: 20 | F31: -
A32: 023 | B32: Inozemna vojna pomoć | C32: 21 | F32: -
A33: 024 | B33: Istraživanje i razvoj obrane | C33: 22 | F33: -
A34: 025 | B34: Rashodi za obranu koji nisu drugdje svrstani | C34: 23 | F34: -
A35: 03 | B35: Javni red i sigurnost (AOP 025 do 030) | C35: 24 | D35: =SUM(D36:D41) -> 0 | E35: =SUM(E36:E41) -> 0 | F35: -
A36: 031 | B36: Usluge policije | C36: 25 | F36: -
A37: 032 | B37: Usluge protupožarne zaštite | C37: 26 | F37: -
A38: 033 | B38: Sudovi | C38: 27 | F38: -
A39: 034 | B39: Zatvori | C39: 28 | F39: -
A40: 035 | B40: Istraživanje i razvoj: Javni red i sigurnost | C40: 29 | F40: -
A41: 036 | B41: Rashodi za javni red i sigurnost koji nisu drugdje svrstani | C41: 30 | F41: -
A42: 04 | B42: Ekonomski poslovi (AOP 032+035+039+046+050+056+057+062+070) | C42: 31 | D42: =D43+D46+D50+D57+D61+D67+D68+D73+D81 -> 0 | E42: =E43+E46+E50+E57+E61+E67+E68+E73+E81 -> 0 | F42: -
A43: 041 | B43: Opći ekonomski, trgovački i poslovi vezani uz rad (AOP 033+034) | C43: 32 | D43: =SUM(D44:D45) -> 0 | E43: =SUM(E44:E45) -> 0 | F43: -
A44: 0411 | B44: Opći ekonomski i trgovački poslovi | C44: 33 | F44: -
A45: 0412 | B45: Opći poslovi vezani uz rad | C45: 34 | F45: -
A46: 042 | B46: Poljoprivreda, šumarstvo, ribarstvo i lov (AOP 036 do 038) | C46: 35 | D46: =SUM(D47:D49) -> 0 | E46: =SUM(E47:E49) -> 0 | F46: -
A47: 0421 | B47: Poljoprivreda | C47: 36 | F47: -
A48: 0422 | B48: Šumarstvo | C48: 37 | F48: -
A49: 0423 | B49: Ribarstvo i lov | C49: 38 | F49: -
A50: 043 | B50: Gorivo i energija (AOP 040 do 045) | C50: 39 | D50: =SUM(D51:D56) -> 0 | E50: =SUM(E51:E56) -> 0 | F50: -
A51: 0431 | B51: Ugljen i ostala kruta mineralna goriva | C51: 40 | F51: -
A52: 0432 | B52: Nafta i prirodni plin | C52: 41 | F52: -
A53: 0433 | B53: Nuklearno gorivo | C53: 42 | F53: -
A54: 0434 | B54: Ostala goriva | C54: 43 | F54: -
A55: 0435 | B55: Električna energija | C55: 44 | F55: -
A56: 0436 | B56: Ostale vrste energije | C56: 45 | F56: -
A57: 044 | B57: Rudarstvo, proizvodnja i građevinarstvo (AOP 047 do 049) | C57: 46 | D57: =SUM(D58:D60) -> 0 | E57: =SUM(E58:E60) -> 0 | F57: -
A58: 0441 | B58: Rudarstvo, mineralni resursi i ostala mineralna goriva | C58: 47 | F58: -
A59: 0442 | B59: Proizvodnja | C59: 48 | F59: -
A60: 0443 | B60: Građevinarstvo | C60: 49 | F60: -
A61: 045 | B61: Promet (AOP 051 do 055) | C61: 50 | D61: =SUM(D62:D66) -> 0 | E61: =SUM(E62:E66) -> 0 | F61: -
A62: 0451 | B62: Cestovni promet | C62: 51 | F62: -
A63: 0452 | B63: Promet vodnim putovima | C63: 52 | F63: -
A64: 0453 | B64: Željeznički promet | C64: 53 | F64: -
A65: 0454 | B65: Zračni promet | C65: 54 | F65: -
A66: 0455 | B66: Promet cjevovodima i ostali promet | C66: 55 | F66: -
A67: 046 | B67: Komunikacije | C67: 56 | F67: -
A68: 047 | B68: Ostale industrije (AOP 058 do 061) | C68: 57 | D68: =SUM(D69:D72) -> 0 | E68: =SUM(E69:E72) -> 0 | F68: -
A69: 0471 | B69: Distribucija i skladištenje | C69: 58 | F69: -
A70: 0472 | B70: Hoteli i restorani | C70: 59 | F70: -
A71: 0473 | B71: Turizam | C71: 60 | F71: -
A72: 0474 | B72: Višenamjenski razvojni projekti | C72: 61 | F72: -
A73: 048 | B73: Istraživanje i razvoj: Ekonomski poslovi (AOP 063 do 069) | C73: 62 | D73: =SUM(D74:D80) -> 0 | E73: =SUM(E74:E80) -> 0 | F73: -
A74: 0481 | B74: Istraživanje i razvoj: Opći ekonomski, trgovački i poslovi vezani uz rad | C74: 63 | F74: -
A75: 0482 | B75: Istraživanje i razvoj: Poljoprivreda, šumarstvo, ribarstvo i lov | C75: 64 | F75: -
A76: 0483 | B76: Istraživanje i razvoj: Gorivo i energija | C76: 65 | F76: -
A77: 0484 | B77: Istraživanje i razvoj: Rudarstvo, proizvodnja i građevinarstvo | C77: 66 | F77: -
A78: 0485 | B78: Istraživanje i razvoj: Promet | C78: 67 | F78: =IF(D78>0,IF(E78/D78>=100,">>100",E78/D78*100),"-") -> -
A79: 0486 | B79: Istraživanje i razvoj: Komunikacije | C79: 68 | F79: -
A80: 0487 | B80: Istraživanje i razvoj: Ostale industrije | C80: 69 | F80: -
A81: 049 | B81: Ekonomski poslovi koji nisu drugdje svrstani | C81: 70 | F81: -
A82: 05 | B82: Zaštita okoliša (AOP 072 do 077) | C82: 71 | D82: =SUM(D83:D88) -> 0 | E82: =SUM(E83:E88) -> 0 | F82: -
A83: 051 | B83: Gospodarenje otpadom | C83: 72 | F83: -
A84: 052 | B84: Gospodarenje otpadnim vodama | C84: 73 | F84: -
A85: 053 | B85: Smanjenje zagađivanja | C85: 74 | F85: -
A86: 054 | B86: Zaštita bioraznolikosti i krajolika | C86: 75 | F86: -
A87: 055 | B87: Istraživanje i razvoj: Zaštita okoliša | C87: 76 | F87: -
A88: 056 | B88: Poslovi i usluge zaštite okoliša koji nisu drugdje svrstani | C88: 77 | F88: -
A89: 06 | B89: Usluge unapređenja stanovanja i zajednice (AOP 079 do 084) | C89: 78 | D89: =SUM(D90:D95) -> 0 | E89: =SUM(E90:E95) -> 0 | F89: -
A90: 061 | B90: Razvoj stanovanja | C90: 79 | F90: -
A91: 062 | B91: Razvoj zajednice | C91: 80 | F91: -
A92: 063 | B92: Opskrba vodom | C92: 81 | F92: -
A93: 064 | B93: Ulična rasvjeta | C93: 82 | F93: -
A94: 065 | B94: Istraživanje i razvoj stanovanja i komunalnih pogodnosti | C94: 83 | F94: -
A95: 066 | B95: Rashodi vezani za stanovanje i kom. pogodnosti koji nisu drugdje svrstani | C95: 84 | F95: -
A96: 07 | B96: Zdravstvo (AOP 086+090+095+100+101+102) | C96: 85 | D96: =D97+D101+D106+D111+D112+D113 -> 0 | E96: =E97+E101+E106+E111+E112+E113 -> 0 | F96: -
A97: 071 | B97: Medicinski proizvodi, pribor i oprema (AOP 087 do 089) | C97: 86 | D97: =SUM(D98:D100) -> 0 | E97: =SUM(E98:E100) -> 0 | F97: -
A98: 0711 | B98: Farmaceutski proizvodi | C98: 87 | F98: -
A99: 0712 | B99: Ostali medicinski proizvodi | C99: 88 | F99: -
A100: 0713 | B100: Terapeutski pribor i oprema | C100: 89 | F100: -
A101: 072 | B101: Službe za vanjske pacijente (AOP 091 do 094) | C101: 90 | D101: =SUM(D102:D105) -> 0 | E101: =SUM(E102:E105) -> 0 | F101: -
A102: 0721 | B102: Opće medicinske usluge | C102: 91 | F102: -
A103: 0722 | B103: Specijalističke medicinske usluge | C103: 92 | F103: -
A104: 0723 | B104: Zubarske usluge | C104: 93 | F104: -
A105: 0724 | B105: Paramedicinske usluge | C105: 94 | F105: -
A106: 073 | B106: Bolničke službe (AOP 096 do 099) | C106: 95 | D106: =SUM(D107:D110) -> 0 | E106: =SUM(E107:E110) -> 0 | F106: -
A107: 0731 | B107: Usluge općih bolnica | C107: 96 | F107: -
A108: 0732 | B108: Usluge specijalističkih bolnica | C108: 97 | F108: -
A109: 0733 | B109: Usluge medicinskih centara i centara za majčinstvo | C109: 98 | F109: -
A110: 0734 | B110: Usluge centara za njegu i oporavak | C110: 99 | F110: -
A111: 074 | B111: Službe javnog zdravstva | C111: 100 | F111: -
A112: 075 | B112: Istraživanje i razvoj zdravstva | C112: 101 | F112: -
A113: 076 | B113: Poslovi i usluge zdravstva koji nisu drugdje svrstani | C113: 102 | F113: -
A114: 08 | B114: Rekreacija, kultura i religija (AOP 104 do 109) | C114: 103 | D114: =SUM(D115:D120) -> 0 | E114: =SUM(E115:E120) -> 0 | F114: -
A115: 081 | B115: Službe rekreacije i sporta | C115: 104 | F115: -
A116: 082 | B116: Službe kulture | C116: 105 | F116: -
A117: 083 | B117: Službe emitiranja i izdavanja | C117: 106 | F117: -
A118: 084 | B118: Religijske i druge službe zajednice | C118: 107 | F118: -
A119: 085 | B119: Istraživanje i razvoj rekreacije, kulture i religije | C119: 108 | F119: -
A120: 086 | B120: Rashodi za rekreaciju, kulturu i religiju koji nisu drugdje svrstani | C120: 109 | F120: -
A121: 09 | B121: Obrazovanje (AOP 111+114+117+118+121 do 124) | C121: 110 | D121: =D122+D125+D128+D129+SUM(D132:D135) -> 0 | E121: =E122+E125+E128+E129+SUM(E132:E135) -> 0 | F121: -
A122: 091 | B122: Predškolsko i osnovno obrazovanje (AOP 112+113) | C122: 111 | D122: =SUM(D123:D124) -> 0 | E122: =SUM(E123:E124) -> 0 | F122: -
A123: 0911 | B123: Predškolsko obrazovanje | C123: 112 | F123: -
A124: 0912 | B124: Osnovno obrazovanje | C124: 113 | F124: -
A125: 092 | B125: Srednjoškolsko obrazovanje (AOP 115+116) | C125: 114 | D125: =SUM(D126:D127) -> 0 | E125: =SUM(E126:E127) -> 0 | F125: -
A126: 0921 | B126: Niže srednjoškolsko obrazovanje | C126: 115 | F126: -
A127: 0922 | B127: Više srednjoškolsko obrazovanje | C127: 116 | F127: -
A128: 093 | B128: Poslije srednjoškolsko, ali ne visoko obrazovanje | C128: 117 | F128: -
A129: 094 | B129: Visoka naobrazba (AOP 119+120) | C129: 118 | D129: =SUM(D130:D131) -> 0 | E129: =SUM(E130:E131) -> 0 | F129: -
A130: 0941 | B130: Prvi stupanj visoke naobrazbe | C130: 119 | F130: -
A131: 0942 | B131: Drugi stupanj visoke naobrazbe | C131: 120 | F131: -
A132: 095 | B132: Obrazovanje koje se ne može definirati po stupnju | C132: 121 | F132: -
A133: 096 | B133: Dodatne usluge u obrazovanju | C133: 122 | F133: -
A134: 097 | B134: Istraživanje i razvoj obrazovanja | C134: 123 | F134: -
A135: 098 | B135: Usluge obrazovanja koje nisu drugdje svrstane | C135: 124 | F135: -
A136: 10 | B136: Socijalna zaštita (AOP 126+129+130+131+132+133+134+135+136) | C136: 125 | D136: =D137+D140+SUM(D141:D147) -> 0 | E136: =E137+E140+SUM(E141:E147) -> 0 | F136: -
A137: 101 | B137: Bolest i invaliditet (AOP 127+128) | C137: 126 | D137: =SUM(D138:D139) -> 0 | E137: =SUM(E138:E139) -> 0 | F137: -
A138: 1011 | B138: Bolest | C138: 127 | F138: -
A139: 1012 | B139: Invaliditet | C139: 128 | F139: -
A140: 102 | B140: Starost | C140: 129 | F140: -
A141: 103 | B141: Slijednici | C141: 130 | F141: =IF(D141>0,IF(E141/D141>=100,">>100",E141/D141*100),"-") -> -
A142: 104 | B142: Obitelj i djeca | C142: 131 | F142: =IF(D142>0,IF(E142/D142>=100,">>100",E142/D142*100),"-") -> -
A143: 105 | B143: Nezaposlenost | C143: 132 | F143: -
A144: 106 | B144: Stanovanje | C144: 133 | F144: -
A145: 107 | B145: Socijalna pomoć stanovništvu koje nije obuhvaćeno redovnim socijalnim programima | C145: 134 | F145: -
A146: 108 | B146: Istraživanje i razvoj socijalne zaštite | C146: 135 | F146: -
A147: 109 | B147: Aktivnosti socijalne zaštite koje nisu drugdje svrstane | C147: 136 | F147: -
B148: Kontrolni zbroj (AOP 001+018+024+031+071+078+085+103+110+125) | C148: 137 | D148: =D12+D29+D35+D42+D82+D89+D96+D114+D121+D136 -> 0 | E148: =E12+E29+E35+E42+E82+E89+E96+E114+E121+E136 -> 0 | F148: -

Sheet PVRIO
A1: <–––– Povratak na RefStr | C1: Kontrole obrasca P-VRIO ––––>
A2: IZVJEŠTAJ O PROMJENAMA U VRIJEDNOSTI I OBUJMU IMOVINE I OBVEZA | D2: Obrazac P-VRIO (VP 156)
A3: =IF(RefStr!F6="","- prije popunjavanja obrasca odaberite razdoblje -",IF(RIGHT(RefStr!F6,2)="12",LOOKUP(RefStr!F6,RefStr!N40:N64,RefStr!Q40:Q64)," - za označeno razdoblje obrazac se ne popunjava -")) -> za razdoblje 1. siječnja do 31. prosinca 2014. godine
A4: Obveznik: | B4: ="RKP: " & TEXT(INT(VALUE(RefStr!B6)),"00000") & ", " & "MB: " & TEXT(INT(VALUE(RefStr!B8)), "00000000") & " " & RefStr!B10 -> RKP: 14402, MB: 03324281 OŠ VUGROVEC - KAŠINA
B5: =RefStr!B12 & " " & RefStr!C12 & ", " & RefStr!B14 -> 10362 KAŠINA, IVANA MAŽURANIĆA 43
B6: ="Razina: " & RefStr!B16 & ", Razdjel: " & TEXT(INT(VALUE(RefStr!B20)), "000") -> Razina: 31, Razdjel: 000
B7: ="Djelatnost: " & RefStr!B18 & " " & RefStr!C18 -> Djelatnost: 8520 Osnovno obrazovanje
A10: Račun iz rač. plana | B10: NAZIV | C10: AOP | D10: Iznos povećanja | E10: Iznos smanjenja
A11: 1 | B11: 2 | C11: 3 | D11: 4 | E11: 5
A12: 9151 | B12: Promjene u vrijednosti i obujmu imovine (AOP 002+018) | C12: 1 | D12: =D13+D29 -> 0 | E12: =E13+E29 -> 0
A13: 91511 | B13: Promjene u vrijednosti (revalorizacija) imovine (AOP 003+010) | C13: 2 | D13: =D14+D21 -> 0 | E13: =E14+E21 -> 0
B14: Promjene u vrijednosti (revalorizacija) nefinancijske imovine (AOP 004 do 009) | C14: 3 | D14: =SUM(D15:D20) -> 0 | E14: =SUM(E15:E20) -> 0
B15: Neproizvedena dugotrajna imovina | C15: 4
B16: Proizvedena dugotrajna imovina | C16: 5
B17: Plemeniti metali i ostale pohranjene vrijednosti | C17: 6
B18: Sitni inventar | C18: 7
B19: Dugotrajna nefinancijska imovina u pripremi | C19: 8
B20: Proizvedena kratkotrajna imovina | C20: 9
B21: Promjene u vrijednosti (revalorizacija) financijske imovine (AOP 011 do 017) | C21: 10 | D21: =SUM(D22:D28) -> 0 | E21: =SUM(E22:E28) -> 0
B22: Novac u banci i blagajni | C22: 11
B23: Depoziti, jamčevni polozi i potraživanja od zaposlenih te za više plaćene poreze i ostalo | C23: 12
B24: Potraživanja za dane zajmove | C24: 13
B25: Vrijednosni papiri | C25: 14
B26: Dionice i udjeli u glavnici | C26: 15
B27: Potraživanja za prihode poslovanja | C27: 16
B28: Potraživanja od prodaje nefinancijske imovine | C28: 17
A29: 91512 | B29: Promjene u obujmu imovine (AOP 019+026) | C29: 18 | D29: =D30+D37 -> 0 | E29: =E30+E37 -> 0
B30: Promjene u obujmu nefinancijske imovine (AOP 020 do 025) | C30: 19 | D30: =SUM(D31:D36) -> 0 | E30: =SUM(E31:E36) -> 0
B31: Neproizvedena dugotrajna imovina | C31: 20
B32: Proizvedena dugotrajna imovina | C32: 21
B33: Plemeniti metali i ostale pohranjene vrijednosti | C33: 22
B34: Sitni inventar | C34: 23
B35: Dugotrajna nefinancijska imovina u pripremi | C35: 24
B36: Proizvedena kratkotrajna imovina | C36: 25
B37: Promjene u obujmu financijske imovine (AOP 027 do 033) | C37: 26 | D37: =SUM(D38:D44) -> 0 | E37: =SUM(E38:E44) -> 0
B38: Novac u banci i blagajni | C38: 27
B39: Depoziti, jamčevni polozi i potraživanja od zaposlenih te za više plaćene poreze i ostalo | C39: 28
B40: Potraživanja za dane zajmove | C40: 29
B41: Vrijednosni papiri | C41: 30
B42: Dionice i udjeli u glavnici | C42: 31
B43: Potraživanja za prihode poslovanja | C43: 32
B44: Potraživanja od prodaje nefinancijske imovine | C44: 33
A45: 9152 | B45: Promjene u vrijednosti (revalorizacija) i obujmu obveza (AOP 035+040) | C45: 34 | D45: =D46+D51 -> 0 | E45: =E46+E51 -> 0
A46: 91521 | B46: Promjene u vrijednosti (revalorizacija) obveza (AOP 036 do 039) | C46: 35 | D46: =SUM(D47:D50) -> 0 | E46: =SUM(E47:E50) -> 0
B47: Obveze za rashode poslovanja | C47: 36
B48: Obveze za nabavu nefinancijske imovine | C48: 37
B49: Obveze za vrijednosne papire | C49: 38
B50: Obveze za kredite i zajmove | C50: 39
A51: 91522 | B51: Promjene u obujmu obveza (AOP 041 do 044) | C51: 40 | D51: =SUM(D52:D55) -> 0 | E51: =SUM(E52:E55) -> 0
B52: Obveze za rashode poslovanja | C52: 41
B53: Obveze za nabavu nefinancijske imovine | C53: 42
B54: Obveze za vrijednosne papire | C54: 43
A55: 109 | B55: Obveze za kredite i zajmove | C55: 44

Sheet Bil
A1: <–––– Povratak na RefStr | C1: Kontrole ––––>
A2: BILANCA | E2: Obrazac BIL VP 158
A3: =IF(RefStr!F6<>"",LOOKUP(RefStr!F6,RefStr!N40:N64,RefStr!R40:R64)," - prije popunjavanja obrasca izaberite razdoblje -") -> stanje na dan 31. prosinca 2014. godine
A4: Obveznik: | B4: ="RKP: " & TEXT(INT(VALUE(RefStr!B6)),"00000") & ", " & "MB: " & TEXT(INT(VALUE(RefStr!B8)), "00000000") & " " & RefStr!B10 -> RKP: 14402, MB: 03324281 OŠ VUGROVEC - KAŠINA
B5: =RefStr!B12 & " " & RefStr!C12 & ", " & RefStr!B14 -> 10362 KAŠINA, IVANA MAŽURANIĆA 43
B6: ="Razina: " & RefStr!B16 & ", Razdjel: " & TEXT(INT(VALUE(RefStr!B20)), "000") -> Razina: 31, Razdjel: 000
B7: ="Djelatnost: " & RefStr!B18 & " " & RefStr!C18 -> Djelatnost: 8520 Osnovno obrazovanje
F9: iznosi u kunama, bez lipa
A10: Račun iz rač. plana | B10: OPIS | C10: AOP | D10: Stanje 1. siječnja | E10: Stanje 31. prosinca | F10: Indeks (5/4)
A11: 1 | B11: 2 | C11: 3 | D11: 4 | E11: 5 | F11: 6
B12: IMOVINA (AOP 002+061) | C12: 1 | D12: =D13+D72 -> 9003556 | E12: =E13+E72 -> 9485507 | F12: =IF(D12>0,IF(E12/D12>=100,">>100",E12/D12*100),"-") -> 105.3528961
A13: 0 | B13: Nefinancijska imovina (AOP 003+007+045+046+050+057) | C13: 2 | D13: =D14+D18+D56+D57+D61+D68 -> 8157067 | E13: =E14+E18+E56+E57+E61+E68 -> 8434300 | F13: =IF(D13>0,IF(E13/D13>=100,">>100",E13/D13*100),"-") -> 103.3986848
A14: 01 | B14: Neproizvedena dugotrajna imovina (AOP 004+005-006) | C14: 3 | D14: =D15+D16-D17 -> 1330076 | E14: =E15+E16-E17 -> 1330076 | F14: 100
A15: 011 | B15: Materijalna imovina - prirodna bogatstva | C15: 4 | D15: 1330076 | E15: 1330076 | F15: 100
A16: 012 | B16: Nematerijalna imovina | C16: 5 | D16: 0 | E16: 0 | F16: -
A17: 019 | B17: Ispravak vrijednosti neproizvedene dugotrajne imovine | C17: 6 | D17: 0 | E17: 0 | F17: -
A18: 02 | B18: Proizvedena dugotrajna imovina (AOP 008+014+023+029+035+039) | C18: 7 | D18: =D19+D25+D34+D40+D46+D50 -> 6826991 | E18: =E19+E25+E34+E40+E46+E50 -> 7104224 | F18: 104.0608373
A19: 021 i 02921 | B19: Građevinski objekti (AOP 009 do 012 - 013) | C19: 8 | D19: =SUM(D20:D23)-D24 -> 6110697 | E19: =SUM(E20:E23)-E24 -> 6326363 | F19: 103.5293192
A20: 0211 | B20: Stambeni objekti | C20: 9 | D20: 0 | E20: 0 | F20: -
A21: 0212 | B21: Poslovni objekti | C21: 10 | D21: 14310177 | E21: 14310177 | F21: 100
A22: 0213 | B22: Ceste, željeznice i ostali prometni objekti | C22: 11 | D22: 0 | E22: 0 | F22: -
A23: 0214 | B23: Ostali građevinski objekti | C23: 12 | D23: 0 | E23: 0 | F23: -
A24: 02921 | B24: Ispravak vrijednosti građevinskih objekata | C24: 13 | D24: 8199480 | E24: 7983814 | F24: 97.36976003
A25: 022 i 02922 | B25: Postrojenja i oprema (AOP 015 do 021 - 022) | C25: 14 | D25: =SUM(D26:D32)-D33 -> 478122 | E25: =SUM(E26:E32)-E33 -> 532517 | F25: 111.3768034
A26: 0221 | B26: Uredska oprema i namještaj | C26: 15 | D26: 1545001 | E26: 1557060 | F26: 100.7805173
A27: 0222 | B27: Komunikacijska oprema | C27: 16 | D27: 48180 | E27: 48180 | F27: 100
A28: 0223 | B28: Oprema za održavanje i zaštitu | C28: 17 | D28: 13390 | E28: 13390 | F28: 100
A29: 0224 | B29: Medicinska i laboratorijska oprema | C29: 18 | D29: 0 | E29: 0 | F29: -
A30: 0225 | B30: Instrumenti, uređaji i strojevi | C30: 19 | D30: 56248 | E30: 56248 | F30: 100
A31: 0226 | B31: Sportska i glazbena oprema | C31: 20 | D31: 16087 | E31: 16087 | F31: 100
A32: 0227 | B32: Uređaji, strojevi i oprema za ostale namjene | C32: 21 | D32: 298571 | E32: 315540 | F32: 105.6834053
A33: 02922 | B33: Ispravak vrijednosti postrojenja i opreme | C33: 22 | D33: 1499355 | E33: 1473988 | F33: 98.30813917
A34: 023 i 02923 | B34: Prijevozna sredstva (AOP 024 do 027 - 028) | C34: 23 | D34: =SUM(D35:D38)-D39 -> 0 | E34: =SUM(E35:E38)-E39 -> 0 | F34: -
A35: 0231 | B35: Prijevozna sredstva u cestovnom prometu | C35: 24 | D35: 0 | E35: 0 | F35: -
A36: 0232 | B36: Prijevozna sredstva u željezničkom prometu | C36: 25 | D36: 0 | E36: 0 | F36: -
A37: 0233 | B37: Prijevozna sredstva u pomorskom i riječnom prometu | C37: 26 | D37: 0 | E37: 0 | F37: -
A38: 0234 | B38: Prijevozna sredstva u zračnom prometu | C38: 27 | D38: 0 | E38: 0 | F38: -
A39: 02923 | B39: Ispravak vrijednosti prijevoznih sredstava | C39: 28 | D39: 0 | E39: 0 | F39: -
A40: 024 i 02924 | B40: Knjige, umjetnička djela i ostale izložbene vrijednosti (AOP 030 do 033 - 034) | C40: 29 | D40: =SUM(D41:D44)-D45 -> 238172 | E40: =SUM(E41:E44)-E45 -> 245344 | F40: 103.0112692
A41: 0241 | B41: Knjige | C41: 30 | D41: 238172 | E41: 245344 | F41: 103.0112692
A42: 0242 | B42: Umjetnička djela (izložena u galerijama, muzejima i slično) | C42: 31 | D42: 0 | E42: 0 | F42: -
A43: 0243 | B43: Muzejski izlošci i predmeti prirodnih rijetkosti | C43: 32 | D43: 0 | E43: 0 | F43: -
A44: 0244 | B44: Ostale nespomenute izložbene vrijednosti | C44: 33 | D44: 0 | E44: 0 | F44: -
A45: 02924 | B45: Ispravak vrijednosti knjiga, umjetničkih djela i ostalih izložbenih vrijednosti | C45: 34 | D45: 0 | E45: 0 | F45: -
A46: 025 i 02925 | B46: Višegodišnji nasadi i osnovno stado (AOP 036+037-038) | C46: 35 | D46: =SUM(D47:D48)-D49 -> 0 | E46: =SUM(E47:E48)-E49 -> 0 | F46: -
A47: 0251 | B47: Višegodišnji nasadi | C47: 36 | D47: 0 | E47: 0 | F47: -
A48: 0252 | B48: Osnovno stado | C48: 37 | D48: 0 | E48: 0 | F48: -
A49: 02925 | B49: Ispravak vrijednosti višegodišnjih nasada i osnovnog stada | C49: 38 | D49: 0 | E49: 0 | F49: -
A50: 026 i 02926 | B50: Nematerijalna proizvedena imovina (AOP 040 do 043 - 044) | C50: 39 | D50: =SUM(D51:D54)-D55 -> 0 | E50: =SUM(E51:E54)-E55 -> 0 | F50: -
A51: 0261 | B51: Istraživanje rudnih bogatstava | C51: 40 | D51: 0 | E51: 0 | F51: -
A52: 0262 | B52: Ulaganja u računalne programe | C52: 41 | D52: 0 | E52: 0 | F52: -
A53: 0263 | B53: Umjetnička, literarna i znanstvena djela | C53: 42 | D53: 0 | E53: 0 | F53: -
A54: 0264 | B54: Ostala nematerijalna proizvedena imovina | C54: 43 | D54: 0 | E54: 0 | F54: -
A55: 02926 | B55: Ispravak vrijednosti nematerijalne proizvedene imovine | C55: 44 | D55: 0 | E55: 0 | F55: -
A56: 03 | B56: Plemeniti metali i ostale pohranjene vrijednosti | C56: 45 | D56: 0 | E56: 0 | F56: -
A57: 04 | B57: Sitni inventar (AOP 047+048-049) | C57: 46 | D57: =SUM(D58:D59)-D60 -> 0 | E57: =SUM(E58:E59)-E60 -> 0 | F57: -
A58: 041 | B58: Zalihe sitnog inventara | C58: 47 | D58: 0 | E58: 0 | F58: -
A59: 042 | B59: Sitni inventar u upotrebi | C59: 48 | D59: 478032 | E59: 513049 | F59: 107.3252418
A60: 049 | B60: Ispravak vrijednosti sitnog inventara | C60: 49 | D60: 478032 | E60: 513049 | F60: 107.3252418
A61: 05 | B61: Dugotrajna nefinancijska imovina u pripremi (AOP 051 do 056) | C61: 50 | D61: =SUM(D62:D67) -> 0 | E61: =SUM(E62:E67) -> 0 | F61: -
A62: 051 | B62: Građevinski objekti u pripremi | C62: 51 | D62: 0 | E62: 0 | F62: -
A63: 052 | B63: Postrojenja i oprema u pripremi | C63: 52 | D63: 0 | E63: 0 | F63: -
A64: 053 | B64: Prijevozna sredstva u pripremi | C64: 53 | D64: 0 | E64: 0 | F64: -
A65: 054 | B65: Višegodišnji nasadi i osnovno stado u pripremi | C65: 54 | D65: 0 | E65: 0 | F65: -
A66: 055 | B66: Ostala nematerijalna proizvedena imovina u pripremi | C66: 55 | D66: 0 | E66: 0 | F66: -
A67: 056 | B67: Ostala nefinancijska dugotrajna imovina u pripremi | C67: 56 | D67: 0 | E67: 0 | F67: -
A68: 06 | B68: Proizvedena kratkotrajna imovina (AOP 058 do 060) | C68: 57 | D68: =SUM(D69:D71) -> 0 | E68: =SUM(E69:E71) -> 0 | F68: -
A69: 061 | B69: Zalihe za obavljanje djelatnosti | C69: 58 | D69: 0 | E69: 0 | F69: -
A70: 062 | B70: Proizvodnja i proizvodi | C70: 59 | D70: 0 | E70: 0 | F70: -
A71: 064 | B71: Roba za daljnju prodaju | C71: 60 | D71: 0 | E71: 0 | F71: -
A72: 1 | B72: Financijska imovina (AOP 062+067+073+104+120+132+142+143) | C72: 61 | D72: =D73+D78+D84+D115+D131+D143+D153+D154 -> 846489 | E72: =E73+E78+E84+E115+E131+E143+E153+E154 -> 1051207 | F72: 124.1843662
A73: 11 | B73: Novac u banci i blagajni (AOP 063 do 066) | C73: 62 | D73: =SUM(D74:D77) -> 120325 | E73: =SUM(E74:E77) -> 351348 | F73: 291.9991689
A74: 111 | B74: Novac u banci | C74: 63 | D74: 119869 | E74: 350590 | F74: 292.4776214
A75: 112 | B75: Izdvojena novčana sredstva | C75: 64 | D75: 0 | E75: 0 | F75: -
A76: 113 | B76: Novac u blagajni | C76: 65 | D76: 456 | E76: 758 | F76: 166.2280702
A77: 114 | B77: Vrijednosnice u blagajni | C77: 66 | D77: 0 | E77: 0 | F77: =IF(D77>0,IF(E77/D77>=100,">>100",E77/D77*100),"-") -> -
A78: 12 | B78: Depoziti, jamčevni polozi i potraživanja od zaposlenih te za više plaćene poreze i ostalo (AOP 068 do 072) | C78: 67 | D78: =SUM(D79:D83) -> 7434 | E78: =SUM(E79:E83) -> 26075 | F78: 350.7532957
A79: 121 | B79: Depoziti u kreditnim i ostalim financijskim institucijama | C79: 68 | D79: 0 | E79: 0 | F79: -
A80: 122 | B80: Jamčevni polozi | C80: 69 | D80: 0 | E80: 0 | F80: -
A81: 123 | B81: Potraživanja od zaposlenih | C81: 70 | D81: 0 | E81: 0 | F81: -
A82: 124 | B82: Potraživanja za više plaćene poreze i doprinose | C82: 71 | D82: 0 | E82: 0 | F82: -
A83: 129 | B83: Ostala potraživanja | C83: 72 | D83: 7434 | E83: 26075 | F83: 350.7532957
A84: 13 | B84: Potraživanja za dane zajmove (AOP 074+092-103) | C84: 73 | D84: =D85+D103-D114 -> 0 | E84: =E85+E103-E114 -> 0 | F84: -
B85: Zajmovi - tuzemni (AOP 075 do 091) | C85: 74 | D85: =SUM(D86:D102) -> 0 | E85: =SUM(E86:E102) -> 0 | F85: -
A86: 1321 | B86: Zajmovi neprofitnim organizacijama, građanima i kućanstvima u tuzemstvu | C86: 75 | D86: 0 | E86: 0 | F86: -
A87: 1332 | B87: Zajmovi kreditnim institucijama u javnom sektoru | C87: 76 | D87: 0 | E87: 0 | F87: -
A88: 1333 | B88: Zajmovi osiguravajućim društvima u javnom sektoru | C88: 77 | D88: 0 | E88: 0 | F88: -
A89: 1334 | B89: Zajmovi ostalim financijskim institucijama u javnom sektoru | C89: 78 | D89: 0 | E89: 0 | F89: -
A90: 1341 | B90: Zajmovi trgovačkim društvima u javnom sektoru | C90: 79 | D90: 0 | E90: 0 | F90: -
A91: 1353 | B91: Zajmovi tuzemnim kreditnim institucijama izvan javnog sektora | C91: 80 | D91: 0 | E91: 0 | F91: -
A92: 1354 | B92: Zajmovi tuzemnim osiguravajućim društvima izvan javnog sektora | C92: 81 | D92: 0 | E92: 0 | F92: -
A93: 1355 | B93: Zajmovi ostalim tuzemnim financijskim institucijama izvan javnog sektora | C93: 82 | D93: 0 | E93: 0 | F93: -
A94: 1363 | B94: Zajmovi tuzemnim trgovačkim društvima izvan javnog sektora | C94: 83 | D94: 0 | E94: 0 | F94: -
A95: 1364 | B95: Zajmovi tuzemnim obrtnicima | C95: 84 | D95: 0 | E95: 0 | F95: -
A96: 1371 | B96: Zajmovi državnom proračunu | C96: 85 | D96: 0 | E96: 0 | F96: -
A97: 1372 | B97: Zajmovi županijskim proračunima | C97: 86 | D97: 0 | E97: 0 | F97: -
A98: 1373 | B98: Zajmovi gradskim proračunima | C98: 87 | D98: 0 | E98: 0 | F98: -
A99: 1374 | B99: Zajmovi općinskim proračunima | C99: 88 | D99: 0 | E99: 0 | F99: -
A100: 1375 | B100: Zajmovi HZMO-u, HZZ-u, HZZO-u | C100: 89 | D100: 0 | E100: 0 | F100: -
A101: 1376 | B101: Zajmovi ostalim izvanproračunskim korisnicima državnog proračuna | C101: 90 | D101: 0 | E101: 0 | F101: -
A102: 1377 | B102: Zajmovi izvanproračunskim korisnicima županijskih, gradskih i općinskih proračuna | C102: 91 | D102: 0 | E102: 0 | F102: -
B103: Zajmovi - inozemni (AOP 093 do 102) | C103: 92 | D103: =SUM(D104:D113) -> 0 | E103: =SUM(E104:E113) -> 0 | F103: -
A104: 1313 | B104: Zajmovi međunarodnim organizacijama | C104: 93 | D104: 0 | E104: 0 | F104: -
A105: 1314 | B105: Zajmovi institucijama i tijelima EU | C105: 94 | D105: 0 | E105: 0 | F105: -
A106: 1315 | B106: Zajmovi inozemnim vladama u EU | C106: 95 | D106: 0 | E106: 0 | F106: -
A107: 1316 | B107: Zajmovi inozemnim vladama izvan EU | C107: 96 | D107: 0 | E107: 0 | F107: -
A108: 1322 | B108: Zajmovi neprofitnim organizacijama, građanima i kućanstvima u inozemstvu | C108: 97 | D108: 0 | E108: 0 | F108: -
A109: 1356 | B109: Zajmovi inozemnim kreditnim institucijama | C109: 98 | D109: 0 | E109: 0 | F109: -
A110: 1357 | B110: Zajmovi inozemnim osiguravajućim društvima | C110: 99 | D110: 0 | E110: 0 | F110: -
A111: 1358 | B111: Zajmovi ostalim inozemnim financijskim institucijama | C111: 100 | D111: 0 | E111: 0 | F111: -
A112: 1365 | B112: Zajmovi inozemnim trgovačkim društvima | C112: 101 | D112: 0 | E112: 0 | F112: -
A113: 1366 | B113: Zajmovi inozemnim obrtnicima | C113: 102 | D113: 0 | E113: 0 | F113: -
A114: 139 | B114: Ispravak vrijednosti danih zajmova | C114: 103 | D114: 0 | E114: 0 | F114: -
A115: 14 | B115: Vrijednosni papiri (AOP 105+112-119) | C115: 104 | D115: =D116+D123-D130 -> 0 | E115: =E116+E123-E130 -> 0 | F115: -
B116: Vrijednosni papiri - tuzemni (AOP 106 do 111) | C116: 105 | D116: =SUM(D117:D122) -> 0 | E116: =SUM(E117:E122) -> 0 | F116: -
A117: 1411 | B117: Čekovi | C117: 106 | D117: 0 | E117: 0 | F117: -
A118: 1421 | B118: Komercijalni i blagajnički zapisi | C118: 107 | D118: 0 | E118: 0 | F118: -
A119: 1431 | B119: Mjenice | C119: 108 | D119: 0 | E119: 0 | F119: -
A120: 1441 | B120: Obveznice | C120: 109 | D120: 0 | E120: 0 | F120: -
A121: 1451 | B121: Opcije i drugi financijski derivati | C121: 110 | D121: 0 | E121: 0 | F121: -
A122: 1461 | B122: Ostali vrijednosni papiri | C122: 111 | D122: 0 | E122: 0 | F122: -
B123: Vrijednosni papiri - inozemni (AOP 113 do 118) | C123: 112 | D123: =SUM(D124:D129) -> 0 | E123: =SUM(E124:E129) -> 0 | F123: -
A124: 1412 | B124: Čekovi | C124: 113 | D124: 0 | E124: 0 | F124: -
A125: 1422 | B125: Komercijalni i blagajnički zapisi | C125: 114 | D125: 0 | E125: 0 | F125: -
A126: 1432 | B126: Mjenice | C126: 115 | D126: 0 | E126: 0 | F126: -
A127: 1442 | B127: Obveznice | C127: 116 | D127: 0 | E127: 0 | F127: -
A128: 1452 | B128: Opcije i drugi financijski derivati | C128: 117 | D128: 0 | E128: 0 | F128: -
A129: 1462 | B129: Ostali vrijednosni papiri | C129: 118 | D129: 0 | E129: 0 | F129: -
A130: 149 | B130: Ispravak vrijednosti vrijednosnih papira | C130: 119 | D130: 0 | E130: 0 | F130: -
A131: 15 | B131: Dionice i udjeli u glavnici (AOP 121+128-131) | C131: 120 | D131: =D132+D139-D142 -> 0 | E131: =E132+E139-E142 -> 0 | F131: -
B132: Dionice i udjeli u glavnici - tuzemni (AOP 122 do 127) | C132: 121 | D132: =SUM(D133:D138) -> 0 | E132: =SUM(E133:E138) -> 0 | F132: -
A133: 1512 | B133: Dionice i udjeli u glavnici kreditnih institucija u javnom sektoru | C133: 122 | D133: 0 | E133: 0 | F133: -
A134: 1513 | B134: Dionice i udjeli u glavnici osiguravajućih društava u javnom sektoru | C134: 123 | D134: 0 | E134: 0 | F134: -
A135: 1514 | B135: Dionice i udjeli u glavnici ostalih financijskih institucija u javnom sektoru | C135: 124 | D135: 0 | E135: 0 | F135: -
A136: 1521 | B136: Dionice i udjeli u glavnici trgovačkih društava u javnom sektoru | C136: 125 | D136: 0 | E136: 0 | F136: -
A137: 1531 | B137: Dionice i udjeli u glavnici tuzemnih kreditnih i ostalih financijskih institucija izvan javnog sektora | C137: 126 | D137: 0 | E137: 0 | F137: -
A138: 1541 | B138: Dionice i udjeli u glavnici tuzemnih trgovačkih društava izvan javnog sektora | C138: 127 | D138: 0 | E138: 0 | F138: -
B139: Dionice i udjeli u glavnici - inozemni (AOP 129+130) | C139: 128 | D139: =SUM(D140:D141) -> 0 | E139: =SUM(E140:E141) -> 0 | F139: -
A140: 1532 | B140: Dionice i udjeli u glavnici inozemnih kreditnih i ostalih financijskih institucija | C140: 129 | D140: 0 | E140: 0 | F140: -
A141: 1542 | B141: Dionice i udjeli u glavnici inozemnih trgovačkih društava izvan javnog sektora | C141: 130 | D141: 0 | E141: 0 | F141: =IF(D141>0,IF(E141/D141>=100,">>100",E141/D141*100),"-") -> -
A142: 159 | B142: Ispravak vrijednosti dionica i udjela u glavnici | C142: 131 | D142: 0 | E142: 0 | F142: -
A143: 16 | B143: Potraživanja za prihode poslovanja (AOP 133 do 140 - 141) | C143: 132 | D143: =SUM(D144:D151)-D152 -> 0 | E143: =SUM(E144:E151)-E152 -> 0 | F143: -
A144: 161 | B144: Potraživanja za poreze | C144: 133 | D144: 0 | E144: 0 | F144: -
A145: 162 | B145: Potraživanja za doprinose | C145: 134 | D145: 0 | E145: 0 | F145: -
A146: 163 | B146: Potraživanja za pomoći od međunarodnih organizacija, institucija i tijela EU te proračunskih korisnika temeljem prijenosa sredstava EU | C146: 135 | D146: 0 | E146: 0 | F146: -
A147: 164 | B147: Potraživanja za prihode od imovine | C147: 136 | D147: 0 | E147: 0 | F147: -
A148: 165 | B148: Potraživanja za upravne i administrativne pristojbe, pristojbe po posebnim propisima i naknade | C148: 137 | D148: 0 | E148: 0 | F148: -
A149: 166 | B149: Potraživanja za prihode od prodaje proizvoda i robe te pruženih usluga | C149: 138 | D149: 0 | E149: 0 | F149: -
A150: 167 | B150: Potraživanja za prihode iz proračuna | C150: 139 | D150: 0 | E150: 0 | F150: -
A151: 168 | B151: Potraživanja za kazne i upravne mjere te ostale prihode | C151: 140 | D151: 0 | E151: 0 | F151: -
A152: 169 | B152: Ispravak vrijednosti potraživanja | C152: 141 | D152: 0 | E152: 0 | F152: -
A153: 17 | B153: Potraživanja od prodaje nefinancijske imovine | C153: 142 | D153: 0 | E153: 0 | F153: -
A154: 19 | B154: Rashodi budućih razdoblja i nedospjela naplata prihoda (AOP 144+145) | C154: 143 | D154: =SUM(D155:D156) -> 718730 | E154: =SUM(E155:E156) -> 673784 | F154: 93.74646947
A155: 191 | B155: Rashodi budućih razdoblja | C155: 144 | D155: 718730 | E155: 673784 | F155: 93.74646947
A156: 192 | B156: Nedospjela naplata prihoda | C156: 145 | D156: 0 | E156: 0 | F156: -
B157: OBVEZE I VLASTITI IZVORI (AOP 147+205) | C157: 146 | D157: =D158+D216 -> 9003557 | E157: =E158+E216 -> 9485507 | F157: 105.3528844
A158: 2 | B158: Obveze (AOP 148+157+158+174+202) | C158: 147 | D158: =D159+D168+D169+D185+D213 -> 912882 | E158: =E159+E168+E169+E185+E213 -> 912432 | F158: 99.95070557
A159: 23 | B159: Obveze za rashode poslovanja (AOP 149 do 156) | C159: 148 | D159: =SUM(D160:D167) -> 912882 | E159: =SUM(E160:E167) -> 912432 | F159: =IF(D159>0,IF(E159/D159>=100,">>100",E159/D159*100),"-") -> 99.95070557
A160: 231 | B160: Obveze za zaposlene | C160: 149 | D160: 714252 | E160: 712230 | F160: 99.71690664
A161: 232 | B161: Obveze za materijalne rashode | C161: 150 | D161: 191196 | E161: 176420 | F161: 92.27180485
A162: 234 | B162: Obveze za financijske rashode | C162: 151 | D162: 0 | E162: 0 | F162: -
A163: 235 | B163: Obveze za subvencije | C163: 152 | D163: 0 | E163: 0 | F163: -
A164: 236 | B164: Obveze temeljem sredstava pomoći EU | C164: 153 | D164: 0 | E164: 0 | F164: -
A165: 237 | B165: Obveze za naknade građanima i kućanstvima | C165: 154 | D165: 0 | E165: 0 | F165: -
A166: 238 | B166: Obveze za kazne, naknade šteta i kapitalne pomoći | C166: 155 | D166: 0 | E166: 0 | F166: -
A167: 239 | B167: Ostale tekuće obveze | C167: 156 | D167: 7434 | E167: 23782 | F167: 319.9085284
A168: 24 | B168: Obveze za nabavu nefinancijske imovine | C168: 157 | D168: 0 | E168: 0 | F168: -
A169: 25 | B169: Obveze za vrijednosne papire (AOP 159+166-173) | C169: 158 | D169: =D170+D177-D184 -> 0 | E169: =E170+E177-E184 -> 0 | F169: -
B170: Obveze za vrijednosne papire - tuzemne (AOP 160 do 165) | C170: 159 | D170: =SUM(D171:D176) -> 0 | E170: =SUM(E171:E176) -> 0 | F170: -
A171: 2511 | B171: Obveze za čekove | C171: 160 | D171: 0 | E171: 0 | F171: -
A172: 2521 | B172: Obveze za trezorske zapise | C172: 161 | D172: 0 | E172: 0 | F172: -
A173: 2531 | B173: Obveze za mjenice | C173: 162 | D173: 0 | E173: 0 | F173: -
A174: 2541 | B174: Obveze za obveznice | C174: 163 | D174: 0 | E174: 0 | F174: -
A175: 2551 | B175: Obveze za opcije i druge financijske derivate | C175: 164 | D175: 0 | E175: 0 | F175: -
A176: 2561 | B176: Obveze za ostale vrijednosne papire | C176: 165 | D176: 0 | E176: 0 | F176: -
B177: Obveze za vrijednosne papire - inozemne (AOP 167 do 172) | C177: 166 | D177: =SUM(D178:D183) -> 0 | E177: =SUM(E178:E183) -> 0 | F177: -
A178: 2512 | B178: Obveze za čekove | C178: 167 | D178: 0 | E178: 0 | F178: -
A179: 2522 | B179: Obveze za trezorske zapise | C179: 168 | D179: 0 | E179: 0 | F179: -
A180: 2532 | B180: Obveze za mjenice | C180: 169 | D180: 0 | E180: 0 | F180: -
A181: 2542 | B181: Obveze za obveznice | C181: 170 | D181: 0 | E181: 0 | F181: -
A182: 2552 | B182: Obveze za opcije i druge financijske derivate | C182: 171 | D182: 0 | E182: 0 | F182: -
A183: 2562 | B183: Obveze za ostale vrijednosne papire | C183: 172 | D183: 0 | E183: 0 | F183: -
A184: 259 | B184: Ispravak vrijednosti obveza za vrijednosne papire | C184: 173 | D184: 0 | E184: 0 | F184: -
A185: 26 | B185: Obveze za kredite i zajmove (AOP 175+192) | C185: 174 | D185: =D186+D203 -> 0 | E185: =E186+E203 -> 0 | F185: -
B186: Obveze za kredite i zajmove - tuzemne (AOP 176 do 191) | C186: 175 | D186: =SUM(D187:D202) -> 0 | E186: =SUM(E187:E202) -> 0 | F186: -
A187: 2622 | B187: Obveze za kredite od kreditnih institucija u javnom sektoru | C187: 176 | D187: 0 | E187: 0 | F187: -
A188: 2623 | B188: Obveze za zajmove od osiguravajućih društava u javnom sektoru | C188: 177 | D188: 0 | E188: 0 | F188: -
A189: 2624 | B189: Obveze za zajmove od ostalih financijskih institucija u javnom sektoru | C189: 178 | D189: 0 | E189: 0 | F189: -
A190: 2631 | B190: Obveze za zajmove od trgovačkih društava u javnom sektoru | C190: 179 | D190: 0 | E190: 0 | F190: -
A191: 2643 | B191: Obvez za kredite od tuzemnih kreditnih institucija izvan javnog sektora | C191: 180 | D191: 0 | E191: 0 | F191: -
A192: 2644 | B192: Obveze za zajmove od tuzemnih osiguravajućih društava izvan javnog sektora | C192: 181 | D192: 0 | E192: 0 | F192: -
A193: 2645 | B193: Obveze za zajmove od ostalih tuzemnih financijskih institucija izvan javnog sektora | C193: 182 | D193: 0 | E193: 0 | F193: -
A194: 2653 | B194: Obveze za zajmove od tuzemnih trgovačkih društava izvan javnog sektora | C194: 183 | D194: 0 | E194: 0 | F194: -
A195: 2654 | B195: Obveze za zajmove od tuzemnih obrtnika | C195: 184 | D195: 0 | E195: 0 | F195: -
A196: 2671 | B196: Obveze za zajmove od državnog proračuna | C196: 185 | D196: 0 | E196: 0 | F196: -
A197: 2672 | B197: Obveze za zajmove od županijskih proračuna | C197: 186 | D197: 0 | E197: 0 | F197: -
A198: 2673 | B198: Obveze za zajmove od gradskih proračuna | C198: 187 | D198: 0 | E198: 0 | F198: -
A199: 2674 | B199: Obveze za zajmove od općinskih proračuna | C199: 188 | D199: 0 | E199: 0 | F199: -
A200: 2675 | B200: Obveze za zajmove od HZMO-a, HZZ-a i HZZO-a | C200: 189 | D200: 0 | E200: 0 | F200: -
A201: 2676 | B201: Obveze za zajmove od ostalih izvanproračunskih korisnika državnog proračuna | C201: 190 | D201: 0 | E201: 0 | F201: -
... 88 more rows

Sheet Obv
A1: <–––– Povratak na RefStr | C1: Kontrole ––––>
A2: IZVJEŠTAJ O OBVEZAMA | C2: =IF(RefStr!K12-RefStr!K10 < 32,"Obveze (VP 160)","Obveze (VP 159)") -> Obveze (VP 159)
A3: =IF(RefStr!F6<>"",IF(OR(RefStr!K12-RefStr!K10 < 32),LOOKUP(RefStr!F6,RefStr!N40:N64,RefStr!O40:O64),LOOKUP(RefStr!F6,RefStr!N40:N64,RefStr!P40:P64))," - razdoblje izvještavanja nije odabrano -") -> za razdoblje 1. listopada do 31. prosinca 2014. godine
A4: Obveznik: | B4: ="RKP: " & TEXT(INT(VALUE(RefStr!B6)),"00000") & ", " & "MB: " & TEXT(INT(VALUE(RefStr!B8)), "00000000") & " " & RefStr!B10 -> RKP: 14402, MB: 03324281 OŠ VUGROVEC - KAŠINA
B5: =RefStr!B12 & " " & RefStr!C12 & ", " & RefStr!B14 -> 10362 KAŠINA, IVANA MAŽURANIĆA 43
B6: ="Razina: " & RefStr!B16 & ", Razdjel: " & TEXT(INT(VALUE(RefStr!B20)), "000") -> Razina: 31, Razdjel: 000
B7: ="Djelatnost: " & RefStr!B18 & " " & RefStr!C18 -> Djelatnost: 8520 Osnovno obrazovanje
D9: iznosi u kunama, bez lipa
A10: Račun iz rač. plana | B10: OPIS | C10: AOP | D10: Iznos
A11: 1 | B11: 2 | C11: 3 | D11: 4
B12: Stanje obveza na početku izvještajnog razdoblja (=AOP 036 iz prethodnog izvještaja) | C12: 1
B13: Povećanje obveza u izvještajnom razdoblju (AOP 003+004+012+013) | C13: 2 | D13: =D14+D15+D23+D24 -> 0
B14: Međusobne obveze proračunskih korisnika | C14: 3
A15: 23 | B15: Obveze za rashode poslovanja (AOP 005 do 011) | C15: 4 | D15: =SUM(D16:D22) -> 0
A16: 231 | B16: Obveze za zaposlene | C16: 5
A17: 232 | B17: Obveze za materijalne rashode | C17: 6
A18: 234 | B18: Obveze za financijske rashode | C18: 7
A19: 235 | B19: Obveze za subvencije | C19: 8
A20: 236 | B20: Obveze temeljem sredstava pomoći EU | C20: 9
A21: 237 | B21: Obveze za naknade građanima i kućanstvima | C21: 10
A22: 238.239 | B22: Obveze za kazne, naknade šteta i kapitalne pomoći te ostale tekuće obveze | C22: 11
A23: 24 | B23: Obveze za nabavu nefinancijske imovine | C23: 12
A24: dio 25,26 | B24: Obveze za financijsku imovinu (AOP 014 do 018) | C24: 13 | D24: =SUM(D25:D29) -> 0
A25: 251.253 | B25: Obveze za čekove i mjenice | C25: 14
A26: 254 | B26: Obveze za obveznice | C26: 15
A27: 256 | B27: Obveze za ostale vrijednosne papire | C27: 16
A28: 262,263,2643,2644, 2645,2653,2654,267 | B28: Obveze za tuzemne kredite i zajmove | C28: 17
A29: 261,2646,2647, 2648,2655,2656 | B29: Obveze za inozemne kredite i zajmove | C29: 18
B30: Podmirene obveze u izvještajnom razdoblju (AOP 020+021+029+030) | C30: 19 | D30: =D31+D32+D40+D41 -> 0
B31: Međusobne obveze proračunskih korisnika | C31: 20
A32: 23 | B32: Obveze za rashode poslovanja (AOP 022 do 028) | C32: 21 | D32: =SUM(D33:D39) -> 0
A33: 231 | B33: Obveze za zaposlene | C33: 22
A34: 232 | B34: Obveze za materijalne rashode | C34: 23
A35: 234 | B35: Obveze za financijske rashode | C35: 24
A36: 235 | B36: Obveze za subvencije | C36: 25
A37: 236 | B37: Obveze temeljem sredstava pomoći EU | C37: 26
A38: 237 | B38: Obveze za naknade građanima i kućanstvima | C38: 27
A39: 238.239 | B39: Obveze za kazne, naknade šteta i kapitalne pomoći te ostale tekuće obveze | C39: 28
A40: 24 | B40: Obveze za nabavu nefinancijske imovine | C40: 29
A41: dio 25,26 | B41: Obveze za financijsku imovinu (AOP 031 do 035) | C41: 30 | D41: =SUM(D42:D46) -> 0
A42: 251.253 | B42: Obveze za čekove i mjenice | C42: 31
A43: 254 | B43: Obveze za obveznice | C43: 32
A44: 256 | B44: Obveze za ostale vrijednosne papire | C44: 33
A45: 262,263,2643,2644, 2645,2653,2654,267 | B45: Obveze za tuzemne kredite i zajmove | C45: 34
A46: 261,2646,2647, 2648,2655,2656 | B46: Obveze za inozemne kredite i zajmove | C46: 35
B47: Stanje obveza na kraju izvještajnog razdoblja (AOP 001+002-019) i (AOP 037+090) | C47: 36 | D47: =D12+D13-D30 -> 0
B48: Stanje dospjelih obveza na kraju izvještajnog razdoblja (AOP 038+043+079+084) | C48: 37 | D48: =D49+D54+D90+D95 -> 0
B49: Međusobne obveze proračunskih korisnika (AOP 039 do 042) | C49: 38 | D49: =SUM(D50:D53) -> 0
B50: a) Prekoračenje 1 do 60 dana | C50: 39
B51: b) Prekoračenje 61 do 180 dana | C51: 40
B52: c) Prekoračenje 181 do 360 dana | C52: 41
B53: d) Prekoračenje preko 360 dana | C53: 42
A54: 23 | B54: Ukupno obveze za rashode poslovanja (AOP 044+049+054+059+064+069+074) | C54: 43 | D54: =D55+D60+D65+D70+D75+D80+D85 -> 0
A55: 231 | B55: Obveze za zaposlene (AOP 045 do 048) | C55: 44 | D55: =SUM(D56:D59) -> 0
B56: a) Prekoračenje 1 do 60 dana | C56: 45
B57: b) Prekoračenje 61 do 180 dana | C57: 46
B58: c) Prekoračenje 181 do 360 dana | C58: 47
B59: d) Prekoračenje preko 360 dana | C59: 48
A60: 232 | B60: Obveze za materijalne rashode (AOP 050 do 053) | C60: 49 | D60: =SUM(D61:D64) -> 0
B61: a) Prekoračenje 1 do 60 dana | C61: 50
B62: b) Prekoračenje 61 do 180 dana | C62: 51
B63: c) Prekoračenje 181 do 360 dana | C63: 52
B64: d) Prekoračenje preko 360 dana | C64: 53
A65: 234 | B65: Obveze za financijske rashode (AOP 055 do 058) | C65: 54 | D65: =SUM(D66:D69) -> 0
B66: a) Prekoračenje 1 do 60 dana | C66: 55
B67: b) Prekoračenje 61 do 180 dana | C67: 56
B68: c) Prekoračenje 181 do 360 dana | C68: 57
B69: d) Prekoračenje preko 360 dana | C69: 58
A70: 235 | B70: Obveze za subvencije (AOP 060 do 063) | C70: 59 | D70: =SUM(D71:D74) -> 0
B71: a) Prekoračenje 1 do 60 dana | C71: 60
B72: b) Prekoračenje 61 do 180 dana | C72: 61
B73: c) Prekoračenje 181 do 360 dana | C73: 62
B74: d) Prekoračenje preko 360 dana | C74: 63
A75: 236 | B75: Obveze temeljem sredstava pomoći EU (AOP 065 do 068) | C75: 64 | D75: =SUM(D76:D79) -> 0
B76: a) Prekoračenje 1 do 60 dana | C76: 65
B77: b) Prekoračenje 61 do 180 dana | C77: 66
B78: c) Prekoračenje 181 do 360 dana | C78: 67
B79: d) Prekoračenje preko 360 dana | C79: 68
A80: 237 | B80: Obveze za naknade građanima i kućanstvima (AOP 070 do 073) | C80: 69 | D80: =SUM(D81:D84) -> 0
B81: a) Prekoračenje 1 do 60 dana | C81: 70
B82: b) Prekoračenje 61 do 180 dana | C82: 71
B83: c) Prekoračenje 181 do 360 dana | C83: 72
B84: d) Prekoračenje preko 360 dana | C84: 73
A85: 238.239 | B85: Obveze za kazne, naknade šteta i kapitalne pomoći te ostale tekuće obveze (AOP 075 do 078) | C85: 74 | D85: =SUM(D86:D89) -> 0
B86: a) Prekoračenje 1 do 60 dana | C86: 75
B87: b) Prekoračenje 61 do 180 dana | C87: 76
B88: c) Prekoračenje 181 do 360 dana | C88: 77
B89: d) Prekoračenje preko 360 dana | C89: 78
A90: 24 | B90: Obveze za nabavu nefinancijske imovine (AOP 080 do 083) | C90: 79 | D90: =SUM(D91:D94) -> 0
B91: a) Prekoračenje 1 do 60 dana | C91: 80
B92: b) Prekoračenje 61 do 180 dana | C92: 81
B93: c) Prekoračenje 181 do 360 dana | C93: 82
B94: d) Prekoračenje preko 360 dana | C94: 83
A95: dio 25,26 | B95: Obveze za financijsku imovinu (AOP 085 do 089) | C95: 84 | D95: =SUM(D96:D100) -> 0
A96: 251.253 | B96: Obveze za čekove i mjenice | C96: 85
A97: 254 | B97: Obveze za obveznice | C97: 86
A98: 256 | B98: Obveze za ostale vrijednosne papire | C98: 87
A99: 262,263,2643,2644, 2645,2653,2654,267 | B99: Obveze za tuzemne kredite i zajmove | C99: 88
A100: 261,2646,2647, 2648,2655,2656 | B100: Obveze za inozemne kredite i zajmove | C100: 89
B101: Stanje nedospjelih obveza na kraju izvještajnog razdoblja (AOP 091 do 094) | C101: 90 | D101: =SUM(D102:D105) -> 0
B102: Međusobne obveze proračunskih korisnika | C102: 91
A103: 23 | B103: Obveze za rashode poslovanja | C103: 92
A104: 24 | B104: Obveze za nabavu nefinancijske imovine | C104: 93
A105: dio 25,26 | B105: Obveze za financijsku imovinu | C105: 94
A107: ="Zakonski predstavnik: " & RefStr!H33 -> Zakonski predstavnik: VLADIMIR VUGER
B108: M.P.
D109: ___________________________________
C110: (potpis zakonskog predstavnika)

Sheet SPRRAS
A1: <–––– Povratak na RefStr | D1: Kontrole ––––>
A2: IZVJEŠTAJ O PRIHODIMA I RASHODIMA KORISNIKA PRORAČUNA | E2: Obrazac S-PR-RAS VP 161
A3: =IF(RefStr!F6="","- prije popunjavanja obrasca odaberite razdoblje -",IF(OR(RIGHT(RefStr!F6,2)="03",RIGHT(RefStr!F6,2)="09"),LOOKUP(RefStr!F6,RefStr!N40:N64,RefStr!Q40:Q64)," - za odabrano razdoblje obrazac se ne popunjava -")) -> - za odabrano razdoblje obrazac se ne popunjava -
A4: Obveznik: | B4: ="RKP: " & TEXT(INT(VALUE(RefStr!B6)),"00000") & ", " & "MB: " & TEXT(INT(VALUE(RefStr!B8)), "00000000") & " " & RefStr!B10 -> RKP: 14402, MB: 03324281 OŠ VUGROVEC - KAŠINA
B5: =RefStr!B12 & " " & RefStr!C12 & ", " & RefStr!B14 -> 10362 KAŠINA, IVANA MAŽURANIĆA 43
B6: ="Razina: " & RefStr!B16 & ", Razdjel: " & TEXT(INT(VALUE(RefStr!B20)), "000") -> Razina: 31, Razdjel: 000
B7: ="Djelatnost: " & RefStr!B18 & " " & RefStr!C18 -> Djelatnost: 8520 Osnovno obrazovanje
F9: iznosi u kunama, bez lipa
A10: Rač. iz rač. plana | B10: NAZIV | C10: AOP | D10: Ostvareno u izvještajnom razdoblju prethodne godine | E10: Ostvareno u izvještajnom razdoblju tekuće godine | F10: Indeks (5/4)
A11: 1 | B11: 2 | C11: 3 | D11: 4 | E11: 5 | F11: 6
A12: 6 | B12: PRIHODI POSLOVANJA (AOP 002 do 007) | C12: 1 | D12: =SUM(D13:D18) -> 0 | E12: =SUM(E13:E18) -> 0 | F12: =IF(D12>0,IF(E12/D12>=100,">>100",E12/D12*100),"-") -> -
A13: 63 | B13: Pomoći iz inozemstva (darovnice) i od subjekata unutar općeg proračuna | C13: 2 | F13: =IF(D13>0,IF(E13/D13>=100,">>100",E13/D13*100),"-") -> -
A14: 64 | B14: Prihodi od imovine | C14: 3 | F14: =IF(D14>0,IF(E14/D14>=100,">>100",E14/D14*100),"-") -> -
A15: 65 | B15: Prihodi od upravnih i administrativnih pristojbi, pristojbi po posebnim propisima i naknada | C15: 4 | F15: =IF(D15>0,IF(E15/D15>=100,">>100",E15/D15*100),"-") -> -
A16: 66 | B16: Prihodi od prodaje proizvoda i robe te pruženih usluga i prihodi od donacija | C16: 5 | F16: =IF(D16>0,IF(E16/D16>=100,">>100",E16/D16*100),"-") -> -
A17: 67 | B17: Prihodi iz proračuna | C17: 6 | F17: =IF(D17>0,IF(E17/D17>=100,">>100",E17/D17*100),"-") -> -
A18: 68 | B18: Kazne, upravne mjere i ostali prihodi | C18: 7 | F18: -
A19: 3 | B19: RASHODI POSLOVANJA (AOP 009 do 015) | C19: 8 | D19: =SUM(D20:D26) -> 0 | E19: =SUM(E20:E26) -> 0 | F19: -
A20: 31 | B20: Rashodi za zaposlene | C20: 9 | F20: -
A21: 32 | B21: Materijalni rashodi | C21: 10 | F21: -
A22: 34 | B22: Financijski rashodi | C22: 11 | F22: -
A23: 35 | B23: Subvencije | C23: 12 | F23: -
A24: 36 | B24: Pomoći dane u inozemstvo i unutar općeg proračuna | C24: 13 | F24: -
A25: 37 | B25: Naknade građanima i kućanstvima na temelju osiguranja i druge naknade | C25: 14 | F25: -
A26: 38 | B26: Ostali rashodi | C26: 15 | F26: -
B27: Stanje zaliha proizvodnje i gotovih proizvoda na početku razdoblja | C27: 16 | F27: -
B28: Stanje zaliha proizvodnje i gotovih proizvoda na kraju razdoblja | C28: 17 | F28: -
B29: Povećanje zaliha proizvodnje i gotovih proizvoda (AOP 017-016) | C29: 18 | D29: =IF(D28>=D27,D28-D27,0) -> 0 | E29: =IF(E28>=E27,E28-E27,0) -> 0 | F29: =IF(D29>0,IF(E29/D29>=100,">>100",E29/D29*100),"-") -> -
B30: Smanjenje zaliha proizvodnje i gotovih proizvoda (AOP 016-017) | C30: 19 | D30: =IF(D27>=D28,D27-D28,0) -> 0 | E30: =IF(E27>=E28,E27-E28,0) -> 0 | F30: =IF(D30>0,IF(E30/D30>=100,">>100",E30/D30*100),"-") -> -
A31: 7 | B31: PRIHODI OD PRODAJE NEFINANCIJSKE IMOVINE | C31: 20 | F31: =IF(D31>0,IF(E31/D31>=100,">>100",E31/D31*100),"-") -> -
A32: 4 | B32: RASHODI ZA NABAVU NEFINANCIJSKE IMOVINE (AOP 022 do 026) | C32: 21 | D32: =SUM(D33:D37) -> 0 | E32: =SUM(E33:E37) -> 0 | F32: -
A33: 41 | B33: Rashodi za nabavu neproizvedene dugotrajne imovine | C33: 22 | F33: -
A34: 42 | B34: Rashodi za nabavu proizvedene dugotrajne imovine | C34: 23 | F34: -
A35: 43 | B35: Rashodi za nabavu plemenitih metala i ostalih pohranjenih vrijednosti | C35: 24 | F35: -
A36: 44 | B36: Rashodi za nabavu proizvedene kratkotrajne imovine | C36: 25 | F36: -
A37: 45 | B37: Rashodi za dodatna ulaganja na nefinancijskoj imovini | C37: 26 | F37: -
B38: UKUPNI PRIHODI (AOP 001+020) | C38: 27 | D38: =D12+D31 -> 0 | E38: =E12+E31 -> 0 | F38: =IF(D38>0,IF(E38/D38>=100,">>100",E38/D38*100),"-") -> -
B39: UKUPNI RASHODI (AOP 008-018+021 ili AOP 008+019+021) | C39: 28 | D39: =D19-D29+D30+D32 -> 0 | E39: =E19-E29+E30+E32 -> 0 | F39: =IF(D39>0,IF(E39/D39>=100,">>100",E39/D39*100),"-") -> -
A40: OBVEZNI ANALITIČKI PODACI
B41: Prosječan broj zaposlenih kod korisnika na osnovi stanja krajem izvještajnog razdoblja (cijeli broj) | C41: 29 | F41: =IF(D41>0,IF(E41/D41>=100,">>100",E41/D41*100),"-") -> -
B42: Prosječan broj zaposlenih kod korisnika na osnovi sati rada (cijeli broj) | C42: 30 | F42: -
A43: 6311 | B43: Tekuće pomoći od inozemnih vlada | C43: 31 | F43: -
A44: 6312 | B44: Kapitalne pomoći od inozemnih vlada | C44: 32 | F44: -
A45: 6321 | B45: Tekuće pomoći od međunarodnih organizacija | C45: 33 | F45: -
A46: 6322 | B46: Kapitalne pomoći od međunarodnih organizacija | C46: 34 | F46: -
A47: 6323 | B47: Tekuće pomoći od institucija i tijela EU | C47: 35 | F47: -
A48: 6324 | B48: Kapitalne pomoći od institucija i tijela EU | C48: 36 | F48: -
A49: 661 | B49: Prihodi od prodaje proizvode i robe te pruženih usluga | C49: 37 | F49: -
A50: 6631 | B50: Tekuće donacije | C50: 38 | F50: -
A51: 6632 | B51: Kapitalne donacije | C51: 39 | F51: -
A52: 671 | B52: Prihodi iz proračuna za financiranje redovne djelatnosti proračunskih korisnika | C52: 40 | F52: -
A53: 31 | B53: Rashodi za zaposlene kod korisnika (AOP 042+045+046) | C53: 41 | D53: =D54+D57+D58 -> 0 | E53: =E54+E57+E58 -> 0 | F53: -
A54: 311 | B54: Plaće (bruto) | C54: 42 | F54: -
A55: dio 311 | B55: Neto plaće kod korisnika | C55: 43 | F55: -
A56: dio 311 | B56: Porez i prirez iz plaće kod korisnika | C56: 44 | F56: -
A57: 312 | B57: Ostali rashodi za zaposlene | C57: 45 | F57: -
A58: 313 | B58: Doprinosi na plaće | C58: 46 | F58: -
A59: 32 | B59: Materijalni rashodi kod korisnika | C59: 47 | F59: -
A60: 3211 | B60: Službena putovanja | C60: 48 | F60: -
A61: 3212 | B61: Naknade za prijevoz, za rad na terenu i odvojeni život | C61: 49 | F61: -
A62: 3213 | B62: Stručno usavršavanje zaposlenika | C62: 50 | F62: -
A63: 3214 | B63: Ostale naknade troškova zaposlenima | C63: 51 | F63: -
A64: 3221 | B64: Uredski materijal i ostali materijalni rashodi | C64: 52 | F64: -
A65: 3222 | B65: Materijal i sirovine | C65: 53 | F65: -
A66: 3223 | B66: Energija | C66: 54 | F66: -
A67: 3225 | B67: Sitni inventar i auto gume | C67: 55 | F67: -
A68: 3226 | B68: Vojna oprema | C68: 56 | F68: -
A69: 3227 | B69: Službena, radna i zaštitna odjeća i obuća | C69: 57 | F69: -
A70: 323 | B70: Rashodi za usluge | C70: 58 | F70: -
A71: 3237 | B71: Intelektualne i osobne usluge | C71: 59 | F71: -
A72: 3291 | B72: Naknade za rad predstavničkih i izvršnih tijela, povjerenstava i slično | C72: 60 | F72: -
A73: 3292 | B73: Premije osiguranja | C73: 61 | F73: -
A74: 3293 | B74: Reprezentacija | C74: 62 | F74: -
A75: 3294 | B75: Članarine | C75: 63 | F75: -
A76: 3431 | B76: Bankarske usluge i usluge platnog prometa | C76: 64 | F76: -
A77: 3611 | B77: Tekuće pomoći inozemnim vladama | C77: 65 | F77: -
A78: 3612 | B78: Kapitalne pomoći inozemnim vladama | C78: 66 | F78: -
A79: 3621 | B79: Tekuće pomoći međunarodnim organizacijama te institucijama i tijelima EU | C79: 67 | F79: -
A80: 3622 | B80: Kapitalne pomoći međunarodnim organizacijama te institucijama i tijelima EU | C80: 68 | F80: -
A81: 381 | B81: Tekuće donacije | C81: 69 | F81: -
A82: 382 | B82: Kapitalne donacije | C82: 70 | F82: -
A83: 4112 | B83: Rudna bogatstva | C83: 71 | F83: -
A84: 4113 | B84: Ostala prirodna materijalna imovina | C84: 72 | F84: -
A85: 418 | B85: Predujmovi za nabavu neproizvedene imovine | C85: 73 | F85: -
A86: 4211 | B86: Stambeni objekti | C86: 74 | F86: -
A87: 4212 | B87: Poslovni objekti | C87: 75 | F87: -
A88: 4213 | B88: Ceste, željeznice i ostali prometni objekti | C88: 76 | F88: -
A89: 4214 | B89: Ostali građevinski objekti | C89: 77 | F89: -
A90: 422 | B90: Postrojenja i oprema | C90: 78 | F90: -
A91: 423 | B91: Prijevozna sredstva | C91: 79 | F91: -
A92: 424 | B92: Knjige, umjetnička djela i ostale izložbene vrijednosti | C92: 80 | F92: -
A93: 425 | B93: Višegodišnji nasadi i osnovno stado | C93: 81 | F93: -
A94: 426 | B94: Nematerijalna proizvedena imovina | C94: 82 | F94: -
A95: 428 | B95: Predujmovi za nabavu proizvedene dugotrajne imovine | C95: 83 | F95: -
A96: 438 | B96: Predujmovi za nabavu plemenitih metala, umjetničkih i znanstvenih djela i ostalih vrijednosti | C96: 84 | F96: -
A97: 451 | B97: Dodatna ulaganja na građevinskim objektima | C97: 85 | F97: -
A98: 452 | B98: Dodatna ulaganja na postrojenjima i opremi | C98: 86 | F98: -
A99: 453 | B99: Dodatna ulaganja na prijevoznim sredstvima | C99: 87 | F99: -
A100: 454 | B100: Dodatna ulaganja za ostalu nefinancijsku imovinu | C100: 88 | F100: -
A101: 458 | B101: Predujmovi za dodatna ulaganja na nefinancijskoj imovini | C101: 89 | F101: -
B102: Kontrolni zbroj (AOP 029 do 089) | C102: 90 | D102: =SUM(D41:D101) -> 0 | E102: =SUM(E41:E101) -> 0 | F102: =IF(D102>0,IF(E102/D102>=100,">>100",E102/D102*100),"-") -> -
A103: OBVEZNI DODATNI PODACI
A104: Račun iz rač. plana | B104: NAZIV | C104: AOP | D104: Stanje na kraju izvještajnog razdoblja
A105: 1 | B105: 2 | C105: 3 | D105: 4
B106: Stanje potraživanja za dane zajmove tuzemnim trgovačkim društvima i obrtnicima te drugim razinama vlasti (AOP 092 do 111) | C106: 91 | D106: =SUM(D107:D126) -> 0
A107: 13411 | B107: Zajmovi trgovačkim društvima u javnom sektoru - kratkoročni | C107: 92
A108: 13412 | B108: Zajmovi trgovačkim društvima u javnom sektoru - dugoročni | C108: 93
A109: 13631 | B109: Zajmovi tuzemnim trgovačkim društvima izvan javnog sektora - kratkoročni | C109: 94
A110: 13632 | B110: Zajmovi tuzemnim trgovačkim društvima izvan javnog sektora - dugoročni | C110: 95
A111: 13641 | B111: Zajmovi tuzemnim obrtnicima - kratkoročni | C111: 96
A112: 13642 | B112: Zajmovi tuzemnim obrtnicima - dugoročni | C112: 97
A113: 13711 | B113: Zajmovi državnom proračunu - kratkoročni | C113: 98
A114: 13712 | B114: Zajmovi državnom proračunu - dugoročni | C114: 99
A115: 13721 | B115: Zajmovi županijskim proračunima - kratkoročni | C115: 100
A116: 13722 | B116: Zajmovi županijskim proračunima - dugoročni | C116: 101
A117: 13731 | B117: Zajmovi gradskim proračunima - kratkoročni | C117: 102
A118: 13732 | B118: Zajmovi gradskim proračunima - dugoročni | C118: 103
A119: 13741 | B119: Zajmovi općinskim proračunima - kratkoročni | C119: 104
A120: 13742 | B120: Zajmovi općinskim proračunima - dugoročni | C120: 105
A121: 13751 | B121: Zajmovi HZMO-u, HZZ-u i HZZO-u - kratkoročni | C121: 106
A122: 13752 | B122: Zajmovi HZMO-u, HZZ-u i HZZO-u - dugoročni | C122: 107
A123: 13761 | B123: Zajmovi ostalim izvanproračunskim korisnicima državnog proračuna - kratkoročni | C123: 108
A124: 13762 | B124: Zajmovi ostalim izvanproračunskim korisnicima državnog proračuna - dugoročni | C124: 109
A125: 13771 | B125: Zajmovi izvanproračunskim korisnicima županijskih, gradskih i općinskih proračuna - kratkoročni | C125: 110
A126: 13772 | B126: Zajmovi izvanproračunskim korisnicima županijskih, gradskih i općinskih proračuna - dugoročni | C126: 111
A127: 267 | B127: Stanje obveza za primljene zajmove od drugih razina vlasti (AOP 113 do 126) | C127: 112 | D127: =SUM(D128:D141) -> 0
A128: 26711 | B128: Obveze za zajmove od državnog proračuna - kratkoročne | C128: 113
A129: 26712 | B129: Obveze za zajmove od državnog proračuna - dugoročne | C129: 114
A130: 26721 | B130: Obveze za zajmove od županijskih proračuna - kratkoročne | C130: 115
A131: 26722 | B131: Obveze za zajmove od županijskih proračuna - dugoročne | C131: 116
A132: 26731 | B132: Obveze za zajmove od gradskih proračuna - kratkoročne | C132: 117
A133: 26732 | B133: Obveze za zajmove od gradskih proračuna - dugoročne | C133: 118
A134: 26741 | B134: Obveze za zajmove od općinskih proračuna - kratkoročne | C134: 119
A135: 26742 | B135: Obveze za zajmove od općinskih proračuna - dugoročne | C135: 120
A136: 26751 | B136: Obveze za zajmove od HZMO-a, HZZ-a i HZZO-a - kratkoročne | C136: 121
A137: 26752 | B137: Obveze za zajmove od HZMO-a, HZZ-a i HZZO-a - dugoročne | C137: 122
A138: 26761 | B138: Obveze za zajmove od ostalih izvanproračunskih korisnika državnog proračuna - kratkoročne | C138: 123
A139: 26762 | B139: Obveze za zajmove od ostalih izvanproračunskih korisnika državnog proračuna - dugoročne | C139: 124
A140: 26771 | B140: Obveze za zajmove od izvanproračunskih korisnika županijskih, gradskih i općinskih proračuna - kratkoročne | C140: 125
A141: 26772 | B141: Obveze za zajmove od izvanproračunskih korisnika županijskih, gradskih i općinskih proračuna - dugoročne | C141: 126

Sheet Kont
A1: <–––– Povratak na RefStr | D1: VP | E1: REZ | F1: GODINA | G1: MJESEC | H1: RAZINA | I1: PR-RAS | J1: NT | K1: RASF | L1: PVRIO | M1: BIL | N1: OBV | O1: SPRAS | P1: RKP | Q1: RAZDJEL | U1: RAZDJELI
A2: Rbr. | B2: Rezultat kontrole | C2: Opis dodatne kontrole | E2: =SUM(E3+E26+E237+E261+E265+E16+E270+E300+E319) -> 0 | F2: =IF(RefStr!F6<>"",INT(VALUE(MID(RefStr!F6,1,4))),0) -> 2014 | G2: =IF(RefStr!F6<>"",INT(VALUE(MID(RefStr!F6,6,2))),0) -> 12 | H2: =RefStr!B16 -> 31 | I2: =RefStr!B25 -> DA | J2: =RefStr!B27 -> NE | K2: =RefStr!B29 -> NE | L2: =RefStr!B31 -> DA | M2: =RefStr!B33 -> DA | N2: =RefStr!B35 -> NE | O2: =RefStr!B37 -> NE | P2: =RefStr!B6 -> 14402 | Q2: =RefStr!B20 -> 0 | U2: 19
A3: OPĆENITE KONTROLE - KONTROLE PODATAKA IZ ZAGLAVLJA, KONTROLE POPUNJENOSTI I KONTROLE IZMEĐU OBRAZACA | E3: =SUM(E4:E15) -> 0 | U3: 35
A4: 1 | B4: =IF(E4=1,"Nije zadovoljena", "Zadovoljena") -> Zadovoljena | C4: Oznaku razdjela upisuju samo obveznici razine 11 i 12, dok sve ostale razine ne upisuju razdjel, tj. u razdjel upisuju nulu. | D4: 0 | E4: =IF(F4<>G4,1,0) -> 0 | F4: =IF(OR(RefStr!B16=11,RefStr!B16=12),1,0) -> 0 | G4: =IF(RefStr!B20<>0,1,0) -> 0 | U4: 51
A5: =1+A4 -> 2 | B5: Zadovoljena | C5: Kod tromjesečnih i devetomjesečnih izvještaja nema konsolidacije, ne predaju se konsolidirani obrasci, znači za ta razdoblja obrazac ne može biti razine 23. Kontrola javlja pogrešku ako ste za jedno od tih razdoblja upisali oznaku razine 23. | D5: 0 | E5: =MAX(F5:G5) -> 0 | F5: =IF(AND($G$2=3,$H$2=23),1,0) -> 0 | G5: =IF(AND($G$2=9,$H$2=23),1,0) -> 0 | U5: 174
A6: 3 | B6: Zadovoljena | C6: Popunjenost zaglavlja referentne stranice. Svi podaci u zaglavlju čiji opis je u tamnoplavoj boji moraju biti popunjeni, za one koji nemaju razdjel neka upišu nulu, polje ne smije ostati prazno. Ako ova kontrola nije zadovoljena znači da niste popunili zaglavlje obrasca u potpunosti. Takav obrazac neće moći biti zaprimljen i učitan kroz program. Provjerite još jednom i popunite sva polja na referentnoj stranici. | D6: 0 | E6: =IF(OR(RefStr!B6=0,RefStr!B8=0,RefStr!F6="",LEN(RefStr!B10)<3,RefStr!B12=0,LEN(RefStr!C12)<2,LEN(RefStr!B14)< 5,RefStr!B16=0,RefStr!B18="",RefStr!B20="",RefStr!B22=0,RefStr!K10="",RefStr!K12=""),1,0) -> 0 | F6: 1 mjesec | H6: 3 i 9 mjesec | J6: 6. mjesec | L6: 12. mjeseci | U6: 713
A7: 4 | B7: Zadovoljena | C7: Razina 11 - ne predaje mjesečni obrazac Obveze (pročitajte dio na početku uputa o predaji nadležnim organima) - za kvartalni obračun (prvi i treći kvartal) predaje samo S-PR-RAS obrazac, - za polugodište predaje samo PR-RAS obrazac, - za kraj godine predaje tri obrasca: PR-RAS, BIL i P-VRIO. Ako za odabrano razdoblje nije popunjen obrazac koji bi trebao biti, ili je popunjen obrazac koji se ne predaje kontrola javlja pogrešku. | E7: =IF(F7*G7+H7*I7+J7*K7+L7*M7>0,1,0) -> 0 | F7: =IF(AND($G$2<>3,$G$2<>6,$G$2<>9, $G$2<>12),1,0) -> 0 | G7: =IF($H$2=11,1,0) -> 0 | H7: =IF(AND($H$2=11,OR($G$2=3,$G$2=9)),1,0) -> 0 | I7: =IF(AND($I$2="NE", $J$2="NE",$K$2="NE",$L$2="NE",$M$2="NE",$N$2="NE",$O$2="DA"),0,1) -> 1 | J7: =IF(AND($H$2=11,$G$2=6),1,0) -> 0 | K7: =IF(AND($I$2="DA", $J$2="NE",$K$2="NE",$L$2="NE",$M$2="NE",$N$2="NE",$O$2="NE"),0,1) -> 1 | L7: =IF(AND($H$2=11,$G$2=12),1,0) -> 0 | M7: =IF(AND($I$2="DA", $J$2="NE",$K$2="NE",$L$2="DA",$M$2="DA",$N$2="NE",$O$2="NE"),0,1) -> 0 | U7: 721
A8: 5 | B8: Zadovoljena | C8: Razina 12 - na mjesečnoj razini predaje obrazac Obveze, - za kvartale ne predaje ništa (samo mjesečnog izvještaja Obveze i za ta razdoblja), - za polugodište predaju samo obrazac PR-RAS (i mjesečni Obveze za istu oznaku razdoblja) - za kraj godine predaje obrasce: PR-RAS, BIL, P-VRIO i RAS-funkcijski. S obzirom da rok za predaju mjesečnog obrasca Obveze i ostalih obrazaca nije isti, bez obzira na istu AOP oznaku razdoblja, za polugodište ili godinu ne mogu biti istovremeno popunjeni obrazac Obveze i ostali obvezni obrasci. Za ta razdoblja se predaju dvije Excel datoteke, u jednoj je popunjen samo mjesečni obrazac Obveze i u drugoj se popunjavaju ostali obvezni obrasci. Kontrola javlja pogrešku ako za odabrano razdoblje nije popunjen obrazac koji treba biti ili popunjen obrazac koji se ne predaje. | E8: 0 | F8: =IF(AND($H$2=12,$G$2<>3,$G$2<>6,$G$2<>9, $G$2<>12),1,0) -> 0 | G8: =IF(AND($I$2="NE", $J$2="NE",$K$2="NE",$L$2="NE",$M$2="NE",$N$2="DA",$O$2="NE"),0,1) -> 1 | H8: =IF(AND($H$2=12,OR($G$2=3,$G$2=9)),1,0) -> 0 | I8: =IF(AND($I$2="NE", $J$2="NE",$K$2="NE",$L$2="NE",$M$2="NE",$N$2="DA",$O$2="NE"),0,1) -> 1 | J8: =IF(AND($H$2=12,$G$2=6),1,0) -> 0 | K8: =IF(OR(AND($I$2="DA", $J$2="NE",$K$2="NE",$L$2="NE",$M$2="NE",$N$2="NE",$O$2="NE"),AND($I$2="NE", $J$2="NE",$K$2="NE",$L$2="NE",$M$2="NE",$N$2="DA",$O$2="NE")),0,1) -> 1 | L8: =IF(AND($H$2=12,$G$2=12),1,0) -> 0 | M8: =IF(OR(AND($I$2="NE", $J$2="NE",$K$2="NE",$L$2="NE",$M$2="NE",$N$2="DA",$O$2="NE"),AND($I$2="DA", $J$2="NE",$K$2="DA",$L$2="DA",$M$2="DA",$N$2="NE",$O$2="NE")),0,1) -> 1 | U8: 748
A9: 6 | B9: =IF(E9=1,"Nije zadovoljena", "Zadovoljena") -> Zadovoljena | C9: Razina 13 (opća država), - ne predaje ništa na mjesečnoj razini, - za kvartale predaje obrasce PR-RAS i NT - za polugodište predaje obrasce PR-RAS i NT, - na godišnjoj razini predaje obrasce: PR-RAS, BIL, NT, RAS-funkcijski i P-VRIO. Zavisno od odabranog razdoblja, ako je popunjen obrazac koji ne treba biti popunjen, ili nije popunjen obrazac koji treba biti popunjen, ova kontrola javlja pogrešku. | E9: =IF(F9*G9+H9*I9+J9*K9+L9*M9>0,1,0) -> 0 | F9: =IF(AND($G$2<>3,$G$2<>6,$G$2<>9, $G$2<>12),1,0) -> 0 | G9: =IF($H$2=13,1,0) -> 0 | H9: =IF(AND($H$2=13,OR($G$2=3,$G$2=9)),1,0) -> 0 | I9: =IF(AND($I$2="DA", $J$2="DA",$K$2="NE",$L$2="NE",$M$2="NE",$N$2="NE",$O$2="NE"),0,1) -> 1 | J9: =IF(AND($H$2=13,$G$2=6),1,0) -> 0 | K9: =IF(AND($I$2="DA", $J$2="DA",$K$2="NE",$L$2="NE",$M$2="NE",$N$2="NE",$O$2="NE"),0,1) -> 1 | L9: =IF(AND($H$2=13,$G$2=12),1,0) -> 0 | M9: =IF(AND($I$2="DA", $J$2="DA",$K$2="DA",$L$2="DA",$M$2="DA",$N$2="NE",$O$2="NE"),0,1) -> 1 | U9: 1079
A10: 7 | B10: Zadovoljena | C10: Razina 21 - ne predaje mjesečni obrazac obveze, - za kvartale (prvi i treći kvartal) predaje samo obrazac S-PR-RAS - za polugodište predaje samo brazac PR-RAS, - na godišnjoj razini predaje tri obrasca: PR-RAS, BIL i P-VRIO. Zavisno od odabranog razdoblja, ako je popunjen obrazac koji ne treba biti popunjen, ili nije popunjen obrazac koji treba biti popunjen, ova kontrola javlja pogrešku. | E10: 0 | F10: 0 | G10: =IF($H$2=21,1,0) -> 0 | H10: =IF(AND($H$2=21,OR($G$2=3,$G$2=9)),1,0) -> 0 | I10: =IF(AND($I$2="NE", $J$2="NE",$K$2="NE",$L$2="NE",$M$2="NE",$N$2="NE",$O$2="DA"),0,1) -> 1 | J10: =IF(AND($H$2=21,$G$2=6),1,0) -> 0 | K10: =IF(AND($I$2="DA", $J$2="NE",$K$2="NE",$L$2="NE",$M$2="NE",$N$2="NE",$O$2="NE"),0,1) -> 1 | L10: =IF(AND($H$2=21,$G$2=12),1,0) -> 0 | M10: =IF(AND($I$2="DA", $J$2="NE",$K$2="NE",$L$2="DA",$M$2="DA",$N$2="NE",$O$2="NE"),0,1) -> 0 | U10: 756
A11: 8 | B11: Zadovoljena | C11: Razina 22 - ne predaje mjesečni obrazac obveze, - za kvartale predaje obrasce PR-RAS i NT i Obveze - za polugodište predaje obrasce PR-RAS i NT i Obveze - na godišnjoj razini predaje obrasce: PR-RAS, BIL, NT, RAS-funkcijski, P-VRIO i Obveze. Zavisno od odabranog razdoblja, ako je popunjen obrazac koji ne treba biti popunjen, ili nije popunjen obrazac koji treba biti popunjen, ova kontrola javlja pogrešku. | E11: 0 | F11: 0 | G11: =IF($H$2=22,1,0) -> 0 | H11: =IF(AND($H$2=22,OR($G$2=3,$G$2=9)),1,0) -> 0 | I11: =IF(AND($I$2="DA", $J$2="DA",$K$2="NE",$L$2="NE",$M$2="NE",$N$2="DA",$O$2="NE"),0,1) -> 1 | J11: =IF(AND($H$2=22,$G$2=6),1,0) -> 0 | K11: =IF(AND($I$2="DA", $J$2="DA",$K$2="NE",$L$2="NE",$M$2="NE",$N$2="DA",$O$2="NE"),0,1) -> 1 | L11: =IF(AND($H$2=22,$G$2=12),1,0) -> 0 | M11: =IF(AND($I$2="DA", $J$2="DA",$K$2="DA",$L$2="DA",$M$2="DA",$N$2="DA",$O$2="NE"),0,1) -> 1 | U11: 1087
A12: 9 | B12: Zadovoljena | C12: Razina 23, (konsolidirana razina 22) - ne predaje mjesečni obrazac Obveze - za kvartale ne predaje ništa (nema konsolidacije za I. i III. kvartal) - za polugodište predaje obrasce PR-RAS i Obveze - na godišnjoj razini predaje obrasce: PR-RAS, BIL, RAS-funkcijski, P-VRIO i Obveze. Zavisno od odabranog razdoblja, ako je popunjen obrazac koji ne treba biti popunjen, ili nije popunjen obrazac koji treba biti popunjen, ova kontrola javlja pogrešku. | E12: 0 | F12: 0 | G12: =IF($H$2=23,1,0) -> 0 | H12: =IF(AND($H$2=23,OR($G$2=3,$G$2=9)),1,0) -> 0 | I12: 1 | J12: =IF(AND($H$2=23,$G$2=6),1,0) -> 0 | K12: =IF(AND($I$2="DA", $J$2="NE",$K$2="NE",$L$2="NE",$M$2="NE",$N$2="DA",$O$2="NE"),0,1) -> 1 | L12: =IF(AND($H$2=23,$G$2=12),1,0) -> 0 | M12: =IF(AND($I$2="DA", $J$2="NE",$K$2="DA",$L$2="DA",$M$2="DA",$N$2="DA",$O$2="NE"),0,1) -> 1 | U12: 1214
A13: 10 | B13: Zadovoljena | C13: Razine 31 - ne predaje mjesečni obrazac Obveze - za kvartale (prvi i treći kvartal) predaje samo obrazac S-PR-RAS - za polugodište predaje samo obrazac PR-RAS - na godišnjoj razini predaje obrasce: PR-RAS, BIL i P-VRIO. Zavisno od odabranog razdoblja, ako je popunjen obrazac koji ne treba biti popunjen, ili nije popunjen obrazac koji treba biti popunjen, ova kontrola javlja pogrešku. | E13: 0 | F13: 0 | G13: =IF($H$2=31,1,0) -> 1 | H13: =IF(AND($H$2=31,OR($G$2=3,$G$2=9)),1,0) -> 0 | I13: =IF(AND($I$2="NE", $J$2="NE",$K$2="NE",$L$2="NE",$M$2="NE",$N$2="NE",$O$2="DA"),0,1) -> 1 | J13: =IF(AND($H$2=31,$G$2=6),1,0) -> 0 | K13: =IF(AND($I$2="DA", $J$2="NE",$K$2="NE",$L$2="NE",$M$2="NE",$N$2="NE",$O$2="NE"),0,1) -> 1 | L13: =IF(AND($H$2=31,$G$2=12),1,0) -> 1 | M13: =IF(AND($I$2="DA", $J$2="NE",$K$2="NE",$L$2="DA",$M$2="DA",$N$2="NE",$O$2="NE"),0,1) -> 0 | N13: Ako je bilo tko od njih i nema NT i nema Obveze, nula, u suprotnom 1 | O13: Ako je nije netko od njih i ima NT i Obveze, nula, u suprotnom 1 | U13: 1222
A14: 11 | B14: Zadovoljena | C14: Razina 41 - ne predaje mjesečni obrazac Obveze (osim HZZO-a, HZMO, HZZ-a) - za kvartale (prvi i treći kvartal) predaje obrasce PR-RAS, NT i Obveze - za polugodište predaje obrasce PR-RAS, NT i Obveze - na godišnjoj razini predaje obrasce: PR-RAS, BIL, NT, RAS-funkcijski, P-VRIO i Obveze. Izuzetak od ovog pravila su Hrvatski zavod za zdravstveno osiguranje, Hrvatski zavod za zapošljavanje i Hrvatski zavod za mirovinsko osiguranje. Oni za kvartal i polugodište ne predaju obrasce NT i Obveze. Zavisno od odabranog razdoblja, ako je popunjen obrazac koji ne treba biti popunjen, ili nije popunjen obrazac koji treba biti popunjen, ova kontrola javlja pogrešku. | E14: 0 | F14: 0 | G14: =IF(AND($H$2=41,Kont!N2="DA", RefStr!B6<>25843, RefStr!B6<>23911, RefStr!B6<>26362),1,0) -> 0 | H14: =IF(AND($H$2=41,OR($G$2=3,$G$2=9)),1,0) -> 0 | I14: =IF(AND($I$2="DA", $K$2="NE",$L$2="NE",$M$2="NE",$O$2="NE",N14+O14=0),0,1) -> 1 | J14: =IF(AND($H$2=41,$G$2=6),1,0) -> 0 | K14: =IF(AND($I$2="DA", $K$2="NE",$L$2="NE",$M$2="NE",$O$2="NE",N14+O14=0),0,1) -> 1 | L14: =IF(AND($H$2=41,$G$2=12),1,0) -> 0 | M14: =IF(AND($I$2="DA", $K$2="DA",$L$2="DA",$M$2="DA",$O$2="NE",N14+O14=0),0,1) -> 1 | N14: =IF(OR(P2=26362,P2=25843,P2=23911),IF(AND(N2="NE",J2="NE"),0,1),0) -> 0 | O14: =IF(AND(P2<>26362,P2<>25843,P2<>23911),IF(AND(N2="DA",J2="DA"),0,1),0) -> 1 | U14: 1732
A15: 12 | B15: Zadovoljena | C15: Razina 42 - ne predaje mjesečni obrazac Obveze - za kvartale (prvi i treći kvartal) predaje samo obrazac S-PR-RAS, - za polugodište predaje samo obrazac PR-RAS, - na godišnjoj razini predaje obrasce: PR-RAS, BIL , P-VRIO i Obveze. Zavisno od odabranog razdoblja, ako je popunjen obrazac koji ne treba biti popunjen, ili nije popunjen obrazac koji treba biti popunjen, ova kontrola javlja pogrešku. | E15: =IF(F15*G15+H15*I15+J15*K15+L15*M15>0,1,0) -> 0 | F15: 0 | G15: =IF($H$2=42,1,0) -> 0 | H15: =IF(AND($H$2=42,OR($G$2=3,$G$2=9)),1,0) -> 0 | I15: =IF(AND($I$2="NE", $J$2="NE",$K$2="NE",$L$2="NE",$M$2="NE",$N$2="NE",$O$2="DA"),0,1) -> 1 | J15: =IF(AND($H$2=42,$G$2=6),1,0) -> 0 | K15: =IF(AND($I$2="DA", $J$2="NE",$K$2="NE",$L$2="NE",$M$2="NE",$N$2="NE",$O$2="NE"),0,1) -> 1 | L15: =IF(AND($H$2=42,$G$2=12),1,0) -> 0 | M15: =IF(AND($I$2="DA", $J$2="NE",$K$2="NE",$L$2="DA",$M$2="DA",$N$2="DA",$O$2="NE"),0,1) -> 1 | U15: 3130
A16: KONTROLE IZMEĐU OBRAZACA - obvezne kontrole | E16: =SUM(E17:E21) -> 0 | U16: 6120
A17: =1+A15 -> 13 | B17: Zadovoljena | C17: Na godišnjoj razini postoji kontrola koja povezuje neke AOP pozicije obrasca PR-RAS i obrasca NT. Ova kontrola vrijedi za razine 22 i 41. Kontrola zahtijeva da AOP oznaka 229 u obrascu NT mora biti jednaka AOP oznaci 610 u obrascu PR-RAS (stupac ostvareno tekuće godine). Pri tome je zbog zaokruživanja vrijednosti u jednom i drugom obrascu dozvoljeno odstupanje od najviše 1. | E17: =F17*G17 -> 0 | F17: =IF(AND(OR(H2=41,H2=22),G2=12),1,0) -> 0 | G17: =IF(ABS(NT!D240-PRRAS!E624)>1,1,0) -> 1 | U17: 6031
A18: 14 | B18: Zadovoljena | C18: Na godišnjoj razini postoji kontrola koja povezuje neke AOP pozicije obrasca PR-RAS i obrasca Bil. Ova kontrola vrijede za sve razine. Kontrola je obvezujuća za razine 11, 21, 22, 31, 42. Vrijednost AOP oznake 144 u obrascu Bilanca mora biti jednaka vrijednosti AOP oznake 606 u obrascu PR-RAS. Zbog zaokruživanja vrijednosti, dozvoljeno je odstupanje od 1 kn. Ova kontrola vrijedi u obje kolone podataka, osim za obveznike kod kojih početak razdoblja nije ujedno i početak poslovne godine (obveznik je počeo s radom tokom godine). Za takve obveznike kontrola mora biti zadovoljena samo za kolonu tekuće godine (ne i prethodne). | E18: =IF(AND(F18=1,G18+H18>0),1,0) -> 0 | F18: =IF(AND(G2=12,M2="DA",I2="DA",H2<>12,H2<>23,H2<>13),1,0) -> 1 | G18: =IF(AND(ABS(Bil!D155-PRRAS!D619)>1,K18="1.1."),1,0) -> 0 | H18: =IF(ABS(Bil!E155-PRRAS!E619)>1,1,0) -> 0 | K18: =IF(RefStr!K10<>"",TEXT(RefStr!K10,"D.M."),"") -> 1.1. | U18: 6040
A19: 15 | B19: Zadovoljena | C19: Na godišnjoj razini postoji kontrola koja povezuje neke AOP pozicije obrasca PR-RAS i obrasca Bil. Ova kontrola vrijede za sve razine. Kontrola je obvezujuća za razine 11, 21, 22, 31, 42. Vrijednost AOP oznake 062 u obrascu Bilanca mora biti jednaka vrijednosti AOP oznake 610 u obrascu PR-RAS. Zbog zaokruživanja vrijednosti, dozvoljeno je odstupanje od 1 kn. | E19: =IF(AND(F19=1,G19+H19>0),1,0) -> 0 | F19: =IF(AND(G2=12,M2="DA",I2="DA",H2<>12,H2<>23,H2<>13),1,0) -> 1 | G19: =IF(ABS(Bil!D73-PRRAS!D624)>1,1,0) -> 0 | H19: =IF(ABS(Bil!E73-PRRAS!E624)>1,1,0) -> 0 | U19: 6066
A20: 16 | B20: Zadovoljena | C20: Na godišnjoj razini postoji kontrola koja povezuje neke AOP pozicije obrasca NT i obrasca Bil. Ova kontrola vrijede za sve razine. Kontrola je obvezujuća za razine 11, 21, 22, 31, 42. Vrijednost AOP oznake 062 u obrascu Bilanca mora biti jednaka vrijednosti AOP oznake 229 u obrascu NT. Zbog zaokruživanja vrijednosti, dozvoljeno je odstupanje od 1 kn. | E20: =IF(F20*G20>0,1,0) -> 0 | F20: =IF(AND(G2=12,M2="DA",J2="DA",H2<>12,H2<>23,H2<>13),1,0) -> 0 | G20: =IF(ABS(Bil!E73-NT!D240)>1,1,0) -> 1 | U20: 6082
A21: 17 | B21: Zadovoljena | C21: Na godišnjoj razini postoji kontrola koja povezuje neke AOP pozicije obrasca PR-RAS s nekim AOP pozicijama obrasca RAS-funkcijski. Ova kontrola vrijede za sve razine. Iznimno, u nekim slučajevima mogu se zanemariti za razine 12 i 23. Vrijednost AOP oznake 378 u obrascu PR-RAS treba biti jednaka zbroju AOP 001+018+024+031+071+078+085+103+110+125 tj. AOP-u 137 u obrascu RAS-funkcijski. Zbog zaokruživanja vrijednosti, dozvoljeno je odstupanje od 1 kn. | E21: =IF(AND(F21>0,MAX(G21:H21)>0),1,0) -> 0 | F21: =IF(AND(G2=12,I2="DA",K2="DA",H2<>12,H2<>23),1,0) -> 0 | G21: =IF(ABS(PRRAS!D390-RasF!D12-RasF!D29-RasF!D35-RasF!D42-RasF!D82-RasF!D89-RasF!D96-RasF!D114-RasF!D121-RasF!D136) >1,1,0) -> 1 | H21: =IF(ABS(PRRAS!E390-RasF!E12-RasF!E29-RasF!E35-RasF!E42-RasF!E82-RasF!E89-RasF!E96-RasF!E114-RasF!E121-RasF!E136) >1,1,0) -> 1 | U21: 6099
A22: KONTROLE IZMEĐU OBRAZACA - kontrole upozorenja | E22: =SUM(E23:E25) -> 0
A23: =1+A21 -> 18 | B23: =IF(E23=1,"Nije zadovoljena", "Zadovoljena") -> Zadovoljena | C23: Na godišnjoj razini postoji kontrola koja povezuje neke AOP pozicije obrasca PR-RAS i obrasca Bil. Kontrola upozorava ako ova kontrola nije zadovoljena za razine 12, 13 i 23. Ako je kontrola javila upozorenje provjerite da li je sigurno da ne mora biti zadovoljena. Vrijednost AOP oznake 144 u obrascu Bilanca mora biti jednaka vrijednosti AOP oznake 606 u obrascu PR-RAS. Zbog zaokruživanja vrijednosti, dozvoljeno je odstupanje od 1 kn. | D23: -151 | E23: =IF(AND(F23=1,G23+H23>0),1,0) -> 0 | F23: =IF(AND(G2=12,M2="DA",I2="DA",OR(H2=12,H2=23,H2=13)),1,0) -> 0 | G23: =IF(ABS(Bil!D155-PRRAS!D619)>1,1,0) -> 0 | H23: =IF(ABS(Bil!E155-PRRAS!E619)>1,1,0) -> 0
A24: =1+A23 -> 19 | B24: =IF(E24=1,"Nije zadovoljena", "Zadovoljena") -> Zadovoljena | C24: Na godišnjoj razini postoji kontrola koja povezuje neke AOP pozicije obrasca PR-RAS i obrasca Bil. Vrijednost AOP oznake 062 u obrascu Bilanca mora biti jednaka vrijednosti AOP oznake 610 u obrascu PR-RAS. Zbog zaokruživanja vrijednosti, dozvoljeno je odstupanje od 1 kn. Upozorenje se javlja ako kontrola nije zadovoljena za razine 12, 13 i 23. Ako je kontrola javila upozorenje provjerite da li je sigurno da ne mora biti zadovoljena. | D24: -151 | E24: =IF(AND(F24=1,G24+H24>0),1,0) -> 0 | F24: =IF(AND(G2=12,M2="DA",I2="DA",OR(H2=12,H2=23,H2=13)),1,0) -> 0 | G24: =IF(ABS(Bil!D73-PRRAS!D624)>1,1,0) -> 0 | H24: =IF(ABS(Bil!E73-PRRAS!E624)>1,1,0) -> 0
A25: =1+A24 -> 20 | B25: =IF(E25=1,"Nije zadovoljena", "Zadovoljena") -> Zadovoljena | C25: Na godišnjoj razini postoji kontrola koja povezuje neke AOP pozicije obrasca NT i obrasca Bil. Vrijednost AOP oznake 062 u obrascu Bilanca mora biti jednaka vrijednosti AOP oznake 229 u obrascu NT. Zbog zaokruživanja vrijednosti, dozvoljeno je odstupanje od 1 kn. Upozorenje se javlja za razine 12, 13 i 23 gdje je iznimno moguće da kontrola i ne bude zadovoljena. Provjerite upisane podatke. | D25: -151 | E25: =IF(F25*G25>0,1,0) -> 0 | F25: =IF(AND(G2=12,M2="DA",J2="DA",OR(H2=12,H2=23,H2=13)),1,0) -> 0 | G25: =IF(ABS(Bil!E73-NT!D240)>1,1,0) -> 1
A26: PR-RAS - obvezne kontrole | E26: =SUM(E27:E173) -> 0 | U26: 6120
A27: =1+A25 -> 21 | B27: =IF(E27=1,"Nije zadovoljena", "Zadovoljena") -> Zadovoljena | C27: Ako je obrazac razine 21, 31, 41 ili 42 tada pod AOP oznakama 611 i 613 podatak mora biti jednak nula. | D27: 151 | E27: =MAX(F27:I27) -> 0 | F27: =IF(AND(OR(RefStr!B16=21,RefStr!B16=31,RefStr!B16=41,RefStr!B16=42),OR(PRRAS!D625>0,PRRAS!E625>0,PRRAS!D627>0,PRRAS!E627>0)),1,0) -> 0 | U27: 6138
A28: =1+A27 -> 22 | B28: Zadovoljena | C28: Ako su u nekom stupcu na AOP-ima 611 do 614 (brojevi zaposlenih) podaci veći od nule, tada u toj istom stupcu mora biti postojati podatak veći od nule i na AOP-u 133 (rashodi za zaposlene). | D28: 151 | E28: 0 | F28: =IF(OR(AND(PRRAS!D144=0,MAX(PRRAS!D625:D628)>0),AND(PRRAS!E144=0,MAX(PRRAS!E625:E628)>0)),1,0) -> 0 | U28: 6179
A29: 23 | B29: Zadovoljena | C29: Ako je u nekom stupcu na AOP-u 611 broj veći od nule, tada i na AOP-u 613 mora biti broj veći od nule i obrnuto. | D29: 151 | E29: 0 | F29: =IF(OR(AND(PRRAS!D625>0,PRRAS!D627=0),AND(PRRAS!D625=0,PRRAS!D627>0),AND(PRRAS!E625>0,PRRAS!E627=0),AND(PRRAS!E625=0,PRRAS!DE27>0)),1,0) -> 0 | U29: 20157
A30: 24 | B30: Zadovoljena | C30: Ako je u nekom stupcu na AOP-u 612 broj veći od nule, tada i na AOP-u 614 mora biti broj veći od nule i obrnuto. | D30: 151 | E30: 0 | F30: =IF(OR(AND(PRRAS!D626>0,PRRAS!D628=0),AND(PRRAS!D626=0,PRRAS!D628>0),AND(PRRAS!E626>0,PRRAS!E628=0),AND(PRRAS!E626=0,PRRAS!DE28>0)),1,0) -> 0 | U30: 20833
A31: 25 | B31: Zadovoljena | C31: Rashodi za zaposlene iskazani na AOP-u 133 moraju biti jednaki rashodima za zaposlene iskazanima na AOP-ima 648 i 649 (AOP 133 = AOP 648+AOP 649) u oba stupca. | D31: 151 | E31: 0 | F31: =IF(OR((PRRAS!D144-PRRAS!D662-PRRAS!D663) <> 0,(PRRAS!E144-PRRAS!E662-PRRAS!E663) <> 0),1,0) -> 0 | U31: 21578
A32: 26 | B32: Zadovoljena | C32: Materijalni rashodi iskazani na AOP-u 145 moraju biti jednaki materijalnim rashodima iskazanima na AOP-ima 656 i 657 (AOP 145 = AOP 656+AOP 657) u oba stupca. | D32: 151 | E32: 0 | F32: =IF(OR((PRRAS!D156-PRRAS!D670-PRRAS!D671) <> 0,(PRRAS!E156-PRRAS!E670-PRRAS!E671) <> 0),1,0) -> 0 | U32: 21586
A33: 27 | B33: Zadovoljena | C33: Podatak pod AOP oznakom 648 mora biti veći ili jednak zbroju podataka pod AOP oznakama 650 i 652. Isto tako ako je podatak na AOP-u 648 veći od nule, AOP-i 650 i 652 ne mogu oba biti jednaka nuli. | D33: 151 | E33: =IF(H2<>13,MAX(F33:I33),0) -> 0 | F33: =IF(AND(PRRAS!D662>0,PRRAS!D664=0,PRRAS!D666=0),1,0) -> 0 | G33: =IF(AND(PRRAS!E662>0,PRRAS!E664=0,PRRAS!E666=0),1,0) -> 0 | H33: =IF(PRRAS!D662-PRRAS!D664-PRRAS!D666<0,1,0) -> 0 | I33: =IF(PRRAS!E662-PRRAS!E664-PRRAS!E666<0,1,0) -> 0 | U33: 21609
A34: 28 | B34: =IF(E34=1,"Nije zadovoljena", "Zadovoljena") -> Zadovoljena | C34: Podatak pod AOP oznakom 649 mora biti veći ili jednak zbroju podataka pod AOP oznakama 651 i 653. Isto tako ako je podatak na AOP-u 649 veći od nule, AOP-i 651 i 653 ne mogu oba biti jednaka nuli. | D34: 151 | E34: =MAX(F34:I34) -> 0 | F34: =IF(AND(PRRAS!D663>0,PRRAS!D665=0,PRRAS!D667=0),1,0) -> 0 | G34: =IF(AND(PRRAS!E663>0,PRRAS!E665=0,PRRAS!E667=0),1,0) -> 0 | H34: =IF(PRRAS!D663-PRRAS!D665-PRRAS!D667<0,1,0) -> 0 | I34: =IF(PRRAS!E663-PRRAS!E665-PRRAS!E667<0,1,0) -> 0 | U34: 21828
A35: 29 | B35: Zadovoljena | C35: Podatak pod AOP oznakom 304 mora biti jednak zbroju podataka pod AOP oznakama 731 i 732 u oba stupca podataka (izvještajno razdoblje tekuće i prethodne godine). | D35: 151 | E35: 0 | F35: =IF(ABS(PRRAS!D316-PRRAS!D745-PRRAS!D746)>1,1,0) -> 0 | G35: =IF(ABS(PRRAS!E316-PRRAS!E745-PRRAS!E746)>1,1,0) -> 0 | U35: 21973
A36: 30 | B36: Zadovoljena | C36: Podatak pod AOP oznakom 318 mora biti jednak zbroju podataka pod AOP oznakama 733 i 734 u oba stupca podataka (izvještajno razdoblje tekuće i prethodne godine). | D36: 151 | E36: 0 | F36: =IF(ABS(PRRAS!D330-PRRAS!D747-PRRAS!D748)>1,1,0) -> 0 | G36: =IF(ABS(PRRAS!E330-PRRAS!E747-PRRAS!E748)>1,1,0) -> 0 | U36: 21990
A37: 31 | B37: Zadovoljena | C37: Podatak pod AOP oznakom 361 mora biti jednak zbroju podataka pod AOP oznakama 735 i 736 u oba stupca podataka (izvještajno razdoblje tekuće i prethodne godine). | D37: 151 | E37: 0 | F37: =IF(ABS(PRRAS!D373-PRRAS!D749-PRRAS!D750)>1,1,0) -> 0 | G37: =IF(ABS(PRRAS!E373-PRRAS!E749-PRRAS!E750)>1,1,0) -> 0 | U37: 22023
A38: 32 | B38: Zadovoljena | C38: Ako je u nekom stupcu na AOP-u 648 (rashodi za zaposlene u tijelima) podatak veći od nule, podaci moraju biti veći od nule i na AOP-ima 611 i 613 (broj zaposlenih u tijelima) u istom stupcu. Ova kontrola ne vrijedi za obrasce razine 13. | D38: 151 | E38: 0 | F38: =IF(AND(RefStr!B16<>13,PRRAS!D662>0,PRRAS!D625=0,PRRAS!D627=0),1,0) -> 0 | G38: =IF(AND(RefStr!B16<>13,PRRAS!E662>0,PRRAS!E625=0,PRRAS!E627=0),1,0) -> 0 | U38: 23528
A39: 33 | B39: Zadovoljena | C39: Ako je podatak na AOP-u 649 (rashodi za zaposlene kod korisnika) veći od nule, moraju biti veći od nule i AOP-i podaci na AOP-ima 612 i 614 (broj zaposlenih kod korisnika). | D39: 151 | E39: 0 | F39: =IF(AND(RefStr!B17<>13,PRRAS!D663>0,PRRAS!D626=0,PRRAS!D628=0),1,0) -> 0 | G39: =IF(AND(RefStr!B17<>13,PRRAS!E663>0,PRRAS!E626=0,PRRAS!E628=0),1,0) -> 0 | U39: 23536
A40: 34 | B40: Zadovoljena | C40: AOP 616 je samo dio AOP-a 019 i mora biti manji ili jednak njemu u oba stupca podataka | D40: 151 | E40: 0 | F40: =IF(PRRAS!D630>PRRAS!D30,1,0) -> 0 | G40: =IF(PRRAS!E630>PRRAS!E30,1,0) -> 0 | U40: 23544
A41: 35 | B41: Zadovoljena | C41: Zbroj AOP-a: 617+618 je samo dio AOP-a 028 i mora biti manji ili jednak njemu u oba stupca podataka | D41: 151 | E41: 0 | F41: =IF(PRRAS!D631+PRRAS!D632>PRRAS!D39,1,0) -> 0 | G41: =IF(PRRAS!E631+PRRAS!E632>PRRAS!E39,1,0) -> 0 | U41: 23954
A42: 36 | B42: Zadovoljena | C42: AOP 057 mora biti jednak zbroju AOP-a: 619 do 622 u oba stupca podataka. Zbog zaokruživanja je dopuštena razlika od 1. | D42: 151 | E42: 0 | F42: =IF(ABS(PRRAS!D68-PRRAS!D633-PRRAS!D634-PRRAS!D635-PRRAS!D636)>1,1,0) -> 0 | G42: =IF(ABS(PRRAS!E68-PRRAS!E633-PRRAS!E634-PRRAS!E635-PRRAS!E636)>1,1,0) -> 0 | U42: 23987
A43: 37 | B43: Zadovoljena | C43: AOP 058 mora biti jednak zbroju AOP-a: 623 do 626 u oba stupca podataka. Zbog zaokruživanja je dopuštena razlika od 1. | D43: 151 | E43: 0 | F43: =IF(ABS(PRRAS!D69-PRRAS!D637-PRRAS!D638-PRRAS!D639-PRRAS!D640)>1,1,0) -> 0 | G43: =IF(PRRAS!E69-PRRAS!E637-PRRAS!E638-PRRAS!E639-PRRAS!E640<>0,1,0) -> 0 | U43: 23995
A44: 38 | B44: Zadovoljena | C44: AOP 059 mora biti jednak zbroju AOP-a: 627+628 u oba stupca podataka. Zbog zaokruživanja je dopuštena razlika od 1. | D44: 151 | E44: 0 | F44: =IF(ABS(PRRAS!D70-PRRAS!D641-PRRAS!D642)>1,1,0) -> 0 | G44: =IF(ABS(PRRAS!E70-PRRAS!E641-PRRAS!E642)>1,1,0) -> 0 | U44: 24027
A45: 39 | B45: Zadovoljena | C45: AOP 060 mora biti jednak zbroju AOP-a: 629+630 u oba stupca podataka | D45: 151 | E45: 0 | F45: =IF(ABS(PRRAS!D71-PRRAS!D643-PRRAS!D644)>1,1,0) -> 0 | G45: =IF(ABS(PRRAS!E71-PRRAS!E643-PRRAS!E644)>1,1,0) -> 0 | U45: 24051
A46: 40 | B46: Zadovoljena | C46: AOP 062 mora biti jednak zbroju AOP-a: 631 do 633 u oba stupca podataka | D46: 151 | E46: 0 | F46: =IF(ABS(PRRAS!D73-PRRAS!D645-PRRAS!D646-PRRAS!D647)>1,1,0) -> 0 | G46: =IF(ABS(PRRAS!E73-PRRAS!E645-PRRAS!E646-PRRAS!E647)>1,1,0) -> 0 | U46: 24060
A47: 41 | B47: Zadovoljena | C47: AOP 063 mora biti jednak zbroju AOP-a: 634 do 636 u oba stupca podataka | D47: 151 | E47: 0 | F47: =IF(ABS(PRRAS!D74-PRRAS!D648-PRRAS!D649-PRRAS!D650)>1,1,0) -> 0 | G47: =IF(ABS(PRRAS!E74-PRRAS!E648-PRRAS!E649-PRRAS!E650)>1,1,0) -> 0 | U47: 24094
A48: 42 | B48: Zadovoljena | C48: AOP 637 je samo dio AOP-a 075 i mora biti manji ili jednak njemu u oba stupca podataka | D48: 151 | E48: 0 | F48: =IF(PRRAS!D651>PRRAS!D86,1,0) -> 0 | G48: =IF(PRRAS!E651>PRRAS!E86,1,0) -> 0 | U48: 24109
A49: 43 | B49: Zadovoljena | C49: AOP 089 mora biti jednak zbroju AOP-a: 638 do 644 u oba stupca podataka. Zbog zaokruživanja je dopuštena razlika od 1. | D49: 151 | E49: 0 | F49: =IF(ABS(PRRAS!D100-SUM(PRRAS!D652:D658))>1,1,0) -> 0 | G49: =IF(ABS(PRRAS!E100-SUM(PRRAS!E652:E658))>1,1,0) -> 0 | U49: 25851
A50: 44 | B50: Zadovoljena | C50: Zbroj AOP-a: 645+646 je samo dio AOP-a 101 i mora biti manji ili jednak njemu u oba stupca podataka. | D50: 151 | E50: 0 | F50: =IF(PRRAS!D659+PRRAS!D660 > PRRAS!D112,1,0) -> 0 | G50: =IF(PRRAS!E659+PRRAS!E660 > PRRAS!E112,1,0) -> 0 | U50: 25860
A51: 45 | B51: Zadovoljena | C51: Zbroj AOP-a: 654+655 je samo dio AOP-a 140 i mora biti manji ili jednak njemu u oba stupca podataka | D51: 151 | E51: 0 | F51: =IF(PRRAS!D668+PRRAS!D669 > PRRAS!D151,1,0) -> 0 | G51: =IF(PRRAS!E668+PRRAS!E669 > PRRAS!E151,1,0) -> 0 | U51: 38382
A52: 46 | B52: Zadovoljena | C52: AOP 658 je samo dio AOP-a 148 i mora biti manji ili jednak njemu u oba stupca podataka | D52: 151 | E52: 0 | F52: =IF(PRRAS!D672>PRRAS!D159,1,0) -> 0 | G52: =IF(PRRAS!E672>PRRAS!E159,1,0) -> 0 | U52: 38495
A53: 47 | B53: Zadovoljena | C53: AOP 659 je samo dio AOP-a 165 i mora biti manji ili jednak njemu u oba stupca podataka | D53: 151 | E53: 0 | F53: =IF(PRRAS!D673>PRRAS!D176,1,0) -> 0 | G53: =IF(PRRAS!E673>PRRAS!E176,1,0) -> 0 | U53: 38500
A54: 48 | B54: Zadovoljena | C54: Zbroj AOP-a: 660+661+662 je samo dio AOP-a 166 i mora biti manji ili jednaki njemu u oba stupca podataka | D54: 151 | E54: 0 | F54: =IF(PRRAS!D674+PRRAS!D675+PRRAS!D676>PRRAS!D177,1,0) -> 0 | G54: =IF(PRRAS!E674+PRRAS!E675+PRRAS!E676>PRRAS!E177,1,0) -> 0 | U54: 40834
A55: 49 | B55: Zadovoljena | C55: AOP 663 je samo dio AOP-a 172 i mora biti manji ili jednak njemu u oba stupca podataka | D55: 151 | E55: 0 | F55: =IF(PRRAS!D677>PRRAS!D183,1,0) -> 0 | G55: =IF(PRRAS!E677>PRRAS!E183,1,0) -> 0 | U55: 42750
A56: 50 | B56: Zadovoljena | C56: AOP 664 je samo dio AOP-a 173 i mora biti manji ili jednak njemu u oba stupca podataka | D56: 151 | E56: 0 | F56: =IF(PRRAS!D678>PRRAS!D184,1,0) -> 0 | G56: =IF(PRRAS!E678>PRRAS!E184,1,0) -> 0 | U56: 42768
A57: 51 | B57: Zadovoljena | C57: AOP 180 mora biti jednak zbroju AOP-a: 665+666 u oba stupca podataka. Dopušteno je odstupanje od 1kn zbog zaokruživanja. | D57: 151 | E57: 0 | F57: =IF(ABS(PRRAS!D191-PRRAS!D679-PRRAS!D680)>1,1,0) -> 0 | G57: =IF(ABS(PRRAS!E191-PRRAS!E679-PRRAS!E680)>1,1,0) -> 0 | U57: 43167
A58: 52 | B58: Zadovoljena | C58: AOP 181 mora biti jednak zbroju AOP-a: 667+668 u oba stupca podataka. Dopušteno je odstupanje od 1kn zbog zaokruživanja. | D58: 151 | E58: 0 | F58: =IF(ABS(PRRAS!D192-PRRAS!D681-PRRAS!D682)>1,1,0) -> 0 | G58: =IF(ABS(PRRAS!E192-PRRAS!E681-PRRAS!E682)>1,1,0) -> 0 | U58: 43214
A59: 53 | B59: =IF(E59=1,"Nije zadovoljena", "Zadovoljena") -> Zadovoljena | C59: AOP 182 mora biti jednak zbroju AOP-a: 669+670 u oba stupca podataka. Dopušteno je odstupanje od 1kn zbog zaokruživanja. | D59: 151 | E59: 0 | F59: =IF(ABS(PRRAS!D193-PRRAS!D683-PRRAS!D684)>1,1,0) -> 0 | G59: =IF(ABS(PRRAS!E193-PRRAS!E683-PRRAS!E684)>1,1,0) -> 0
A60: 54 | B60: Zadovoljena | C60: AOP 183 mora biti jednak zbroju AOP-a: 671+672 u oba stupca podataka. Dopušteno je odstupanje od 1kn zbog zaokruživanja. | D60: 151 | E60: 0 | F60: =IF(ABS(PRRAS!D194-PRRAS!D685-PRRAS!D686)>1,1,0) -> 0 | G60: =IF(ABS(PRRAS!E194-PRRAS!E685-PRRAS!E686)>1,1,0) -> 0
A61: 55 | B61: Zadovoljena | C61: AOP 185 mora biti jednak zbroju AOP-a: 673 do 676 u oba stupca podataka. Dopušteno je odstupanje od 1kn zbog zaokruživanja. | D61: 151 | E61: 0 | F61: =IF(ABS(PRRAS!D196-SUM(PRRAS!D687:D690))>1,1,0) -> 0 | G61: =IF(ABS(PRRAS!E196-SUM(PRRAS!E687:E690))>1,1,0) -> 0
A62: 56 | B62: Zadovoljena | C62: AOP 186 mora biti jednak zbroju AOP-a: 677 do 679 u oba stupca podataka. Dopušteno je odstupanje od 1kn zbog zaokruživanja. | D62: 151 | E62: 0 | F62: =IF(ABS(PRRAS!D197-SUM(PRRAS!D691:D693))>1,1,0) -> 0 | G62: =IF(ABS(PRRAS!E197-SUM(PRRAS!E691:E693))>1,1,0) -> 0
A63: 57 | B63: Zadovoljena | C63: AOP 187 mora biti jednak zbroju AOP-a: 680 do 685 u oba stupca podataka. Dopušteno je odstupanje od 1kn zbog zaokruživanja. | D63: 151 | E63: 0 | F63: =IF(ABS(PRRAS!D198-SUM(PRRAS!D694:D699))>1,1,0) -> 0 | G63: =IF(ABS(PRRAS!E198-SUM(PRRAS!E694:E699))>1,1,0) -> 0
A64: 58 | B64: Zadovoljena | C64: Zbroj AOP-a 686+687+688 je samo dio AOP-a 190 i mora biti manji ili jednak njemu u oba stupca podataka | D64: 151 | E64: 0 | F64: =IF(PRRAS!D700+PRRAS!D701+PRRAS!D702>PRRAS!D201,1,0) -> 0 | G64: =IF(PRRAS!E700+PRRAS!E701+PRRAS!E702>PRRAS!E201,1,0) -> 0
A65: 59 | B65: Zadovoljena | C65: AOP 191 mora biti jednak zbroju AOP-a: 689 do 695 u oba stupca podataka. Dopušteno je odstupanje od 1kn zbog zaokruživanja. | D65: 151 | E65: 0 | F65: =IF(ABS(PRRAS!D202-SUM(PRRAS!D703:D709))>1,1,0) -> 0 | G65: =IF(ABS(PRRAS!E202-SUM(PRRAS!E703:E709))>1,1,0) -> 0
A66: 60 | B66: Zadovoljena | C66: AOP 696 je samo dio AOP-a 196 i mora biti manji ili jednak njemu u oba stupca podataka | D66: 151 | E66: =MAX(F66:I66) -> 0 | F66: =IF(PRRAS!D710>PRRAS!D207,1,0) -> 0 | G66: =IF(PRRAS!E710>PRRAS!E207,1,0) -> 0
A67: 61 | B67: Zadovoljena | C67: AOP 204 mora biti jednak zbroju AOP-a: 697+698 u oba stupca podataka. Dopušteno je odstupanje od 1kn zbog zaokruživanja. | D67: 151 | E67: 0 | F67: =IF(ABS(PRRAS!D215-PRRAS!D711-PRRAS!D712)>1,1,0) -> 0 | G67: =IF(ABS(PRRAS!E215-PRRAS!E711-PRRAS!E712)>1,1,0) -> 0
A68: 62 | B68: Zadovoljena | C68: AOP 213 mora biti jednak zbroju AOP-a: 699 do 705 u oba stupca podataka. Dopušteno je odstupanje od 1kn zbog zaokruživanja. | D68: 151 | E68: 0 | F68: =IF(ABS(PRRAS!D224-SUM(PRRAS!D713:D719))>1,1,0) -> 0 | G68: =IF(ABS(PRRAS!E224-SUM(PRRAS!E713:E719))>1,1,0) -> 0
A69: 63 | B69: Zadovoljena | C69: AOP 214 mora biti jednak zbroju AOP-a: 706 do 712 u oba stupca podataka. Dopušteno je odstupanje od 1kn zbog zaokruživanja. | D69: 151 | E69: 0 | F69: =IF(ABS(PRRAS!D225-SUM(PRRAS!D720:D726))>1,1,0) -> 0 | G69: =IF(ABS(PRRAS!E225-SUM(PRRAS!E720:E726))>1,1,0) -> 0
A70: 64 | B70: Zadovoljena | C70: AOP 215 mora biti jednak zbroju AOP-a: 713+714 u oba stupca podataka. Dopušteno je odstupanje od 1kn zbog zaokruživanja. | D70: 151 | E70: 0 | F70: =IF(ABS(PRRAS!D226-SUM(PRRAS!D727:D728))>1,1,0) -> 0 | G70: =IF(ABS(PRRAS!E226-SUM(PRRAS!E727:E728))>1,1,0) -> 0
A71: 65 | B71: Zadovoljena | C71: AOP 216 mora biti jednak zbroju AOP-a: 715+716 u oba stupca podataka. Dopušteno je odstupanje od 1kn zbog zaokruživanja. | D71: 151 | E71: 0 | F71: =IF(ABS(PRRAS!D227-SUM(PRRAS!D729:D730))>1,1,0) -> 0 | G71: =IF(ABS(PRRAS!E227-SUM(PRRAS!E729:E730))>1,1,0) -> 0
A72: 66 | B72: Zadovoljena | C72: Zbroj AOP-a: 717+718 je samo dio AOP-a 222 i mora biti manji ili jednak njemu u oba stupca podataka | D72: 151 | E72: 0 | F72: =IF(PRRAS!D731+PRRAS!D732>PRRAS!D233,1,0) -> 0 | G72: =IF(PRRAS!E731+PRRAS!E732>PRRAS!E233,1,0) -> 0
A73: 67 | B73: Zadovoljena | C73: AOP 719 je samo dio AOP-a 223 i mora biti manji ili jednak njemu u oba stupca podataka | D73: 151 | E73: 0 | F73: =IF(PRRAS!D733>PRRAS!D234,1,0) -> 0 | G73: =IF(PRRAS!E733>PRRAS!E234,1,0) -> 0
A74: 68 | B74: Zadovoljena | C74: AOP 720 je samo dio AOP-a 226 i mora biti manji ili jednak njemu u oba stupca podataka | D74: 151 | E74: 0 | F74: =IF(PRRAS!D734>PRRAS!D237,1,0) -> 0 | G74: =IF(PRRAS!E734>PRRAS!E237,1,0) -> 0
A75: 69 | B75: Zadovoljena | C75: AOP 237 mora biti jednak zbroju AOP-a: 721 do 724 u oba stupca podataka. Dopušteno je odstupanje od 1kn zbog zaokruživanja. | D75: 151 | E75: 0 | F75: =IF(ABS(PRRAS!D248-SUM(PRRAS!D735:D738))>1,1,0) -> 0 | G75: =IF(ABS(PRRAS!E248-SUM(PRRAS!E735:E738))>1,1,0) -> 0
A76: 70 | B76: Zadovoljena | C76: AOP 238 mora biti jednak zbroju AOP-a: 725 do 728 u oba stupca podataka. Dopušteno je odstupanje od 1kn zbog zaokruživanja. | D76: 151 | E76: 0 | F76: =IF(ABS(PRRAS!D249-SUM(PRRAS!D739:D742))>1,1,0) -> 0 | G76: =IF(ABS(PRRAS!E249-SUM(PRRAS!E739:E742))>1,1,0) -> 0
A77: 71 | B77: Zadovoljena | C77: AOP 239 mora biti jednak zbroju AOP-a: 729+730 u oba stupca podataka. Dopušteno je odstupanje od 1kn zbog zaokruživanja. | D77: 151 | E77: 0 | F77: =IF(ABS(PRRAS!D250-SUM(PRRAS!D743:D744))>1,1,0) -> 0 | G77: =IF(ABS(PRRAS!E250-SUM(PRRAS!E743:E744))>1,1,0) -> 0
A78: 72 | B78: Zadovoljena | C78: AOP 738 je samo dio AOP-a 392 i mora biti manji ili jednak njemu u oba stupca podataka | D78: 151 | E78: 0 | F78: =IF(PRRAS!D752>PRRAS!D405,1,0) -> 0 | G78: =IF(PRRAS!E752>PRRAS!E405,1,0) -> 0
A79: 73 | B79: Zadovoljena | C79: AOP 739 je samo dio AOP-a 395 i mora biti manji ili jednak njemu u oba stupca podataka | D79: 151 | E79: 0 | F79: =IF(PRRAS!D753>PRRAS!D408,1,0) -> 0 | G79: =IF(PRRAS!E753>PRRAS!E408,1,0) -> 0
A80: 74 | B80: Zadovoljena | C80: AOP 740 je samo dio AOP-a 396 i mora biti manji ili jednak njemu u oba stupca podataka | D80: 151 | E80: 0 | F80: =IF(PRRAS!D754>PRRAS!D409,1,0) -> 0 | G80: =IF(PRRAS!E754>PRRAS!E409,1,0) -> 0
A81: 75 | B81: Zadovoljena | C81: AOP 741 je samo dio AOP-a 397 i mora biti manji ili jednak njemu u oba stupca podataka | D81: 151 | E81: 0 | F81: =IF(PRRAS!D755>PRRAS!D410,1,0) -> 0 | G81: =IF(PRRAS!E755>PRRAS!E410,1,0) -> 0
A82: 76 | B82: Zadovoljena | C82: AOP 399 mora biti jednak zbroju AOP-a 742+743 u oba stupca podataka. Dopušteno je odstupanje od 1 kn zbog zaokruživanja | D82: 151 | E82: 0 | F82: =IF(ABS(PRRAS!D412-SUM(PRRAS!D756:D757))>1,1,0) -> 0 | G82: =IF(ABS(PRRAS!E412-SUM(PRRAS!E756:E757))>1,1,0) -> 0
A83: 77 | B83: Zadovoljena | C83: AOP 744 je samo dio AOP-a 401 i mora biti manji ili jednak njemu u oba stupca podataka | D83: 151 | E83: 0 | F83: =IF(PRRAS!D758>PRRAS!D414,1,0) -> 0 | G83: =IF(PRRAS!E758>PRRAS!E414,1,0) -> 0
A84: 78 | B84: Zadovoljena | C84: AOP 745 je samo dio AOP-a 402 i mora biti manji ili jednak njemu u oba stupca podataka | D84: 151 | E84: 0 | F84: =IF(PRRAS!D759>PRRAS!D415,1,0) -> 0 | G84: =IF(PRRAS!E759>PRRAS!E415,1,0) -> 0
A85: 79 | B85: Zadovoljena | C85: AOP 746 je samo dio AOP-a 403 i mora biti manji ili jednak njemu u oba stupca podataka | D85: 151 | E85: 0 | F85: =IF(PRRAS!D760>PRRAS!D416,1,0) -> 0 | G85: =IF(PRRAS!E760>PRRAS!E416,1,0) -> 0
A86: 80 | B86: Zadovoljena | C86: AOP 408 mora biti jednak zbroju AOP-a:747+748 u oba stupca podataka. Dopušteno je odstupanje od 1 kn zbog zaokruživanja | D86: 151 | E86: 0 | F86: =IF(ABS(PRRAS!D421-SUM(PRRAS!D761:D762))>1,1,0) -> 0 | G86: =IF(ABS(PRRAS!E421-SUM(PRRAS!E761:E762))>1,1,0) -> 0
A87: 81 | B87: Zadovoljena | C87: AOP 409 mora biti jednak zbroju AOP-a:749+750 u oba stupca podataka. Dopušteno je odstupanje od 1 kn zbog zaokruživanja | D87: 151 | E87: 0 | F87: =IF(ABS(PRRAS!D422-SUM(PRRAS!D763:D764))>1,1,0) -> 0 | G87: =IF(ABS(PRRAS!E422-SUM(PRRAS!E763:E764))>1,1,0) -> 0
A88: 82 | B88: Zadovoljena | C88: AOP 413 mora biti jednak zbroju AOP-a: 751+752 u oba stupca podataka. Dopušteno je odstupanje od 1 kn zbog zaokruživanja | D88: 151 | E88: 0 | F88: =IF(ABS(PRRAS!D426-SUM(PRRAS!D765:D766))>1,1,0) -> 0 | G88: =IF(ABS(PRRAS!E426-SUM(PRRAS!E765:E766))>1,1,0) -> 0
A89: 83 | B89: Zadovoljena | C89: AOP 414 mora biti jednak zbroju AOP-a: 753+754 u oba stupca podataka. Dopušteno je odstupanje od 1 kn zbog zaokruživanja | D89: 151 | E89: 0 | F89: =IF(ABS(PRRAS!D427-SUM(PRRAS!D767:D768))>1,1,0) -> 0 | G89: =IF(ABS(PRRAS!E427-SUM(PRRAS!E767:E768))>1,1,0) -> 0
A90: 84 | B90: Zadovoljena | C90: AOP 415 mora biti jednak zbroju AOP-a: 755+756 u oba stupca podataka. Dopušteno je odstupanje od 1 kn zbog zaokruživanja | D90: 151 | E90: 0 | F90: =IF(ABS(PRRAS!D428-SUM(PRRAS!D769:D770))>1,1,0) -> 0 | G90: =IF(ABS(PRRAS!E428-SUM(PRRAS!E769:E770))>1,1,0) -> 0
A91: 85 | B91: Zadovoljena | C91: AOP 416 mora biti jednak zbroju AOP-a: 757+758 u oba stupca podataka. Dopušteno je odstupanje od 1 kn zbog zaokruživanja | D91: 151 | E91: 0 | F91: =IF(ABS(PRRAS!D429-SUM(PRRAS!D771:D772))>1,1,0) -> 0 | G91: =IF(ABS(PRRAS!E429-SUM(PRRAS!E771:E772))>1,1,0) -> 0
A92: 86 | B92: Zadovoljena | C92: AOP 417 mora biti jednak zbroju AOP-a: 759+760 u oba stupca podataka. Dopušteno je odstupanje od 1 kn zbog zaokruživanja | D92: 151 | E92: 0 | F92: =IF(ABS(PRRAS!D430-SUM(PRRAS!D773:D774))>1,1,0) -> 0 | G92: =IF(ABS(PRRAS!E430-SUM(PRRAS!E773:E774))>1,1,0) -> 0
A93: 87 | B93: Zadovoljena | C93: AOP 418 mora biti jednak zbroju AOP-a: 761+762 u oba stupca podataka. Dopušteno je odstupanje od 1 kn zbog zaokruživanja | D93: 151 | E93: 0 | F93: =IF(ABS(PRRAS!D431-SUM(PRRAS!D775:D776))>1,1,0) -> 0 | G93: =IF(ABS(PRRAS!E431-SUM(PRRAS!E775:E776))>1,1,0) -> 0
A94: 88 | B94: Zadovoljena | C94: AOP 419 mora biti jednak zbroju AOP-a: 763+764 u oba stupca podataka. Dopušteno je odstupanje od 1 kn zbog zaokruživanja | D94: 151 | E94: 0 | F94: =IF(ABS(PRRAS!D432-SUM(PRRAS!D777:D778))>1,1,0) -> 0 | G94: =IF(ABS(PRRAS!E432-SUM(PRRAS!E777:E778))>1,1,0) -> 0
A95: 89 | B95: Zadovoljena | C95: AOP 765 je samo dio AOP-a 431 i mora biti manji ili jednak njemu u oba stupca podataka | D95: 151 | E95: 0 | F95: =IF(PRRAS!D779>PRRAS!D444,1,0) -> 0 | G95: =IF(PRRAS!E779>PRRAS!E444,1,0) -> 0
A96: 90 | B96: Zadovoljena | C96: AOP 766 je samo dio AOP-a 448 i mora biti manji ili jednak njemu u oba stupca podataka | D96: 151 | E96: 0 | F96: =IF(PRRAS!D780>PRRAS!D461,1,0) -> 0 | G96: =IF(PRRAS!E780>PRRAS!E461,1,0) -> 0
A97: 91 | B97: =IF(E97=1,"Nije zadovoljena", "Zadovoljena") -> Zadovoljena | C97: AOP 767 je samo dio AOP-a 449 i mora biti manji ili jednak njemu u oba stupca podataka | D97: 151 | E97: =MAX(F97:I97) -> 0 | F97: =IF(PRRAS!D781>PRRAS!D462,1,0) -> 0 | G97: =IF(PRRAS!E781>PRRAS!E462,1,0) -> 0
A98: 92 | B98: Zadovoljena | C98: AOP 768 je samo dio AOP-a 450 i mora biti manji ili jednak njemu u oba stupca podataka | D98: 151 | E98: 0 | F98: =IF(PRRAS!D782>PRRAS!D463,1,0) -> 0 | G98: =IF(PRRAS!E782>PRRAS!E463,1,0) -> 0
A99: 93 | B99: Zadovoljena | C99: AOP 769 je samo dio AOP-a 451 i mora biti manji ili jednak njemu u oba stupca podataka | D99: 151 | E99: 0 | F99: =IF(PRRAS!D783>PRRAS!D464,1,0) -> 0 | G99: =IF(PRRAS!E783>PRRAS!E464,1,0) -> 0
A100: 94 | B100: Zadovoljena | C100: AOP 453 mora biti jednak zbroju AOP-a: 770+771 u oba stupca podataka. Dopušteno je odstupanje od 1 kn zbog zaokruživanja | D100: 151 | E100: 0 | F100: =IF(ABS(PRRAS!D466-PRRAS!D784-PRRAS!D785)>1,1,0) -> 0 | G100: =IF(ABS(PRRAS!E466-PRRAS!E784-PRRAS!E785)>1,1,0) -> 0
A101: 95 | B101: Zadovoljena | C101: AOP 772 je samo dio AOP-a 454 i mora biti manji ili jednak njemu u oba stupca podataka | D101: 151 | E101: 0 | F101: =IF(PRRAS!D786>PRRAS!D467,1,0) -> 0 | G101: =IF(PRRAS!E786>PRRAS!E467,1,0) -> 0
A102: 96 | B102: Zadovoljena | C102: AOP 773 je samo dio AOP-a 455 i mora biti manji ili jednak njemu u oba stupca podataka | D102: 151 | E102: 0 | F102: =IF(PRRAS!D787>PRRAS!D468,1,0) -> 0 | G102: =IF(PRRAS!E787>PRRAS!E468,1,0) -> 0
A103: 97 | B103: Zadovoljena | C103: AOP 774 je samo dio AOP-a 457 i mora biti manji ili jednak njemu u oba stupca podataka | D103: 151 | E103: 0 | F103: =IF(PRRAS!D788>PRRAS!D470,1,0) -> 0 | G103: =IF(PRRAS!E788>PRRAS!E470,1,0) -> 0
A104: 98 | B104: Zadovoljena | C104: AOP 459 mora biti jednak zbroju AOP-a: 775+776 u oba stupca podataka. Dopušteno je odstupanje od 1 kn zbog zaokruživanja | D104: 151 | E104: 0 | F104: =IF(ABS(PRRAS!D472-PRRAS!D789-PRRAS!D790)>1,1,0) -> 0 | G104: =IF(ABS(PRRAS!E472-PRRAS!E789-PRRAS!E790)>1,1,0) -> 0
A105: 99 | B105: Zadovoljena | C105: AOP 777 je samo dio AOP-a 460 i mora biti manji ili jednak njemu u oba stupca podataka | D105: 151 | E105: 0 | F105: =IF(PRRAS!D791>PRRAS!D473,1,0) -> 0 | G105: =IF(PRRAS!E791>PRRAS!E473,1,0) -> 0
A106: 100 | B106: Zadovoljena | C106: AOP 778 je samo dio AOP-a 461 i mora biti manji ili jednak njemu u oba stupca podataka | D106: 151 | E106: 0 | F106: =IF(PRRAS!D792>PRRAS!D474,1,0) -> 0 | G106: =IF(PRRAS!E792>PRRAS!E474,1,0) -> 0
A107: 101 | B107: Zadovoljena | C107: AOP 462 mora biti jednak zbroju AOP-a: 779+780 u oba stupca podataka. Dopušteno je odstupanje od 1 kn zbog zaokruživanja | D107: 151 | E107: 0 | F107: =IF(ABS(PRRAS!D475-PRRAS!D793-PRRAS!D794)>1,1,0) -> 0 | G107: =IF(ABS(PRRAS!E475-PRRAS!E793-PRRAS!E794)>1,1,0) -> 0
A108: 102 | B108: Zadovoljena | C108: AOP 781 je samo dio AOP-a 463 i mora biti manji ili jednak njemu u oba stupca podataka | D108: 151 | E108: 0 | F108: =IF(PRRAS!D795>PRRAS!D476,1,0) -> 0 | G108: =IF(PRRAS!E795>PRRAS!E476,1,0) -> 0
A109: 103 | B109: Zadovoljena | C109: AOP 782 je samo dio AOP-a 464 i mora biti manji ili jednak njemu u oba stupca podataka | D109: 151 | E109: 0 | F109: =IF(PRRAS!D796>PRRAS!D477,1,0) -> 0 | G109: =IF(PRRAS!E796>PRRAS!E477,1,0) -> 0
A110: 104 | B110: Zadovoljena | C110: AOP 783 je samo dio AOP-a 466 i mora biti manji ili jednak njemu u oba stupca podataka | D110: 151 | E110: 0 | F110: =IF(PRRAS!D797>PRRAS!D479,1,0) -> 0 | G110: =IF(PRRAS!E797>PRRAS!E479,1,0) -> 0
A111: 105 | B111: Zadovoljena | C111: AOP 784 je samo dio AOP-a 467 i mora biti manji ili jednak njemu u oba stupca podataka | D111: 151 | E111: 0 | F111: =IF(PRRAS!D798>PRRAS!D480,1,0) -> 0 | G111: =IF(PRRAS!E798>PRRAS!E480,1,0) -> 0
A112: 106 | B112: Zadovoljena | C112: AOP 785 je samo dio AOP-a 468 i mora biti manji ili jednak njemu u oba stupca podataka | D112: 151 | E112: 0 | F112: =IF(PRRAS!D799>PRRAS!D481,1,0) -> 0 | G112: =IF(PRRAS!E799>PRRAS!E481,1,0) -> 0
A113: 107 | B113: Zadovoljena | C113: AOP 471 mora biti jednak zbroju AOP-a: 786+787 u oba stupca podataka. Dopušteno je odstupanje od 1kn zbog zaokruživanja. | D113: 151 | E113: 0 | F113: =IF(ABS(PRRAS!D484-PRRAS!D800-PRRAS!D801)>1,1,0) -> 0 | G113: =IF(ABS(PRRAS!E484-PRRAS!E800-PRRAS!E801)>1,1,0) -> 0
A114: 108 | B114: Zadovoljena | C114: AOP 472 mora biti jednak zbroju AOP-a: 788+789 u oba stupca podataka. Dopušteno je odstupanje od 1kn zbog zaokruživanja. | D114: 151 | E114: 0 | F114: =IF(ABS(PRRAS!D485-PRRAS!D802-PRRAS!D803)>1,1,0) -> 0 | G114: =IF(ABS(PRRAS!E485-PRRAS!E802-PRRAS!E803)>1,1,0) -> 0
A115: 109 | B115: Zadovoljena | C115: AOP 473 mora biti jednak zbroju AOP-a: 790+791 u oba stupca podataka. Dopušteno je odstupanje od 1kn zbog zaokruživanja. | D115: 151 | E115: 0 | F115: =IF(ABS(PRRAS!D486-PRRAS!D804-PRRAS!D805)>1,1,0) -> 0 | G115: =IF(ABS(PRRAS!E486-PRRAS!E804-PRRAS!E805)>1,1,0) -> 0
A116: 110 | B116: Zadovoljena | C116: AOP 474 mora biti jednak zbroju AOP-a: 792+793 u oba stupca podataka. Dopušteno je odstupanje od 1kn zbog zaokruživanja. | D116: 151 | E116: 0 | F116: =IF(ABS(PRRAS!D487-PRRAS!D806-PRRAS!D807)>1,1,0) -> 0 | G116: =IF(ABS(PRRAS!E487-PRRAS!E806-PRRAS!E807)>1,1,0) -> 0
A117: 111 | B117: Zadovoljena | C117: AOP 475 mora biti jednak zbroju AOP-a: 794+795 u oba stupca podataka. Dopušteno je odstupanje od 1kn zbog zaokruživanja. | D117: 151 | E117: 0 | F117: =IF(ABS(PRRAS!D488-PRRAS!D808-PRRAS!D809)>1,1,0) -> 0 | G117: =IF(ABS(PRRAS!E488-PRRAS!E808-PRRAS!E809)>1,1,0) -> 0
A118: 112 | B118: Zadovoljena | C118: AOP 476 mora biti jednak zbroju AOP-a: 796+797 u oba stupca podataka. Dopušteno je odstupanje od 1kn zbog zaokruživanja. | D118: 151 | E118: 0 | F118: =IF(ABS(PRRAS!D489-PRRAS!D810-PRRAS!D811)>1,1,0) -> 0 | G118: =IF(ABS(PRRAS!E489-PRRAS!E810-PRRAS!E811)>1,1,0) -> 0
A119: 113 | B119: Zadovoljena | C119: AOP 798 je samo dio AOP-a 488 i mora biti manji ili jednak njemu u oba stupca podataka | D119: 151 | E119: 0 | F119: =IF(PRRAS!D812>PRRAS!D501,1,0) -> 0 | G119: =IF(PRRAS!E812>PRRAS!E501,1,0) -> 0
A120: 114 | B120: Zadovoljena | C120: AOP 800 je samo dio AOP-a 498 i mora biti manji ili jednak njemu u oba stupca podataka | D120: 151 | E120: 0 | F120: =IF(PRRAS!D814>PRRAS!D511,1,0) -> 0 | G120: =IF(PRRAS!E814>PRRAS!E511,1,0) -> 0
A121: 115 | B121: Zadovoljena | C121: AOP 801 je samo dio AOP-a 501 i mora biti manji ili jednak njemu u oba stupca podataka | D121: 151 | E121: 0 | F121: =IF(PRRAS!D815>PRRAS!D514,1,0) -> 0 | G121: =IF(PRRAS!E815>PRRAS!E514,1,0) -> 0
A122: 116 | B122: Zadovoljena | C122: AOP 802 je samo dio AOP-a 502 i mora biti manji ili jednak njemu u oba stupca podataka | D122: 151 | E122: 0 | F122: =IF(PRRAS!D816>PRRAS!D515,1,0) -> 0 | G122: =IF(PRRAS!E816>PRRAS!E515,1,0) -> 0
A123: 117 | B123: Zadovoljena | C123: AOP 803 je samo dio AOP-a 503 i mora biti manji ili jednak njemu u oba stupca podataka | D123: 151 | E123: 0 | F123: =IF(PRRAS!D817>PRRAS!D516,1,0) -> 0 | G123: =IF(PRRAS!E817>PRRAS!E516,1,0) -> 0
A124: 118 | B124: Zadovoljena | C124: AOP 505 mora biti jednak zbroju AOP-a: 804+805 u oba stupca podataka. Dopušteno je odstupanje od 1kn zbog zaokruživanja. | D124: 151 | E124: 0 | F124: =IF(ABS(PRRAS!D518-PRRAS!D818-PRRAS!D819)>1,1,0) -> 0 | G124: =IF(ABS(PRRAS!E518-PRRAS!E818-PRRAS!E819)>1,1,0) -> 0
A125: 119 | B125: Zadovoljena | C125: AOP 806 je samo dio AOP-a 507 i mora biti manji ili jednak njemu u oba stupca podataka | D125: 151 | E125: 0 | F125: =IF(PRRAS!D820>PRRAS!D520,1,0) -> 0 | G125: =IF(PRRAS!E820>PRRAS!E520,1,0) -> 0
A126: 120 | B126: Zadovoljena | C126: AOP 807 je samo dio AOP-a 508 i mora biti manji ili jednak njemu u oba stupca podataka | D126: 151 | E126: 0 | F126: =IF(PRRAS!D821>PRRAS!D521,1,0) -> 0 | G126: =IF(PRRAS!E821>PRRAS!E521,1,0) -> 0
A127: 121 | B127: Zadovoljena | C127: AOP 808 je samo dio AOP-a 509 i mora biti manji ili jednak njemu u oba stupca podataka | D127: 151 | E127: 0 | F127: =IF(PRRAS!D822>PRRAS!D522,1,0) -> 0 | G127: =IF(PRRAS!E822>PRRAS!E522,1,0) -> 0
A128: 122 | B128: Zadovoljena | C128: AOP 514 mora biti jednak zbroju AOP-a: 809+810 u oba stupca podataka. Dopušteno je odstupanje od 1kn zbog zaokruživanja. | D128: 151 | E128: 0 | F128: =IF(ABS(PRRAS!D527-PRRAS!D823-PRRAS!D824)>1,1,0) -> 0 | G128: =IF(ABS(PRRAS!E527-PRRAS!E823-PRRAS!E824)>1,1,0) -> 0
A129: 123 | B129: Zadovoljena | C129: AOP 515 mora biti jednak zbroju AOP-a: 811+812 u oba stupca podataka. Dopušteno je odstupanje od 1kn zbog zaokruživanja. | D129: 151 | E129: =MAX(F129:I129) -> 0 | F129: =IF(ABS(PRRAS!D528-PRRAS!D825-PRRAS!D826)>1,1,0) -> 0 | G129: =IF(ABS(PRRAS!E528-PRRAS!E825-PRRAS!E826)>1,1,0) -> 0
A130: 124 | B130: Zadovoljena | C130: AOP 519 mora biti jednak zbroju AOP-a: 813+814 u oba stupca podataka. Dopušteno je odstupanje od 1kn zbog zaokruživanja. | D130: 151 | E130: 0 | F130: =IF(ABS(PRRAS!D532-PRRAS!D827-PRRAS!D828)>1,1,0) -> 0 | G130: =IF(ABS(PRRAS!E532-PRRAS!E827-PRRAS!E828)>1,1,0) -> 0
A131: 125 | B131: Zadovoljena | C131: AOP 520 mora biti jednak zbroju AOP-a: 815+816 u oba stupca podataka. Dopušteno je odstupanje od 1kn zbog zaokruživanja. | D131: 151 | E131: 0 | F131: =IF(ABS(PRRAS!D533-PRRAS!D829-PRRAS!D830)>1,1,0) -> 0 | G131: =IF(ABS(PRRAS!E533-PRRAS!E829-PRRAS!E830)>1,1,0) -> 0
A132: 126 | B132: Zadovoljena | C132: AOP 521 mora biti jednak zbroju AOP-a: 817+818 u oba stupca podataka. Dopušteno je odstupanje od 1kn zbog zaokruživanja. | D132: 151 | E132: 0 | F132: =IF(ABS(PRRAS!D534-PRRAS!D831-PRRAS!D832)>1,1,0) -> 0 | G132: =IF(ABS(PRRAS!E534-PRRAS!E831-PRRAS!E832)>1,1,0) -> 0
A133: 127 | B133: Zadovoljena | C133: AOP 522 mora biti jednak zbroju AOP-a: 819+820 u oba stupca podataka. Dopušteno je odstupanje od 1kn zbog zaokruživanja. | D133: 151 | E133: 0 | F133: =IF(ABS(PRRAS!D535-PRRAS!D833-PRRAS!D834)>1,1,0) -> 0 | G133: =IF(ABS(PRRAS!E535-PRRAS!E833-PRRAS!E834)>1,1,0) -> 0
A134: 128 | B134: Zadovoljena | C134: AOP 523 mora biti jednak zbroju AOP-a: 821+822 u oba stupca podataka. Dopušteno je odstupanje od 1kn zbog zaokruživanja. | D134: 151 | E134: 0 | F134: =IF(ABS(PRRAS!D536-PRRAS!D835-PRRAS!D836)>1,1,0) -> 0 | G134: =IF(ABS(PRRAS!E536-PRRAS!E835-PRRAS!E836)>1,1,0) -> 0
A135: 129 | B135: Zadovoljena | C135: AOP 524 mora biti jednak zbroju AOP-a: 823+824 u oba stupca podataka. Dopušteno je odstupanje od 1kn zbog zaokruživanja. | D135: 151 | E135: 0 | F135: =IF(ABS(PRRAS!D537-PRRAS!D837-PRRAS!D838)>1,1,0) -> 0 | G135: =IF(ABS(PRRAS!E537-PRRAS!E837-PRRAS!E838)>1,1,0) -> 0
A136: 130 | B136: Zadovoljena | C136: AOP 525 mora biti jednak zbroju AOP-a: 825+826 u oba stupca podataka. Dopušteno je odstupanje od 1kn zbog zaokruživanja. | D136: 151 | E136: 0 | F136: =IF(ABS(PRRAS!D538-PRRAS!D839-PRRAS!D840)>1,1,0) -> 0 | G136: =IF(ABS(PRRAS!E538-PRRAS!E839-PRRAS!E840)>1,1,0) -> 0
A137: 131 | B137: Zadovoljena | C137: AOP 827 je samo dio AOP-a 554 i mora biti manji ili jednak njemu u oba stupca podataka | D137: 151 | E137: 0 | F137: =IF(PRRAS!D841>PRRAS!D567,1,0) -> 0 | G137: =IF(PRRAS!E841>PRRAS!E567,1,0) -> 0
A138: 132 | B138: Zadovoljena | C138: AOP 828 je samo dio AOP-a 555 i mora biti manji ili jednak njemu u oba stupca podataka | D138: 151 | E138: 0 | F138: =IF(PRRAS!D842>PRRAS!D568,1,0) -> 0 | G138: =IF(PRRAS!E842>PRRAS!E568,1,0) -> 0
A139: 133 | B139: Zadovoljena | C139: AOP 829 je samo dio AOP-a 556 i mora biti manji ili jednak njemu u oba stupca podataka | D139: 151 | E139: 0 | F139: =IF(PRRAS!D843>PRRAS!D569,1,0) -> 0 | G139: =IF(PRRAS!E843>PRRAS!E569,1,0) -> 0
A140: 134 | B140: Zadovoljena | C140: AOP 830 je samo dio AOP-a 557 i mora biti manji ili jednak njemu u oba stupca podataka | D140: 151 | E140: 0 | F140: =IF(PRRAS!D844>PRRAS!D570,1,0) -> 0 | G140: =IF(PRRAS!E844>PRRAS!E570,1,0) -> 0
A141: 135 | B141: Zadovoljena | C141: AOP 559 mora biti jednak zbroju AOP-a: 831+832 u oba stupca podataka. Dopušteno je odstupanje od 1kn zbog zaokruživanja. | D141: 151 | E141: 0 | F141: =IF(ABS(PRRAS!D572-PRRAS!D845-PRRAS!D846)>1,1,0) -> 0 | G141: =IF(ABS(PRRAS!E572-PRRAS!E845-PRRAS!E846)>1,1,0) -> 0
A142: 136 | B142: Zadovoljena | C142: AOP 833 je samo dio AOP-a 560 i mora biti manji ili jednak njemu u oba stupca podataka | D142: 151 | E142: 0 | F142: =IF(PRRAS!D847>PRRAS!D573,1,0) -> 0 | G142: =IF(PRRAS!E847>PRRAS!E573,1,0) -> 0
A143: 137 | B143: =IF(E143=1,"Nije zadovoljena", "Zadovoljena") -> Zadovoljena | C143: AOP 834 je samo dio AOP-a 561 i mora biti manji ili jednak njemu u oba stupca podataka | D143: 151 | E143: 0 | F143: =IF(PRRAS!D848>PRRAS!D574,1,0) -> 0 | G143: =IF(PRRAS!E848>PRRAS!E574,1,0) -> 0
A144: 138 | B144: Zadovoljena | C144: AOP 835 je samo dio AOP-a 563 i mora biti manji ili jednak njemu u oba stupca podataka | D144: 151 | E144: 0 | F144: =IF(PRRAS!D849>PRRAS!D576,1,0) -> 0 | G144: =IF(PRRAS!E849>PRRAS!E576,1,0) -> 0
A145: 139 | B145: Zadovoljena | C145: AOP 565 mora biti jednak zbroju AOP-a: 836+837 u oba stupca podataka. Dopušteno je odstupanje od 1kn zbog zaokruživanja. | D145: 151 | E145: 0 | F145: =IF(ABS(PRRAS!D578-PRRAS!D850-PRRAS!D851)>1,1,0) -> 0 | G145: =IF(ABS(PRRAS!E578-PRRAS!E850-PRRAS!E851)>1,1,0) -> 0
A146: 140 | B146: Zadovoljena | C146: AOP 838 je samo dio AOP-a 566 i mora biti manji ili jednak njemu u oba stupca podataka | D146: 151 | E146: 0 | F146: =IF(PRRAS!D852>PRRAS!D579,1,0) -> 0 | G146: =IF(PRRAS!E852>PRRAS!E579,1,0) -> 0
A147: 141 | B147: Zadovoljena | C147: AOP 839 je samo dio AOP-a 567 i mora biti manji ili jednak njemu u oba stupca podataka | D147: 151 | E147: 0 | F147: =IF(PRRAS!D853>PRRAS!D580,1,0) -> 0 | G147: =IF(PRRAS!E853>PRRAS!E580,1,0) -> 0
A148: 142 | B148: Zadovoljena | C148: AOP 568 mora biti jednak zbroju AOP-a:840+841 u oba stupca podataka. Dopušteno je odstupanje od 1kn zbog zaokruživanja. | D148: 151 | E148: 0 | F148: =IF(ABS(PRRAS!D581-PRRAS!D854-PRRAS!D855)>1,1,0) -> 0 | G148: =IF(ABS(PRRAS!E581-PRRAS!E854-PRRAS!E855)>1,1,0) -> 0
A149: 143 | B149: Zadovoljena | C149: AOP 842 je samo dio AOP-a 569 i mora biti manji ili jednak njemu u oba stupca podataka | D149: 151 | E149: 0 | F149: =IF(PRRAS!D856>PRRAS!D582,1,0) -> 0 | G149: =IF(PRRAS!E856>PRRAS!E582,1,0) -> 0
A150: 144 | B150: Zadovoljena | C150: AOP 843 je samo dio AOP-a 570 i mora biti manji ili jednak njemu u oba stupca podataka | D150: 151 | E150: 0 | F150: =IF(PRRAS!D857>PRRAS!D583,1,0) -> 0 | G150: =IF(PRRAS!E857>PRRAS!E583,1,0) -> 0
A151: 145 | B151: Zadovoljena | C151: AOP 844 je samo dio AOP-a 572 i mora biti manji ili jednak njemu u oba stupca podataka | D151: 151 | E151: 0 | F151: =IF(PRRAS!D858>PRRAS!D585,1,0) -> 0 | G151: =IF(PRRAS!E858>PRRAS!E585,1,0) -> 0
A152: 146 | B152: Zadovoljena | C152: AOP 845 je samo dio AOP-a 573 i mora biti manji ili jednak njemu u oba stupca podataka | D152: 151 | E152: =MAX(F152:I152) -> 0 | F152: =IF(PRRAS!D859>PRRAS!D586,1,0) -> 0 | G152: =IF(PRRAS!E859>PRRAS!E586,1,0) -> 0
A153: 147 | B153: Zadovoljena | C153: AOP 846 je samo dio AOP-a 574 i mora biti manji ili jednak njemu u oba stupca podataka | D153: 151 | E153: 0 | F153: =IF(PRRAS!D860>PRRAS!D587,1,0) -> 0 | G153: =IF(PRRAS!E860>PRRAS!E587,1,0) -> 0
A154: 148 | B154: Zadovoljena | C154: AOP 577 mora biti jednak zbroju AOP-a: 847+848 u oba stupca podataka. Dopušteno je odstupanje od 1kn zbog zaokruživanja. | D154: 151 | E154: 0 | F154: =IF(ABS(PRRAS!D590-PRRAS!D861-PRRAS!D862)>1,1,0) -> 0 | G154: =IF(ABS(PRRAS!E590-PRRAS!E861-PRRAS!E862)>1,1,0) -> 0
A155: 149 | B155: Zadovoljena | C155: AOP 578 mora biti jednak zbroju AOP-a: 849+850 u oba stupca podataka. Dopušteno je odstupanje od 1kn zbog zaokruživanja. | D155: 151 | E155: 0 | F155: =IF(ABS(PRRAS!D591-PRRAS!D863-PRRAS!D864)>1,1,0) -> 0 | G155: =IF(ABS(PRRAS!E591-PRRAS!E863-PRRAS!E864)>1,1,0) -> 0
A156: =1+A155 -> 150 | B156: Zadovoljena | C156: AOP 579 mora biti jednak zbroju AOP-a: 851+852 u oba stupca podataka. Dopušteno je odstupanje od 1kn zbog zaokruživanja. | D156: 151 | E156: 0 | F156: =IF(ABS(PRRAS!D592-PRRAS!D865-PRRAS!D866)>1,1,0) -> 0 | G156: =IF(ABS(PRRAS!E592-PRRAS!E865-PRRAS!E866)>1,1,0) -> 0
A157: 151 | B157: Zadovoljena | C157: AOP 580 mora biti jednak zbroju AOP-a: 853+854 u oba stupca podataka. Dopušteno je odstupanje od 1kn zbog zaokruživanja. | D157: 151 | E157: 0 | F157: =IF(ABS(PRRAS!D593-PRRAS!D867-PRRAS!D868)>1,1,0) -> 0 | G157: =IF(ABS(PRRAS!E593-PRRAS!E867-PRRAS!E868)>1,1,0) -> 0
A158: 152 | B158: Zadovoljena | C158: AOP 581 mora biti jednak zbroju AOP-a: 855+856 u oba stupca podataka. Dopušteno je odstupanje od 1kn zbog zaokruživanja. | D158: 151 | E158: 0 | F158: =IF(ABS(PRRAS!D594-PRRAS!D869-PRRAS!D870)>1,1,0) -> 0 | G158: =IF(ABS(PRRAS!E594-PRRAS!E869-PRRAS!E870)>1,1,0) -> 0
A159: 153 | B159: Zadovoljena | C159: AOP 582 mora biti jednak zbroju AOP-a: 857+858 u oba stupca podataka. Dopušteno je odstupanje od 1kn zbog zaokruživanja. | D159: 151 | E159: 0 | F159: =IF(ABS(PRRAS!D595-PRRAS!D871-PRRAS!D872)>1,1,0) -> 0 | G159: =IF(ABS(PRRAS!E595-PRRAS!E871-PRRAS!E872)>1,1,0) -> 0
A160: 154 | B160: Zadovoljena | C160: AOP 583 mora biti jednak zbroju AOP-a: 859+860 u oba stupca podataka. Dopušteno je odstupanje od 1kn zbog zaokruživanja. | D160: 151 | E160: 0 | F160: =IF(ABS(PRRAS!D596-PRRAS!D873-PRRAS!D874)>1,1,0) -> 0 | G160: =IF(ABS(PRRAS!E596-PRRAS!E873-PRRAS!E874)>1,1,0) -> 0
A161: 155 | B161: Zadovoljena | C161: AOP 861 je samo dio AOP-a 592 i mora biti manji ili jednak njemu u oba stupca podataka | D161: 151 | E161: 0 | F161: =IF(PRRAS!D875>PRRAS!D605,1,0) -> 0 | G161: =IF(PRRAS!E875>PRRAS!E605,1,0) -> 0
A162: 156 | B162: Zadovoljena | C162: Ako je na AOP-u 648 (rashodi za zaposlene u tijelima) podatak veći od nule, tada podaci na AOP-ima 650 i 652 ne mogu biti jednaki nuli i ne mogu zbrojeno biti veći od AOP-a 648 | D162: 151 | E162: 0 | F162: =IF(AND(PRRAS!D662>0,PRRAS!D664+PRRAS!D666 =0),1,0) -> 0 | G162: =IF(AND(PRRAS!E662>0,PRRAS!E664+PRRAS!E666 =0),1,0) -> 0 | H162: =IF(PRRAS!D662<PRRAS!D664+PRRAS!D666,1,0) -> 0 | I162: =IF(PRRAS!E662<PRRAS!E664+PRRAS!E666,1,0) -> 0
A163: 157 | B163: Zadovoljena | C163: Ako je na AOP-u 649 (rashodi za zaposlene kod korisnika) podatak veći od nule, tada podaci na AOP-ima 651 i 653 ne mogu biti jednaki nuli i ne mogu zbrojeno biti veći od AOP-a 649 | D163: 151 | E163: 0 | F163: =IF(AND(PRRAS!D663>0,PRRAS!D665+PRRAS!D667 =0),1,0) -> 0 | G163: =IF(AND(PRRAS!E663>0,PRRAS!E665+PRRAS!E667 =0),1,0) -> 0 | H163: =IF(PRRAS!D663<PRRAS!D665+PRRAS!D667,1,0) -> 0 | I163: =IF(PRRAS!E663<PRRAS!E665+PRRAS!E667,1,0) -> 0
A164: 158 | B164: Zadovoljena | C164: Samo na AOP oznakama 003 i 012 u iznimnim slučajevima iznosi mogu biti negativni, iznosi svih ostalih AOP-a moraju biti pozitivni; ako je iznos ijednog drugog AOP-a negativan kontrola nije zadovoljena i obrazac je neispravan. | D164: 151 | E164: 0 | F164: =IF(MIN(PRRAS!D12:E13,PRRAS!D15:E22,PRRAS!D24:E261,PRRAS!D263:E395,PRRAS!D397:E619,PRRAS!D621:E877,PRRAS!D881:D916)<0,1,0) -> 0
A165: 159 | B165: =IF(E165=1,"Nije zadovoljena", "Zadovoljena") -> Zadovoljena | C165: Vrijednosti svih AOP oznaka moraju biti zaokružene, cjelobrojne vrijednosti, ako neka vrijednost nije zaokružena, već upisana s decimalama, kontrola nije zadovoljena, takav obrazac je neispravan. | D165: 151 | E165: 0 | F165: =IF(G165 = 0,0,1) -> 0 | G165: =SUM(Skriveni!H2:H900) -> 0
A166: 160 | B166: Zadovoljena | C166: Razina 11 ne smije imati popunjene AOP oznake: 003 do 034, 041 do 046, 121, 185, 219, 220, 388 do 390, 404 do 406, 410, 411, 422, 423, 426 do 429, 432, 442, 445, 447 do 451, 463, 464, 468, 469, 480, 483, 489, 492 do 496, 510 do 512, 516, 517, 529, 532, 537, 538, 548, 551, 553 do 557, 569, 570, 574, 575, 585, 587, 590, 593, 646, 666, 668, 670, 672. Ako je na bilo kojoj od ovih AOP oznaka upisan iznos, a obrazac je razine 11, kontrola javlja grešku i obrazac je neispravan. | D166: 151 | E166: =F166*G166 -> 0 | F166: =IF(RefStr!B16=11,1,0) -> 0 | G166: =IF(OR(MIN(H166:K166)<>0,MAX(H166:K166)<>0),1,0) -> 0 | H166: =MAX(PRRAS!D14:E45,PRRAS!D51:E57,PRRAS!D132:E132,PRRAS!D196:E196,PRRAS!D230:E231,PRRAS!D401:E403,PRRAS!D417:E419,PRRAS!D423:E424,PRRAS!D435:E436,PRRAS!D439:E442,PRRAS!D445:E445,PRRAS!D455:E455,PRRAS!D458:E458,PRRAS!D460:E464,PRRAS!D476:E477,PRRAS!D481:E482,PRRAS!D493:E493,PRRAS!D496:E496,PRRAS!D502:E502,PRRAS!D505:E509,PRRAS!D523:E525,PRRAS!D529:E530,PRRAS!D542:E542) -> 0 | I166: =MAX(PRRAS!D545:E545,PRRAS!D550:E550,PRRAS!D551:E551,PRRAS!D561:E561,PRRAS!D564:E564,PRRAS!D566:E570,PRRAS!D582:E583,PRRAS!D587:E588,PRRAS!D598:E600,PRRAS!D603:E603,PRRAS!D606:E606,PRRAS!D660:E660,PRRAS!D680:E680,PRRAS!D682:E682,PRRAS!D684:E684,PRRAS!D686:E686) -> 0 | J166: =MIN(PRRAS!D14:E45,PRRAS!D51:E57,PRRAS!D132:E132,PRRAS!D196:E196,PRRAS!D230:E231,PRRAS!D401:E403,PRRAS!D417:E419,PRRAS!D423:E424,PRRAS!D435:E436,PRRAS!D439:E442,PRRAS!D445:E445,PRRAS!D455:E455,PRRAS!D458:E458,PRRAS!D460:E464,PRRAS!D476:E477,PRRAS!D481:E482,PRRAS!D493:E493,PRRAS!D496:E496,PRRAS!D502:E502,PRRAS!D505:E509,PRRAS!D523:E525,PRRAS!D529:E530,PRRAS!D542:E542) -> 0 | K166: =MIN(PRRAS!D545:E545,PRRAS!D550:E550,PRRAS!D551:E551,PRRAS!D561:E561,PRRAS!D564:E564,PRRAS!D566:E570,PRRAS!D582:E583,PRRAS!D587:E588,PRRAS!D598:E600,PRRAS!D603:E603,PRRAS!D606:E606,PRRAS!D660:E660,PRRAS!D680:E680,PRRAS!D682:E682,PRRAS!D684:E684,PRRAS!D686:E686) -> 0
A167: 161 | B167: Zadovoljena | C167: Razina 12 ne može imati popunjene AOP oznake: 003 do 034, 121, 388 do 390, 404 do 406, 410, 411, 421 do 423, 426 do 429, 432, 449 do 451, 480, 483, 489, 492 do 496, 510 do 512, 516, 517, 529, 532, 536 do 538, 548, 551, 555 do 557, 585 do 587, 590, 593, 666, 668, 670, 672. Ako je na bilo kojoj od ovih AOP oznaka upisan iznos, a obrazac je razine 12, kontrola javlja grešku i obrazac je neispravan. | D167: 151 | E167: 0 | F167: =IF(RefStr!B16=12,1,0) -> 0 | G167: 0 | H167: =MIN(PRRAS!D14:E45,PRRAS!D132:E132,PRRAS!D401:E403,PRRAS!D417:E419,PRRAS!D423:E424,PRRAS!D434:E436,PRRAS!D439:E442,PRRAS!D445:E445,PRRAS!D462:E464,PRRAS!D493:E493,PRRAS!D496:E496,PRRAS!D502:E502,PRRAS!D505:E509,PRRAS!D523:E525,PRRAS!D529:E530,PRRAS!D542:E542,PRRAS!D545:E545,PRRAS!D549:E551,PRRAS!D561:E561,PRRAS!D564:E564,PRRAS!D568:E570,PRRAS!D598:E600,PRRAS!D603:E603,PRRAS!D606:E606,PRRAS!D680:E680,PRRAS!D682:E682,PRRAS!D684:E684,PRRAS!D686:E686) -> 0 | I167: =MAX(PRRAS!D14:E45,PRRAS!D132:E132,PRRAS!D401:E403,PRRAS!D417:E419,PRRAS!D423:E424,PRRAS!D434:E436,PRRAS!D439:E442,PRRAS!D445:E445,PRRAS!D462:E464,PRRAS!D493:E493,PRRAS!D496:E496,PRRAS!D502:E502,PRRAS!D505:E509,PRRAS!D523:E525,PRRAS!D529:E530,PRRAS!D542:E542,PRRAS!D545:E545,PRRAS!D549:E551,PRRAS!D561:E561,PRRAS!D564:E564,PRRAS!D568:E570,PRRAS!D598:E600,PRRAS!D603:E603,PRRAS!D606:E606,PRRAS!D680:E680,PRRAS!D682:E682,PRRAS!D684:E684,PRRAS!D686:E686) -> 0
A168: 162 | B168: Zadovoljena | C168: Razina 13 ne može imati popunjene AOP oznake: 115 do 118. Ako je na bilo kojoj od ovih AOP oznaka upisan iznos, a obrazac je razine 11, kontrola javlja grešku i obrazac je neispravan. | D168: 151 | E168: 0 | F168: =IF(RefStr!B16=13,1,0) -> 0 | G168: 0 | H168: =MIN(PRRAS!D126:E129) -> 0 | I168: =MIN(PRRAS!D126:E129) -> 0
A169: 163 | B169: Zadovoljena | C169: Razina 21 ne može imati popunjene AOP oznake: 003 do 034, 040 do 046, 121, 157, 185, 206 do 211, 218 do 220, 301, 302, 360, 386 do 390, 393, 404 do 406, 410, 411, 421 do 423, 426 do 429, 432, 442, 445, 447 do 451, 462 do 464, 468, 469, 480, 483 do 486, 489, 492 do 496, 499, 510 do 512, 516, 517, 529, 532, 533 do 538, 548, 551, 553 do 557, 568 do 570, 574, 575, 585 do 587, 590, 593, 646, 666, 668, 670, 672. Ako je na bilo kojoj od ovih AOP oznaka upisan iznos, a obrazac je razine 21, kontrola javlja grešku i obrazac je neispravan. | D169: 151 | E169: 0 | F169: =IF(RefStr!B16=21,1,0) -> 0 | G169: 0 | H169: =MIN(PRRAS!D14:E45,PRRAS!D51:E57,PRRAS!D132:E132,PRRAS!D168:E168,PRRAS!D196:E196,PRRAS!D217:E222,PRRAS!D229:E231,PRRAS!D313:E314,PRRAS!D371:E372,PRRAS!D399:E403,PRRAS!D406:E406,PRRAS!D417:E419,PRRAS!D423:E424,PRRAS!D434:E436,PRRAS!D439:E442,PRRAS!D445:E445,PRRAS!D455:E455,PRRAS!D458:E458,PRRAS!D460:E464,PRRAS!D475:E477,PRRAS!D481:E482) -> 0 | I169: =MIN(PRRAS!D493:E493,PRRAS!D496:E499,PRRAS!D502:E502,PRRAS!D505:E509,PRRAS!D512:E512,PRRAS!D523:E525,PRRAS!D529:E530,PRRAS!D542:E542,PRRAS!D545:E545,PRRAS!D546:E551,PRRAS!D561:E561,PRRAS!D564:E564,PRRAS!D566:E570,PRRAS!D581:E583,PRRAS!D587:E588,PRRAS!D598:E600,PRRAS!D603:E603,PRRAS!D606:E606,PRRAS!D660:E660,PRRAS!D680:E680,PRRAS!D682:E682,PRRAS!D684:E684,PRRAS!D686:E686) -> 0 | J169: =MAX(PRRAS!D14:E45,PRRAS!D51:E57,PRRAS!D132:E132,PRRAS!D168:E168,PRRAS!D196:E196,PRRAS!D217:E222,PRRAS!D229:E231,PRRAS!D313:E314,PRRAS!D371:E372,PRRAS!D399:E403,PRRAS!D406:E406,PRRAS!D417:E419,PRRAS!D423:E424,PRRAS!D434:E436,PRRAS!D439:E442,PRRAS!D445:E445,PRRAS!D455:E455,PRRAS!D458:E458,PRRAS!D460:E464,PRRAS!D475:E477,PRRAS!D481:E482) -> 0 | K169: =MAX(PRRAS!D493:E493,PRRAS!D496:E499,PRRAS!D502:E502,PRRAS!D505:E509,PRRAS!D512:E512,PRRAS!D523:E525,PRRAS!D529:E530,PRRAS!D542:E542,PRRAS!D545:E545,PRRAS!D546:E551,PRRAS!D561:E561,PRRAS!D564:E564,PRRAS!D566:E570,PRRAS!D581:E583,PRRAS!D587:E588,PRRAS!D598:E600,PRRAS!D603:E603,PRRAS!D606:E606,PRRAS!D660:E660,PRRAS!D680:E680,PRRAS!D682:E682,PRRAS!D684:E684,PRRAS!D686:E686) -> 0
A170: 164 | B170: Zadovoljena | C170: Razine 22 i 23 ne mogu imati popunjene AOP oznake: 012 do 017, 021, 025, 027, 032 do 034, 040 do 046, 118, 121, 157, 185, 218 do 220, 301, 302, 359, 360, 386 do 390, 393, 404 do 406, 410, 411, 421 do 423, 426 do 429, 432, 442, 445, 447 do 451, 462 do 464, 468, 469, 480, 483 do 486, 489, 492 do 496, 499, 510 do 512, 516, 517, 529, 532 do 538, 548, 551, 553 do 557, 568 do 570, 574, 575, 585 do 587, 590, 593, 646, 666, 668, 670, 672. Ako je na bilo kojoj od ovih AOP oznaka upisan iznos, a obrazac je razine 22 ili razine 23, kontrola javlja grešku i obrazac je neispravan. | D170: 151 | E170: 0 | F170: =IF(OR(RefStr!B16=22,RefStr!B16=23),1,0) -> 0 | G170: 0 | H170: =MIN(PRRAS!D23:E28,PRRAS!D32:E32,PRRAS!D36:E36,PRRAS!D38:E38,PRRAS!D43:E45,PRRAS!D51:E57,PRRAS!D129:E129,PRRAS!D132:E132,PRRAS!D168:E168,PRRAS!D196:E196,PRRAS!D229:E231,PRRAS!D313:E314,PRRAS!D371:E372,PRRAS!D399:E403,PRRAS!D406:E406,PRRAS!D417:E419,PRRAS!D423:E424,PRRAS!D434:E436,PRRAS!D439:E442,PRRAS!D445:E445,PRRAS!D455:E455,PRRAS!D458:E458,PRRAS!D460:E464,PRRAS!D475:E477,PRRAS!D481:E482,PRRAS!D493:E493,PRRAS!D496:E499,PRRAS!D502:E502,PRRAS!D505:E509) -> 0 | I170: =MIN(PRRAS!D512:E512,PRRAS!D523:E525,PRRAS!D529:E530,PRRAS!D542:E542,PRRAS!D545:E551,PRRAS!D561:E561,PRRAS!D564:E564,PRRAS!D566:E570,PRRAS!D581:E583,PRRAS!D587:E588,PRRAS!D598:E600,PRRAS!D603:E603,PRRAS!D606:E606,PRRAS!D660:E660,PRRAS!D680:E680,PRRAS!D682:E682,PRRAS!D684:E684,PRRAS!D686:E686) -> 0 | J170: =MAX(PRRAS!D23:E28,PRRAS!D32:E32,PRRAS!D36:E36,PRRAS!D38:E38,PRRAS!D43:E45,PRRAS!D51:E57,PRRAS!D129:E129,PRRAS!D132:E132,PRRAS!D168:E168,PRRAS!D196:E196,PRRAS!D229:E231,PRRAS!D313:E314,PRRAS!D371:E372,PRRAS!D399:E403,PRRAS!D406:E406,PRRAS!D417:E419,PRRAS!D423:E424,PRRAS!D434:E436,PRRAS!D439:E442,PRRAS!D445:E445,PRRAS!D455:E455,PRRAS!D458:E458,PRRAS!D460:E464,PRRAS!D475:E477,PRRAS!D481:E482,PRRAS!D493:E493,PRRAS!D496:E499,PRRAS!D502:E502,PRRAS!D505:E509) -> 0 | K170: =MAX(PRRAS!D512:E512,PRRAS!D523:E525,PRRAS!D529:E530,PRRAS!D542:E542,PRRAS!D545:E551,PRRAS!D561:E561,PRRAS!D564:E564,PRRAS!D566:E570,PRRAS!D581:E583,PRRAS!D587:E588,PRRAS!D598:E600,PRRAS!D603:E603,PRRAS!D606:E606,PRRAS!D660:E660,PRRAS!D680:E680,PRRAS!D682:E682,PRRAS!D684:E684,PRRAS!D686:E686) -> 0
A171: 165 | B171: Zadovoljena | C171: Razina 31 ne može imati popunjene AOP oznake: 003 do 034, 040 do 046, 121, 157, 185, 206 do 211, 218 do 220, 302, 360, 386 do 390, 393, 404 do 406, 410, 411, 421 do 423, 426 do 429, 432, 442, 445, 447 do 451, 462 do 464, 468, 469, 480, 483 do 486, 489, 492 do 496, 499, 510 do 512, 516, 517, 529, 532 do 538, 548, 551, 553 do 557, 574, 575, 585 do 587, 590, 593, 646, 666, 668, 670, 672. Ako je na bilo kojoj od ovih AOP oznaka upisan iznos, a obrazac je razine 31, kontrola javlja grešku i obrazac je neispravan. | D171: 151 | E171: 0 | F171: =IF(RefStr!B16=31,1,0) -> 1 | G171: 0 | H171: =MIN(PRRAS!D14:E45,PRRAS!D51:E57,PRRAS!D132:E132,PRRAS!D168:E168,PRRAS!D196:E196,PRRAS!D217:E222,PRRAS!D229:E231,PRRAS!D314:E314,PRRAS!D372:E372,PRRAS!D399:E403,PRRAS!D406:E406,PRRAS!D417:E419,PRRAS!D423:E424,PRRAS!D434:E436,PRRAS!D439:E442,PRRAS!D445:E445,PRRAS!D455:E455,PRRAS!D458:E458,PRRAS!D460:E464,PRRAS!D475:E477,PRRAS!D481:E482,PRRAS!D493:E493,PRRAS!D496:E499) -> 0 | I171: =MIN(PRRAS!D502:E502,PRRAS!D505:E509,PRRAS!D512:E512,PRRAS!D523:E525,PRRAS!D529:E530,PRRAS!D542:E542,PRRAS!D545:E551,PRRAS!D561:E561,PRRAS!D564:E564,PRRAS!D566:E570,PRRAS!D587:E588,PRRAS!D598:E600,PRRAS!D603:E603,PRRAS!D606:E606,PRRAS!D660:E660,PRRAS!D680:E680,PRRAS!D682:E682,PRRAS!D684:E684,PRRAS!D686:E686) -> 0 | J171: =MAX(PRRAS!D14:E45,PRRAS!D51:E57,PRRAS!D132:E132,PRRAS!D168:E168,PRRAS!D196:E196,PRRAS!D217:E222,PRRAS!D229:E231,PRRAS!D314:E314,PRRAS!D372:E372,PRRAS!D399:E403,PRRAS!D406:E406,PRRAS!D417:E419,PRRAS!D423:E424,PRRAS!D434:E436,PRRAS!D439:E442,PRRAS!D445:E445,PRRAS!D455:E455,PRRAS!D458:E458,PRRAS!D460:E464,PRRAS!D475:E477,PRRAS!D481:E482,PRRAS!D493:E493,PRRAS!D496:E499) -> 0 | K171: =MAX(PRRAS!D502:E502,PRRAS!D505:E509,PRRAS!D512:E512,PRRAS!D523:E525,PRRAS!D529:E530,PRRAS!D542:E542,PRRAS!D545:E551,PRRAS!D561:E561,PRRAS!D564:E564,PRRAS!D566:E570,PRRAS!D587:E588,PRRAS!D598:E600,PRRAS!D603:E603,PRRAS!D606:E606,PRRAS!D660:E660,PRRAS!D680:E680,PRRAS!D682:E682,PRRAS!D684:E684,PRRAS!D686:E686) -> 0
A172: 166 | B172: Zadovoljena | C172: Razina 41 ne može imati popunjene AOP oznake: 003 do 034, 121, 157, 302, 360, 386 do 390, 393, 404 do 406, 410, 411, 421 do 423, 426 do 429, 449 do 451, 480, 483 do 486, 489, 492 do 496, 499, 510 do 512, 516, 517, 529, 532 do 538, 548, 551, 555 do 557, 585 do 587, 590, 593, 666, 668, 670, 672. Ako je na bilo kojoj od ovih AOP oznaka upisan iznos, a obrazac je razine 41, kontrola javlja grešku i obrazac je neispravan. | D172: 151 | E172: 0 | F172: =IF(RefStr!B16=41,1,0) -> 0 | G172: 0 | H172: =MIN(PRRAS!D14:E45,PRRAS!D132:E132,PRRAS!D168:E168,PRRAS!D314:E314,PRRAS!D372:E372,PRRAS!D399:E403,PRRAS!D406:E406,PRRAS!D417:E419,PRRAS!D423:E424,PRRAS!D434:E436,PRRAS!D439:E442,PRRAS!D462:E464,PRRAS!D493:E493,PRRAS!D496:E499,PRRAS!D502:E502,PRRAS!D505:E509,PRRAS!D512:E512) -> 0 | I172: =MIN(PRRAS!D523:E525,PRRAS!D529:E530,PRRAS!D542:E542,PRRAS!D545:E551,PRRAS!D561:E561,PRRAS!D564:E564,PRRAS!D568:E570,PRRAS!D598:E600,PRRAS!D603:E603,PRRAS!D606:E606,PRRAS!D680:E680,PRRAS!D682:E682,PRRAS!D684:E684,PRRAS!D686:E686) -> 0 | J172: =MAX(PRRAS!D14:E45,PRRAS!D132:E132,PRRAS!D168:E168,PRRAS!D314:E314,PRRAS!D372:E372,PRRAS!D399:E403,PRRAS!D406:E406,PRRAS!D417:E419,PRRAS!D423:E424,PRRAS!D434:E436,PRRAS!D439:E442,PRRAS!D462:E464,PRRAS!D493:E493,PRRAS!D496:E499,PRRAS!D502:E502,PRRAS!D505:E509,PRRAS!D512:E512) -> 0 | K172: =MAX(PRRAS!D523:E525,PRRAS!D529:E530,PRRAS!D542:E542,PRRAS!D545:E551,PRRAS!D561:E561,PRRAS!D564:E564,PRRAS!D568:E570,PRRAS!D598:E600,PRRAS!D603:E603,PRRAS!D606:E606,PRRAS!D680:E680,PRRAS!D682:E682,PRRAS!D684:E684,PRRAS!D686:E686) -> 0
A173: 167 | B173: Zadovoljena | C173: Razina 42 ne može imati popunjene AOP oznake: 003 do 034, 040 do 046, 115 do 118, 121, 157, 206 do 211, 218 do 220, 302, 360, 386 do 390, 393, 404 do 406, 410, 411, 421 do 423, 426 do 429, 432, 442, 445, 447 do 451, 480, 483 do 486, 489, 492 do 496, 499, 510, 511, 512, 516, 517, 529, 532 do 538, 548, 551, 555 do 557, 585 do 587, 590, 593, 646, 666, 668, 670, 672. Ako je na bilo kojoj od ovih AOP oznaka upisan iznos, a obrazac je razine 42, kontrola javlja grešku i obrazac je neispravan. | D173: 151 | E173: 0 | F173: =IF(RefStr!B16=42,1,0) -> 0 | G173: 1 | H173: =MIN(PRRAS!D14:E45,PRRAS!D51:E57,PRRAS!D126:E129,PRRAS!D132:E132,PRRAS!D168:E168,PRRAS!D217:E222,PRRAS!D229:E231,PRRAS!D314:E314,PRRAS!D372:E372,PRRAS!D399:E403,PRRAS!D406:E406,PRRAS!D417:E419,PRRAS!D423:E424,PRRAS!D434:E436,PRRAS!D439:E442,PRRAS!D445:E445,PRRAS!D455:E455,PRRAS!D458:E458,PRRAS!D460:E464,PRRAS!D493:E493,PRRAS!D496:E499,PRRAS!D502:E502,PRRAS!D505:E509,PRRAS!D512:E512) -> 0 | I173: =MIN(PRRAS!D523:E525,PRRAS!D529:E530,PRRAS!D542:E542,PRRAS!D545:E551,PRRAS!D561:E561,PRRAS!D564:E564,PRRAS!D568:E570,PRRAS!D598:E600,PRRAS!D603:E603,PRRAS!D606:E606,PRRAS!D660:E660,PRRAS!D680:E680,PRRAS!D682:E682,PRRAS!D684:E684,PRRAS!D686:E686) -> 0 | J173: =MAX(PRRAS!D14:E45,PRRAS!D51:E57,PRRAS!D126:E129,PRRAS!D132:E132,PRRAS!D168:E168,PRRAS!D217:E222,PRRAS!D229:E231,PRRAS!D314:E314,PRRAS!D372:E372,PRRAS!D399:E403,PRRAS!D406:E406,PRRAS!D417:E419,PRRAS!D423:E424,PRRAS!D434:E436,PRRAS!D439:E442,PRRAS!D445:E445,PRRAS!D455:E455,PRRAS!D458:E458,PRRAS!D460:E464,PRRAS!D493:E493,PRRAS!D496:E499,PRRAS!D502:E502,PRRAS!D505:E509,PRRAS!D512:E512) -> 11308266 | K173: =MAX(PRRAS!D523:E525,PRRAS!D529:E530,PRRAS!D542:E542,PRRAS!D545:E551,PRRAS!D561:E561,PRRAS!D564:E564,PRRAS!D568:E570,PRRAS!D598:E600,PRRAS!D603:E603,PRRAS!D606:E606,PRRAS!D660:E660,PRRAS!D680:E680,PRRAS!D682:E682,PRRAS!D684:E684,PRRAS!D686:E686) -> 0
A174: PR-RAS - kontrole upozorenja | E174: =SUM(E175:E236) -> 1
A175: =1+A173 -> 168 | B175: =IF(E175=1,"Nije zadovoljena", "Zadovoljena") -> Zadovoljena | C175: Ako je obrazac razine 11 korisnici mogu imati popunjene samo AOP oznake 612 i 614, a na AOP oznakama 611 i 613 iznos mora biti nula. Glave unutar nadležnog ministarstva mogu imati popunjene samo AOP oznake 611 i 613 a iznosi AOP oznaka 612 i 614 moraju biti nula. Ova kontrola ne vrijedi kad je u pitanju glava unutar nadležnog ministarstva / razdjela koja ima iskazane i rashode proračunskih korisnika iz svoje nadležnosti, gdje mogu biti iskazani i AOP 612 i AOP 614. | D175: -151 | E175: =MAX(F175:I175) -> 0 | F175: =IF(AND(RefStr!B16=11,OR(PRRAS!D625>0,PRRAS!D627>0),OR(PRRAS!D626>0,PRRAS!D628>0)),1,0) -> 0 | G175: =IF(AND(RefStr!B16=11,OR(PRRAS!E625>0,PRRAS!E627>0),OR(PRRAS!E626>0,PRRAS!E628>0)),1,0) -> 0
A176: =1+A175 -> 169 | B176: Zadovoljena | C176: Ako postoji značajan iznos na AOP-u 148, iznos na AOP-u 658 bi u pravilu bi trebao biti barem 75% iznosa upisanog na AOP oznaci 148. Kontrola upozorava ako je postotak tog iznosa manji od 75%. Provjerite upisani iznos na AOP 658 (naknade za prijevoz na posao i s posla). Ako je njegov iznos stvarno toliki, zanemarite ovu kontrolu. | D176: -151 | E176: =MAX(F176:I176) -> 0 | F176: =IF(AND(PRRAS!D159>1000,PRRAS!D672<PRRAS!D159*0.75),1,0) -> 0 | G176: =IF(AND(PRRAS!E159>1000,PRRAS!E672<PRRAS!E159*0.75),1,0) -> 0
A177: =1+A176 -> 170 | B177: Zadovoljena | C177: Ako je iznos na AOP-u 019 veći od nule, a iznos na AOP-u 616 (porez na korištenje javnih površina) je jednak nuli, provjerite AOP 616. Ako je njegov iznos stvarno toliki, zanemarite ovu kontrolu. | D177: -151 | E177: =MAX(F177:I177) -> 0 | F177: =IF(AND(PRRAS!D30>0,PRRAS!D630=0),1,0) -> 0 | G177: =IF(AND(PRRAS!E30>0,PRRAS!E630=0),1,0) -> 0
A178: =1+A177 -> 171 | B178: Zadovoljena | C178: Ako je iznos na AOP-u 028 veći od nule, a iznosi na AOP-u 617 (porez na cestovna motorna vozila) i na AOP-u 618 (porez na tvrtku odnosno naziv tvrtke) su jednaki nuli, provjerite AOP-e 617 i 618 . Ako su njihovi iznosi stvarno toliki, zanemarite ovu kontrolu. | D178: -151 | E178: 0 | F178: =IF(AND(PRRAS!D39>0,SUM(PRRAS!D631:'PRRAS'!D632)=0),1,0) -> 0 | G178: =IF(AND(PRRAS!E39>0,SUM(PRRAS!E631:'PRRAS'!E632)=0),1,0) -> 0
A179: 172 | B179: Zadovoljena | C179: Ako je iznos na AOP-u 075 veći od nule, a iznos na AOP-u 637 (premije na izdane vrijednosne papire) je jednak nuli, provjerite AOP 637. Ako je njegov iznos stvarno toliki, zanemarite ovu kontrolu. | D179: -151 | E179: 0 | F179: =IF(AND(PRRAS!D86>0,PRRAS!D651=0),1,0) -> 0 | G179: =IF(AND(PRRAS!E86>0,PRRAS!E651=0),1,0) -> 0
A180: 173 | B180: Zadovoljena | C180: Ako je iznos na AOP-u 101 veći od nule, a iznosi na AOP-u 645 (sufinanciranje cijene usluge, participacije i slično) i na AOP-u 646 (dopunsko zdravstveno osiguranje) su jednaki nuli, provjerite AOP-e 645 i 646. Ako su njihovi iznosi stvarno toliki, zanemarite ovu kontrolu. | D180: -151 | E180: 0 | F180: =IF(AND(PRRAS!D112>0,SUM(PRRAS!D659:'PRRAS'!D660)=0),1,0) -> 0 | G180: =IF(AND(PRRAS!E112>0,SUM(PRRAS!E659:'PRRAS'!E660)=0),1,0) -> 0
A181: 174 | B181: Zadovoljena | C181: Ako je iznos na AOP-u 140 veći od nule, a iznosi na AOP-u 654 (otpremnine) i na AOP-u 655 (naknade za bolest, invalidnost i smrtni slučaj) su jednaki nuli, provjerite AOP-e 654 i 655. Ako su njihovi iznosi stvarno toliki, zanemarite ovu kontrolu. | D181: -151 | E181: 0 | F181: =IF(AND(PRRAS!D151>0,SUM(PRRAS!D668:'PRRAS'!D669)=0),1,0) -> 0 | G181: =IF(AND(PRRAS!E151>0,SUM(PRRAS!E668:'PRRAS'!E669)=0),1,0) -> 0
A182: 175 | B182: Zadovoljena | C182: Ako je iznos na AOP-u 165 veći od nule, a iznos na AOP-u 659 (obvezni i preventivni zdravstveni pregledi zaposlenika) je jednak nuli, provjerite AOP 659. Ako je njegov iznos stvarno toliki, zanemarite ovu kontrolu. | D182: -151 | E182: 0 | F182: =IF(AND(PRRAS!D176>0,PRRAS!D673=0),1,0) -> 0 | G182: =IF(AND(PRRAS!E176>0,PRRAS!E673=0),1,0) -> 0
A183: 176 | B183: Zadovoljena | C183: Ako je iznos na AOP-u 166 veći od nule, a iznosi na AOP-u 660 (autorski honorari), AOP-u 661 (ugovori o djelu) i na AOP-u 662 (usluge agencija, studentskog sevisa (prijepisi, prijevodi i drugo)) su jednaki nuli, provjerite AOP-e 660, 661 i 662. Ako su njihovi iznosi stvarno toliki, zanemarite ovu kontrolu. | D183: -151 | E183: 0 | F183: =IF(AND(PRRAS!D177>0,SUM(PRRAS!D674:'PRRAS'!D676)=0),1,0) -> 0 | G183: =IF(AND(PRRAS!E177>0,SUM(PRRAS!E674:'PRRAS'!E676)=0),1,0) -> 0
A184: 177 | B184: Zadovoljena | C184: Ako je iznos na AOP-u 172 veći od nule, a iznos na AOP-u 663 (naknade članovima predstavničkih i izvršnih tijela i upravnih vijeća) je jednak nuli, provjerite AOP 663. Ako je njegov iznos stvarno toliki, zanemarite ovu kontrolu. | D184: -151 | E184: 0 | F184: =IF(AND(PRRAS!D183>0,PRRAS!D677=0),1,0) -> 0 | G184: =IF(AND(PRRAS!E183>0,PRRAS!E677=0),1,0) -> 0
A185: 178 | B185: Zadovoljena | C185: Ako je iznos na AOP-u 173 veći od nule, a iznos na AOP-u 664 (premije osiguranja zaposlenih) je jednak nuli, provjerite AOP 664. Ako je njegov iznos stvarno toliki, zanemarite ovu kontrolu. | D185: -151 | E185: 0 | F185: =IF(AND(PRRAS!D184>0,PRRAS!D678=0),1,0) -> 0 | G185: =IF(AND(PRRAS!E184>0,PRRAS!E678=0),1,0) -> 0
A186: 179 | B186: Zadovoljena | C186: Ako je iznos na AOP-u 190 veći od nule, a iznosi na AOP-u 686 (kamate za primljene zajmove od tuzemnih trgovačkih društava izvan javnog sektora), AOP-u 687 (kamate za primljene zajmove od tuzemnih obrtnika) i na AOP-u 688 (kamate za primljene zajmove od inozemnih trgovačkih društava) su jednaki nuli, provjerite AOP-e 686, 687 i 688. Ako su njihovi iznosi stvarno toliki, zanemarite ovu kontrolu. | D186: -151 | E186: 0 | F186: =IF(AND(PRRAS!D201>0,SUM(PRRAS!D700:'PRRAS'!D702)=0),1,0) -> 0 | G186: =IF(AND(PRRAS!E201>0,SUM(PRRAS!E700:'PRRAS'!E702)=0),1,0) -> 0
A187: 180 | B187: Zadovoljena | C187: Ako je iznos na AOP-u 196 veći od nule, a iznos na AOP-u 696 (diskont na izdane vrijednosne papire) je jednak nuli, provjerite AOP 696. Ako je njegov iznos stvarno toliki, zanemarite ovu kontrolu. | D187: -151 | E187: 0 | F187: =IF(AND(PRRAS!D207>0,PRRAS!D694=0),1,0) -> 0 | G187: =IF(AND(PRRAS!E207>0,PRRAS!E694=0),1,0) -> 0
A188: 181 | B188: Zadovoljena | C188: Ako je iznos na AOP-u 222 veći od nule, a iznosi na AOP-u 717 (stipendije i školarine) i na AOP-u 718 (naknade za pomoć bivšim političkim zatvorenicima i neosnovano pritvorenim osobama) su jednaki nuli, provjerite AOP-e 717 i 718. Ako su njihovi iznosi stvarno toliki, zanemarite ovu kontrolu. | D188: -151 | E188: 0 | F188: =IF(AND(PRRAS!D233>0,SUM(PRRAS!D731:D732)=0),1,0) -> 0 | G188: =IF(AND(PRRAS!E233>0,SUM(PRRAS!E731:E732)=0),1,0) -> 0
A189: 182 | B189: Nije zadovoljena | C189: Ako je iznos na AOP-u 223 veći od nule, a iznos na AOP-u 719 (sufinanciranje cijene prijevoza) je jednak nuli, provjerite AOP 719. Ako je njegov iznos stvarno toliki, zanemarite ovu kontrolu. | D189: -151 | E189: 1 | F189: =IF(AND(PRRAS!D234>0,PRRAS!D733=0),1,0) -> 1 | G189: =IF(AND(PRRAS!E234>0,PRRAS!E733=0),1,0) -> 1
A190: 183 | B190: Zadovoljena | C190: Ako je iznos na AOP-u 226 veći od nule, a iznos na AOP-u 720 (tekuće donacije građanima i kućanstvima) je jednak nuli, provjerite AOP 720. Ako je njegov iznos stvarno toliki, zanemarite ovu kontrolu. | D190: -151 | E190: 0 | F190: =IF(AND(PRRAS!D237>0,PRRAS!D734=0),1,0) -> 0 | G190: =IF(AND(PRRAS!E237>0,PRRAS!E734=0),1,0) -> 0
A191: 184 | B191: Zadovoljena | C191: Ako je iznos na AOP-u 392 veći od nule, a iznos na AOP-u 738 (povrat zajmova danih neprofitnim organizacijama, građanima i kkućanstvima u tuzemstvu - dugoročni) je jednak nuli, provjerite AOP 738. Ako je njegov iznos stvarno toliki, zanemarite ovu kontrolu. | D191: -151 | E191: 0 | F191: =IF(AND(PRRAS!D405>0,PRRAS!D752=0),1,0) -> 0 | G191: =IF(AND(PRRAS!E405>0,PRRAS!E752=0),1,0) -> 0
A192: 185 | B192: Zadovoljena | C192: Ako je iznos na AOP-u 395 veći od nule, a iznos na AOP-u 739 (povrat zajmova danih kreditnim institucijama u javnom sektoru - dugoročni) je jednak nuli, provjerite AOP 739. Ako je njegov iznos stvarno toliki, zanemarite ovu kontrolu. | D192: -151 | E192: 0 | F192: =IF(AND(PRRAS!D408>0,PRRAS!D753=0),1,0) -> 0 | G192: =IF(AND(PRRAS!E408>0,PRRAS!E753=0),1,0) -> 0
A193: 186 | B193: Zadovoljena | C193: Ako je iznos na AOP-u 396 veći od nule, a iznos na AOP-u 740 (povrat zajmova danih osiguravajućim društvima u javnom sektoru - dugoročni) je jednak nuli, provjerite AOP 396 . Ako je njegov iznos stvarno toliki, zanemarite ovu kontrolu. | D193: -151 | E193: =MAX(F193:I193) -> 0 | F193: =IF(AND(PRRAS!D409>0,PRRAS!D754=0),1,0) -> 0 | G193: =IF(AND(PRRAS!E409>0,PRRAS!E754=0),1,0) -> 0
A194: 187 | B194: Zadovoljena | C194: Ako je iznos na AOP-u 397 veći od nule, a iznos na AOP-u 741 (povrat zajmova danih ostalim financijskim institucijama u javnom sektoru - dugoročni) je jednak nuli, provjerite AOP 741. Ako je njegov iznos stvarno toliki, zanemarite ovu kontrolu. | D194: -151 | E194: 0 | F194: =IF(AND(PRRAS!D410>0,PRRAS!D755=0),1,0) -> 0 | G194: =IF(AND(PRRAS!E410>0,PRRAS!E755=0),1,0) -> 0
A195: 188 | B195: Zadovoljena | C195: Ako je iznos na AOP-u 401 veći od nule, a iznos na AOP-u 744 (povrat zajmova danih tuzemnim kreditnim institucijama izvan javnog sektora - dugoročni) je jednak nuli, provjerite AOP 744 . Ako je njegov iznos stvarno toliki, zanemarite ovu kontrolu. | D195: -151 | E195: 0 | F195: =IF(AND(PRRAS!D414>0,PRRAS!D758=0),1,0) -> 0 | G195: =IF(AND(PRRAS!E414>0,PRRAS!E758=0),1,0) -> 0
A196: 189 | B196: Zadovoljena | C196: Ako je iznos na AOP-u 402 veći od nule, a iznos na AOP-u 745 (povrat zajmova danih tuzemnim osiguravajućim društvima izvan javnog sektora - dugoročni) je jednak nuli, provjerite AOP 745. Ako je njegov iznos stvarno toliki, zanemarite ovu kontrolu. | D196: -151 | E196: 0 | F196: =IF(AND(PRRAS!D415>0,PRRAS!D759=0),1,0) -> 0 | G196: =IF(AND(PRRAS!E415>0,PRRAS!E759=0),1,0) -> 0
A197: 190 | B197: Zadovoljena | C197: Ako je iznos na AOP-u 403 veći od nule, a iznos na AOP-u 746 (povrat zajmova danih ostalim tuzemnim financijskim institucijama izvan javnog sektora - dugoročni) je jednak nuli, provjerite AOP 746 . Ako je njegov iznos stvarno toliki, zanemarite ovu kontrolu. | D197: -151 | E197: 0 | F197: =IF(AND(PRRAS!D416>0,PRRAS!D760=0),1,0) -> 0 | G197: =IF(AND(PRRAS!E416>0,PRRAS!E760=0),1,0) -> 0
A198: 191 | B198: Zadovoljena | C198: Ako je iznos na AOP-u 431 veći od nule, a iznos na AOP-u 765 (ostali vrijednosni papiri - dugoročni) je jednak nuli, provjerite AOP 765. Ako je njegov iznos stvarno toliki, zanemarite ovu kontrolu. | D198: -151 | E198: 0 | F198: =IF(AND(PRRAS!D444>0,PRRAS!D779=0),1,0) -> 0 | G198: =IF(AND(PRRAS!E444>0,PRRAS!E779=0),1,0) -> 0
A199: 192 | B199: Zadovoljena | C199: Ako je iznos na AOP-u 448 veći od nule, a iznos na AOP-u 766 (primljeni zajmovi od međunarodnih organizacija - dugoročni) je jednak nuli, provjerite AOP 766. Ako je njegov iznos stvarno toliki, zanemarite ovu kontrolu. | D199: -151 | E199: 0 | F199: =IF(AND(PRRAS!D461>0,PRRAS!D780=0),1,0) -> 0 | G199: =IF(AND(PRRAS!E461>0,PRRAS!E780=0),1,0) -> 0
A200: 193 | B200: Zadovoljena | C200: Ako je iznos na AOP-u 449 veći od nule, a iznos na AOP-u 767 (primljeni krediti i zajmovi od institucija i tijela EU - dugoročni) je jednak nuli, provjerite AOP 767. Ako je njegov iznos stvarno toliki, zanemarite ovu kontrolu. | D200: -151 | E200: 0 | F200: =IF(AND(PRRAS!D462>0,PRRAS!D781=0),1,0) -> 0 | G200: =IF(AND(PRRAS!E462>0,PRRAS!E781=0),1,0) -> 0
... 121 more rows

Sheet Sifre
A1: <–––– Povratak na naslovnu
A2: S obzirom na objedinjavanje svih obrazaca proračuna i proračunskih korisnika u jednu datoteku, kako bi se smanjio broj radnih listova u Excel datoteci šifre općina, šifre djelatnosti i popis razdjela spojeni su u ovaj jedan radni list. Klikom na plavi tekst naziva pojedinog šifrarnika prebacujete na početak tog šifrarnika.
A3: Šifreopćina | D3: Oznake razdjela | G3: Šifre djelatnosti (NKD 2007)
A4: Šifra općine / grada upisuje se prema standardnim troznamenkastim šiframa bez kontrolne znamekne. U ovom šifrarniku šifre su dane abecednim redom naziva naselja. U obrazac se upisuje samo šifra općine / grada, a šifra županije se automatski izračunava.
A5: Šifra | B5: Naziv općine / grada | D5: Šifra | E5: Naziv općine / grada | G5: Šifra | H5: Naziv općine / grada
A6: 1 | B6: Andrijaševci | D6: 185 | E6: Klakar | G6: 88 | H6: Proložac
A7: 2 | B7: Antunovac | D7: 186 | E7: Klana | G7: 298 | H7: Promina
A8: 3 | B8: Babina Greda | D8: 187 | E8: Klanjec | G8: 358 | H8: Pučišća
A9: 4 | B9: Bakar | D9: 189 | E9: Klenovnik | G9: 359 | H9: Pula
A10: 5 | B10: Bale | D10: 190 | E10: Klinča Sela | G10: 360 | H10: Punat
A11: 6 | B11: Barban | D11: 192 | E11: Klis | G11: 361 | H11: Punitovci
A12: 7 | B12: Barilovići | D12: 193 | E12: Kloštar Ivanić | G12: 362 | H12: Pušća
A13: 8 | B13: Baška | D13: 194 | E13: Kloštar Podravski | G13: 363 | H13: Rab
A14: 9 | B14: Baška Voda | D14: 195 | E14: Kneževi Vinogradi | G14: 364 | H14: Radoboj
A15: 10 | B15: Bebrina | D15: 196 | E15: Knin | G15: 536 | H15: Rakovec
A16: 11 | B16: Bedekovčina | D16: 622 | E16: Kolan | G16: 365 | H16: Rakovica
A17: 550 | B17: Bedenica | D17: 197 | E17: Komiža | G17: 366 | H17: Rasinja
A18: 12 | B18: Bednja | D18: 198 | E18: Konavle | G18: 368 | H18: Raša
A19: 13 | B19: Beli Manastir | D19: 199 | E19: Končanica | G19: 369 | H19: Ravna Gora
A20: 15 | B20: Belica | D20: 200 | E20: Konjščina | G20: 371 | H20: Ražanac
A21: 16 | B21: Belišće | D21: 201 | E21: Koprivnica | G21: 372 | H21: Rešetari
A22: 17 | B22: Benkovac | D22: 202 | E22: Koprivnički Bregi | G22: 556 | H22: Ribnik
A23: 18 | B23: Berek | D23: 203 | E23: Koprivnički Ivanec | G23: 373 | H23: Rijeka
A24: 19 | B24: Beretinec | D24: 204 | E24: Korčula | G24: 582 | H24: Rogoznica
A25: 20 | B25: Bibinje | D25: 538 | E25: Kostrena | G25: 374 | H25: Rovinj
A26: 621 | B26: Bilice | D26: 205 | E26: Koška | G26: 375 | H26: Rovišće
A27: 21 | B27: Bilje | D27: 206 | E27: Kotoriba | G27: 376 | H27: Rugvica
A28: 22 | B28: Biograd na Moru | D28: 208 | E28: Kraljevec na Sutli | G28: 591 | H28: Runovići
A29: 310 | B29: Biskupija | D29: 209 | E29: Kraljevica | G29: 377 | H29: Ružić
A30: 547 | B30: Bistra | D30: 211 | E30: Krapina | G30: 378 | H30: Saborsko
A31: 23 | B31: Bizovac | D31: 212 | E31: Krapinske Toplice | G31: 379 | H31: Sali
A32: 24 | B32: Bjelovar | D32: 533 | E32: Krašić | G32: 380 | H32: Samobor
A33: 25 | B33: Blato | D33: 545 | E33: Kravarsko | G33: 381 | H33: Satnica Đakovačka
A34: 26 | B34: Bogdanovci | D34: 213 | E34: Križ | G34: 382 | H34: Seget
A35: 27 | B35: Bol | D35: 214 | E35: Križevci | G35: 383 | H35: Selca
A36: 29 | B36: Borovo | D36: 215 | E36: Krk | G36: 385 | H36: Selnica
A37: 30 | B37: Bosiljevo | D37: 216 | E37: Krnjak | G37: 386 | H37: Semeljci
A38: 32 | B38: Bošnjaci | D38: 217 | E38: Kršan | G38: 387 | H38: Senj
A39: 33 | B39: Brckovljani | D39: 572 | E39: Kukljica | G39: 562 | H39: Severin
A40: 34 | B40: Brdovec | D40: 219 | E40: Kula Norinska | G40: 388 | H40: Sibinj
A41: 77 | B41: Brela | D41: 553 | E41: Kumrovec | G41: 570 | H41: Sikirevci
A42: 35 | B42: Brestovac | D42: 220 | E42: Kutina | G42: 389 | H42: Sinj
A43: 36 | B43: Breznica | D43: 221 | E43: Kutjevo | G43: 390 | H43: Sirač
A44: 151 | B44: Breznički Hum | D44: 222 | E44: Labin | G44: 391 | H44: Sisak
A45: 37 | B45: Brinje | D45: 223 | E45: Lanišće | G45: 393 | H45: Skrad
A46: 38 | B46: Brod Moravice | D46: 225 | E46: Lasinja | G46: 394 | H46: Skradin
A47: 39 | B47: Brodski Stupnik | D47: 226 | E47: Lastovo | G47: 395 | H47: Slatina
A48: 40 | B48: Brtonigla | D48: 586 | E48: Lećevica | G48: 396 | H48: Slavonski Brod
A49: 41 | B49: Budinščina | D49: 227 | E49: Legrad | G49: 397 | H49: Slavonski Šamac
A50: 42 | B50: Buje | D50: 228 | E50: Lekenik | G50: 399 | H50: Slivno
A51: 567 | B51: Bukovlje | D51: 229 | E51: Lepoglava | G51: 400 | H51: Slunj
A52: 43 | B52: Buzet | D52: 230 | E52: Levanjska Varoš | G52: 402 | H52: Smokvica
A53: 44 | B53: Cerna | D53: 231 | E53: Lipik | G53: 405 | H53: Sokolovac
A54: 46 | B54: Cernik | D54: 232 | E54: Lipovljani | G54: 406 | H54: Solin
A55: 47 | B55: Cerovlje | D55: 234 | E55: Lišane Ostrovičke | G55: 407 | H55: Sopje
A56: 48 | B56: Cestica | D56: 235 | E56: Ližnjan | G56: 409 | H56: Split
A57: 49 | B57: Cetingrad | D57: 236 | E57: Lobor | G57: 410 | H57: Sračinec
A58: 50 | B58: Cista Provo | D58: 237 | E58: Lokve | G58: 411 | H58: Stankovci
A59: 51 | B59: Civljane | D59: 587 | E59: Lokvičići | G59: 412 | H59: Stara Gradiška
A60: 52 | B60: Cres | D60: 624 | E60: Lopar | G60: 413 | H60: Stari Grad
A61: 53 | B61: Crikvenica | D61: 239 | E61: Lovas | G61: 414 | H61: Stari Jankovci
A62: 54 | B62: Crnac | D62: 240 | E62: Lovinac | G62: 415 | H62: Stari Mikanovci
A63: 55 | B63: Čabar | D63: 242 | E63: Lovran | G63: 416 | H63: Starigrad
A64: 56 | B64: Čačinci | D64: 243 | E64: Lovreć | G64: 418 | H64: Staro Petrovo Selo
A65: 57 | B65: Čađavica | D65: 244 | E65: Ludbreg | G65: 419 | H65: Ston
A66: 58 | B66: Čaglin | D66: 548 | E66: Luka | G66: 606 | H66: Strahoninec
A67: 60 | B67: Čakovec | D67: 245 | E67: Lukač | G67: 421 | H67: Strizivojna
A68: 61 | B68: Čavle | D68: 600 | E68: Lumbarda | G68: 422 | H68: Stubičke Toplice
A69: 63 | B69: Čazma | D69: 246 | E69: Lupoglav | G69: 551 | H69: Stupnik
A70: 64 | B70: Čeminac | D70: 247 | E70: Ljubešćica | G70: 423 | H70: Sućuraj
A71: 65 | B71: Čepin | D71: 248 | E71: Mače | G71: 424 | H71: Suhopolje
A72: 66 | B72: Darda | D72: 578 | E72: Magadenovac | G72: 425 | H72: Sukošan
A73: 67 | B73: Daruvar | D73: 555 | E73: Majur | G73: 426 | H73: Sunja
A74: 68 | B74: Davor | D74: 249 | E74: Makarska | G74: 427 | H74: Supetar
A75: 603 | B75: Dekanovec | D75: 250 | E75: Mala Subotica | G75: 592 | H75: Sutivan
A76: 69 | B76: Delnice | D76: 251 | E76: Mali Bukovec | G76: 607 | H76: Sveta Marija
A77: 70 | B77: Desinić | D77: 252 | E77: Mali Lošinj | G77: 432 | H77: Sveta Nedelja
A78: 71 | B78: Dežanovac | D78: 253 | E78: Malinska-Dubašnica | G78: 436 | H78: Sveta Nedelja
A79: 72 | B79: Dicmo | D79: 254 | E79: Marčana | G79: 437 | H79: Sveti Đurđ
A80: 74 | B80: Dobrinj | D80: 256 | E80: Marija Bistrica | G80: 428 | H80: Sveti Filip i Jakov
A81: 75 | B81: Domašinec | D81: 539 | E81: Marija Gorica | G81: 438 | H81: Sveti Ilija
A82: 78 | B82: Donja Dubrava | D82: 257 | E82: Marijanci | G82: 429 | H82: Sveti Ivan Zelina
A83: 576 | B83: Donja Motičina | D83: 258 | E83: Marina | G83: 439 | H83: Sveti Ivan Žabno
A84: 79 | B84: Donja Stubica | D84: 610 | E84: Markušica | G84: 440 | H84: Sveti Juraj na Bregu
A85: 80 | B85: Donja Voća | D85: 259 | E85: Martinska Ves | G85: 430 | H85: Sveti Križ Začretje
A86: 81 | B86: Donji Andrijevci | D86: 260 | E86: Maruševec | G86: 431 | H86: Sveti Lovreč
A87: 82 | B87: Donji Kraljevec | D87: 261 | E87: Matulji | G87: 441 | H87: Sveti Martin na Muri
A88: 83 | B88: Donji Kukuruzari | D88: 263 | E88: Medulin | G88: 442 | H88: Sveti Petar Orehovec
A89: 84 | B89: Donji Lapac | D89: 264 | E89: Metković | G89: 433 | H89: Sveti Petar u Šumi
A90: 85 | B90: Donji Martijanec | D90: 265 | E90: Mihovljan | G90: 435 | H90: Svetvinčenat
A91: 86 | B91: Donji Miholjac | D91: 266 | E91: Mikleuš | G91: 564 | H91: Šandrovac
A92: 89 | B92: Donji Vidovec | D92: 267 | E92: Milna | G92: 608 | H92: Šenkovec
A93: 568 | B93: Dragalić | D93: 268 | E93: Mljet | G93: 443 | H93: Šestanovac
A94: 90 | B94: Draganić | D94: 270 | E94: Molve | G94: 444 | H94: Šibenik
A95: 91 | B95: Draž | D95: 273 | E95: Mošćenička Draga | G95: 445 | H95: Škabrnje
A96: 92 | B96: Drenovci | D96: 274 | E96: Motovun | G96: 614 | H96: Šodolovci
A97: 94 | B97: Drenje | D97: 275 | E97: Mrkopalj | G97: 447 | H97: Šolta
A98: 95 | B98: Drniš | D98: 87 | E98: Muć | G98: 449 | H98: Špišić Bukovica
A99: 96 | B99: Drnje | D99: 276 | E99: Mursko Središće | G99: 450 | H99: Štefanje
A100: 97 | B100: Dubrava | D100: 617 | E100: Murter | G100: 628 | H100: Štitar
A101: 549 | B101: Dubravica | D101: 278 | E101: Našice | G101: 452 | H101: Štrigova
A102: 598 | B102: Dubrovačko Primorje | D102: 279 | E102: Nedelišće | G102: 631 | H102: Tar-Vabriga
A103: 98 | B103: Dubrovnik | D103: 612 | E103: Negoslavci | G103: 453 | H103: Tinjan
A104: 99 | B104: Duga Resa | D104: 280 | E104: Nerežišća | G104: 454 | H104: Tisno
A105: 100 | B105: Dugi Rat | D105: 281 | E105: Netretić | G105: 575 | H105: Tkon
A106: 101 | B106: Dugo Selo | D106: 295 | E106: Nijemci | G106: 456 | H106: Tompojevci
A107: 585 | B107: Dugopolje | D107: 282 | E107: Nin | G107: 457 | H107: Topusko
A108: 102 | B108: Dvor | D108: 283 | E108: Nova Bukovica | G108: 458 | H108: Tordinci
A109: 103 | B109: Đakovo | D109: 284 | E109: Nova Gradiška | G109: 557 | H109: Tounj
A110: 104 | B110: Đelekovec | D110: 285 | E110: Nova Kapela | G110: 459 | H110: Tovarnik
A111: 105 | B111: Đulovac | D111: 287 | E111: Nova Rača | G111: 626 | H111: Tribunj
A112: 106 | B112: Đurđenovac | D112: 288 | E112: Novalja | G112: 460 | H112: Trilj
A113: 107 | B113: Đurđevac | D113: 554 | E113: Novi Golubovec | G113: 461 | H113: Trnava
A114: 108 | B114: Đurmanec | D114: 289 | E114: Novi Marof | G114: 462 | H114: Trnovec Bartolovečki
A115: 110 | B115: Erdut | D115: 290 | E115: Novi Vinodolski | G115: 463 | H115: Trogir
A116: 111 | B116: Ernestinovo | D116: 537 | E116: Novigrad | G116: 601 | H116: Trpanj
A117: 113 | B117: Ervenik | D117: 291 | E117: Novigrad | G117: 464 | H117: Trpinja
A118: 114 | B118: Farkaševac | D118: 292 | E118: Novigrad Podravski | G118: 593 | H118: Tučepi
A119: 619 | B119: Fažana | D119: 561 | E119: Novo Virje | G119: 466 | H119: Tuhelj
A120: 115 | B120: Ferdinandovac | D120: 293 | E120: Novska | G120: 467 | H120: Udbina
A121: 116 | B121: Feričanci | D121: 294 | E121: Nuštar | G121: 468 | H121: Umag
A122: 629 | B122: Funtana | D122: 296 | E122: Obrovac | G122: 469 | H122: Unešić
A123: 117 | B123: Fužine | D123: 297 | E123: Ogulin | G123: 471 | H123: Valpovo
A124: 571 | B124: Galovac | D124: 588 | E124: Okrug | G124: 472 | H124: Varaždin
A125: 118 | B125: Garčin | D125: 299 | E125: Okučani | G125: 473 | H125: Varaždinske Toplice
A126: 119 | B126: Garešnica | D126: 300 | E126: Omiš | G126: 474 | H126: Vela Luka
A127: 120 | B127: Generalski Stol | D127: 301 | E127: Omišalj | G127: 475 | H127: Velika
A128: 121 | B128: Glina | D128: 302 | E128: Opatija | G128: 541 | H128: Velika Gorica
A129: 122 | B129: Gola | D129: 303 | E129: Oprisavci | G129: 476 | H129: Velika Kopanica
A130: 123 | B130: Goričan | D130: 304 | E130: Oprtalj | G130: 477 | H130: Velika Ludina
A131: 124 | B131: Gorjani | D131: 306 | E131: Opuzen | G131: 478 | H131: Velika Pisanica
A132: 618 | B132: Gornja Reka | D132: 307 | E132: Orahovica | G132: 565 | H132: Velika Trnovitica
A133: 125 | B133: Gornja Stubica | D133: 308 | E133: Orebić | G133: 558 | H133: Veliki Bukovec
A134: 569 | B134: Gornja Vrba | D134: 605 | E134: Orehovica | G134: 480 | H134: Veliki Grđevac
A135: 127 | B135: Gornji Bogićevci | D135: 309 | E135: Oriovac | G135: 481 | H135: Veliko Trgovišće
A136: 129 | B136: Gornji Kneginec | D136: 542 | E136: Orle | G136: 483 | H136: Veliko Trojstvo
A137: 604 | B137: Gornji Mihaljevec | D137: 311 | E137: Oroslavje | G137: 484 | H137: Vidovec
A138: 130 | B138: Gospić | D138: 312 | E138: Osijek | G138: 485 | H138: Viljevo
A139: 131 | B139: Gračac | D139: 313 | E139: Otočac | G139: 486 | H139: Vinica
A140: 132 | B140: Gračišće | D140: 314 | E140: Otok | G140: 487 | H140: Vinkovci
A141: 134 | B141: Gradac | D141: 535 | E141: Otok (Vinkovci) | G141: 488 | H141: Vinodolska Općina
A142: 135 | B142: Gradec | D142: 315 | E142: Ozalj | G142: 489 | H142: Vir
A143: 136 | B143: Gradina | D143: 316 | E143: Pag | G143: 490 | H143: Virje
A144: 137 | B144: Gradište | D144: 317 | E144: Pakoštane | G144: 491 | H144: Virovitica
A145: 138 | B145: Grožnjan | D145: 318 | E145: Pakrac | G145: 492 | H145: Vis
A146: 139 | B146: Grubišno Polje | D146: 320 | E146: Pašman | G146: 493 | H146: Visoko
A147: 140 | B147: Gundinci | D147: 321 | E147: Pazin | G147: 494 | H147: Viškovci
A148: 141 | B148: Gunja | D148: 323 | E148: Perušić | G148: 495 | H148: Viškovo
A149: 510 | B149: Gvozd | D149: 324 | E149: Peteranec | G149: 497 | H149: Višnjan
A150: 144 | B150: Hercegovac | D150: 325 | E150: Petlovac | G150: 498 | H150: Vižinada
A151: 145 | B151: Hlebine | D151: 326 | E151: Petrijanec | G151: 579 | H151: Vladislavci
A152: 146 | B152: Hrašćina | D152: 327 | E152: Petrijevci | G152: 499 | H152: Voćin
A153: 148 | B153: Hrvace | D153: 328 | E153: Petrinja | G153: 500 | H153: Vodice
A154: 149 | B154: Hrvatska Dubica | D154: 329 | E154: Petrovsko | G154: 502 | H154: Vodnjan
A155: 150 | B155: Hrvatska Kostajnica | D155: 330 | E155: Pićan | G155: 584 | H155: Vođinci
A156: 152 | B156: Hum Na Sutli | D156: 581 | E156: Pirovac | G156: 503 | H156: Vojnić
A157: 153 | B157: Hvar | D157: 331 | E157: Pisarovina | G157: 504 | H157: Vratišinec
A158: 154 | B158: Ilok | D158: 332 | E158: Pitomača | G158: 505 | H158: Vrbanja
A159: 155 | B159: Imotski | D159: 333 | E159: Plaški | G159: 506 | H159: Vrbje
A160: 156 | B160: Ivanec | D160: 334 | E160: Pleternica | G160: 507 | H160: Vrbnik
A161: 158 | B161: Ivanić-Grad | D161: 455 | E161: Plitvička Jezera | G161: 508 | H161: Vrbovec
A162: 159 | B162: Ivankovo | D162: 335 | E162: Ploče | G162: 509 | H162: Vrbovsko
A163: 161 | B163: Ivanska | D163: 337 | E163: Podbablje | G163: 511 | H163: Vrgorac
A164: 609 | B164: Jagodnjak | D164: 338 | E164: Podcrkavlje | G164: 512 | H164: Vrhovine
A165: 163 | B165: Jakovlje | D165: 339 | E165: Podgora | G165: 513 | H165: Vrlika
A166: 164 | B166: Jakšić | D166: 340 | E166: Podgorač | G166: 514 | H166: Vrpolje
A167: 165 | B167: Jalžabet | D167: 271 | E167: Podravska Moslavina | G167: 516 | H167: Vrsar
A168: 599 | B168: Janjina | D168: 616 | E168: Podravske Sesvete | G168: 625 | H168: Vrsi
A169: 166 | B169: Jarmina | D169: 341 | E169: Podstrana | G169: 517 | H169: Vuka
A170: 167 | B170: Jasenice | D170: 342 | E170: Podturen | G170: 518 | H170: Vukovar
A171: 168 | B171: Jasenovac | D171: 343 | E171: Pojezerje | G171: 519 | H171: Zabok
A172: 169 | B172: Jastrebarsko | D172: 544 | E172: Pokupsko | G172: 520 | H172: Zadar
A173: 170 | B173: Jelenje | D173: 344 | E173: Polača | G173: 595 | H173: Zadvarje
A174: 171 | B174: Jelsa | D174: 345 | E174: Poličnik | G174: 521 | H174: Zagorska Sela
A175: 552 | B175: Jesenje | D175: 346 | E175: Popovac | G175: 133 | H175: Zagreb
A176: 172 | B176: Josipdol | D176: 347 | E176: Popovača | G176: 522 | H176: Zagvozd
A177: 173 | B177: Kali | D177: 348 | E177: Poreč | G177: 543 | H177: Zaprešić
A178: 559 | B178: Kalinovac | D178: 349 | E178: Posedarje | G178: 523 | H178: Zažablje
A179: 560 | B179: Kalnik | D179: 350 | E179: Postira | G179: 524 | H179: Zdenci
A180: 623 | B180: Kamanje | D180: 573 | E180: Povljana | G180: 525 | H180: Zemunik Donji
A181: 175 | B181: Kanfanar | D181: 351 | E181: Požega | G181: 526 | H181: Zlatar
A182: 176 | B182: Kapela | D182: 352 | E182: Pregrada | G182: 527 | H182: Zlatar-Bistrica
A183: 177 | B183: Kaptol | D183: 354 | E183: Preko | G183: 528 | H183: Zmijavci
A184: 178 | B184: Karlobag | D184: 355 | E184: Prelog | G184: 566 | H184: Zrinski Topolovac
A185: 179 | B185: Karlovac | D185: 356 | E185: Preseka | G185: 530 | H185: Žakanje
A186: 596 | B186: Karojba | D186: 589 | E186: Prgomet | G186: 531 | H186: Žminj
A187: 180 | B187: Kastav | D187: 620 | E187: Pribislavec | G187: 540 | H187: Žumberak
A188: 181 | B188: Kaštela | D188: 590 | E188: Primorski Dolac | G188: 602 | H188: Župa Dubrovačka
A189: 597 | B189: Kaštelir - Labinci | D189: 357 | E189: Primošten | G189: 534 | H189: Županja
A190: 183 | B190: Kijevo | D190: 583 | E190: Privlaka
A191: 184 | B191: Kistanje | D191: 574 | E191: Privlaka
A193: Šifarnik razdjela | C193: <–––– Povratak na Referentnu stranicu | F193: <–––– Povratak na vrh lista
A194: Razdjel | B194: Opis oznake razdjela
A195: 010 | B195: HRVATSKI SABOR
A196: 013 | B196: URED PREDSJEDNIKA REPUBLIKE HRVATSKE PO PRESTANKU OBNAŠANJA
A197: 015 | B197: URED PREDSJEDNIKA REPUBLIKE HRVATSKE
A198: 017 | B198: USTAVNI SUD REPUBLIKE HRVATSKE
A199: 018 | B199: AGENCIJA ZA ZAŠTITU TRŽIŠNOG NATJECANJA
A200: 020 | B200: VLADA REPUBLIKE HRVATSKE
A201: 025 | B201: MINISTARSTVO FINANCIJA
... 660 more rows

Sheet Prom
A1: Na ovom radnom listu dat će se popis svih, i najmanjih promjena Excel datoteke iz verzije u verziju (bilo da su nastale zbog promjene zakonskih propisa, ispravka pogrešaka u Excel datoteci, dodatnim kontrolama ili poboljšanjima obrasca.
A2: Verzija | B2: Opis promjene u odnosu na prethodnu verziju
A3: 2.0.0. | B3: Svi obrasci proračuna i proračunskih korisnika objedinjeni su zbog potreba kontrola između obrazaca te lakšu kontrolu obveznosti (koja razina je obvezna podnositi koji obrazac).
A4: 2.0.0. | B4: Uvedena su polja "Datum od" i "Datum do" svakog pojedinog razdoblja kako bi se moglo posebno prepoznati obveznike koji nisu poslovali cijelo navedeno razdoblje (novootvoreni obveznici i obveznici koji zbog statusnih promjena gube pravnu osobnost).
A5: 2.0.0. | B5: Programskim kućama koje izrađuju aplikacije za punjenje obrazaca olakšan je postao jer se za sve obrasce i sve vrste posla unosi jedno jedinstveno zaglavlje, u svakom obrascu AOP oznake upisane su u koloni "C", dok svi iznosi (bez obzira na broj kolona) počinju u koloni "D", u 12. retku. Od ovoga se više neće odstupati osim ako ne bude nikakve druge mogućnosti da se unesu potrebne promjene.
A6: 2.0.1. | B6: Popravljeni su pogrešni naslovi nekih obrazaca. Dodana je kontrola da se u poštanski broj ne može unijeti nešto što nije broj između 10000 i 60000. Popravljena je kontrola upozorenja na S-PR-RAS obrascu koja je krivo izračunavala razradu konta 32 (kontrola pod rednim brojem 90)
A7: 2.0.2. | B7: Ispravljena kontrola u PR-RAS obrascu koja je AOP 010 zbrajala u AOP oznaku 003, umjesto da je oduzimala od sume svih ostalih AOP oznaka.
A8: 2.0.3. | B8: Ispravljena kontrola upozorenja na broj zaposlenih u PR-RAS obrascu preko 1000 kada to nije. Ispravljena kontrola koja je za polugodište javljala pogrešku da se za razinu 23 ne predaje obrazac Obveze. Svi obveznici (ne više samo oni kojima je razdjel ujedno i glava) razina 11 i 12 trebaju upisati razdjel, a ostali obveznici ne mogu.
A9: 2.0.3. | B9: Upisom razine 11 ili 12 u zaglavlju obrasca obveze automatski se pojavljuje oznaka da je obrazac mjesečni, a ne kvartalni. Promijenjeni su opisi obveznosti predaje prema razinama, grupirani na mjesečnu obvezu, kvartalnu, polugodišnju i godišnju. Na obrazac obveze, na dnu obrasca dodana crta za potpis zakonskog predstavnika (za dostavu obrasca nadležnim ministarstvima).
A10: 2.0.3. | B10: Proširene upute tekstom o upotrebi ove Excel datoteke za dostavu podataka nadležnim ministarstvima ili za neke druge potrebe.
A11: 2.0.4. | B11: Popravljena kontrola broj 36 u PR-RAS-u koja je provjeravala pogrešne AOP pozicije. Popravljena kontrola koja je javljala pogrešku ako je bio popunjen polugodišnji obrazac NT za razine 22 i 23.
A12: 2.0.5. | B12: Popravljena kontrola broj 9 u kojoj je za razinu 23 traženo da bude upisan i obrazac NT, a stvarno ne treba biti.
A13: 2.0.6. | B13: Popravljene kontrole broj 7 i 12 (obveznost predaje po razinama 13 i 42) te kontrola 63 - iznosi planiranog za razdoblje i planiranog za cijelu godinu u obrascu PR-RAS moraju biti identični kod godišnjeg obrasca, a za ostala razdoblja iznos planirano za razdoblje mora biti manji ili jednak planiranom za cijelu godinu.
A14: 2.0.7. | B14: Popravljena je kontrola broj 63 koja govori da planirano za razdoblje ne može biti veće od planiranoga za godinu. Iznimno, ovakvo stanje dopušteno je kod sumarnih AOP oznaka u kojima se neka vrijednost oduzima (primjerice AOP oznaka 222 ili 223) jer se računaju automatski.
A15: 2.0.8. | B15: Popravljene kontrole popunjenosti obrazaca za razine 13, 31, 41 i 42 na godišnjoj razini. Dodan je razdjel 095, Izbrisan je razdjel 065 (sa starim nazivom, ostao samo s novim), promijenjen opis kontrole P-VRIO obrasca (naglašavanje da se oznaka DA ili NE na referentnoj stranici mora upisati ručno).
A16: 2.0.9. | B16: Dodana mogućnost odabira svih razdoblje za 2010. godinu, dodani novi razdjeli za 2010.
A17: 2.1.0. | B17: Popravljen je prikaz datuma od i do na nekim obrascima koji se je poremetio ubacivanjem novih razdoblja za 2010.
A18: 2.1.0. | B18: Dorađena su poslovna pravila o popunjavanju obrasca, kolona planirano za razdoblje i planirano ukupno popunjavaju se samo na trećoj razini kontnog plana, a ne na četvrtoj kako je bilo ranije, te je obrazac dorađen u skladu s tim pravilom.
A19: 2.5.0. | B19: Omogućen je unos samo obrasca Obveze (mjesečne) za razdoblja siječanj i veljaču 2011. Ostali obrasci će se mijenjati i čekaju se izmjene. Zbog toga je Obveze dobio novu šifru vrste posla.
A20: 2.9.0. | B20: Omogućen unos obrazaca za I. kvartal 2011. godine - nepotpune kontrole.
A21: 2.9.1. | B21: Omogućen unos obrasca Obveze za travanj 2011. godine
A22: 3.0.0. | B22: Dodane nove logičke kontrole za sve vrste obrazaca. Omogućen odabir svih razdoblja u 2011. godini.
A23: 3.0.1. | B23: Dodan popis novih razdjela za 2012. godinu. Omogućen unos razdoblja i za 2012. godinu (nema više mogućnosti za unos razdoblja ranijih od 2011. godine).
A24: 3.0.2. | B24: Dodan razdjel 032 - Državni ured za Hrvate izvan Republike Hrvatske.
A25: 3.0.3. | B25: Dodan razdjel 029 - Državni ured za upravljanje državnom imovinom. Dodana razdoblja za 2013. godinu. Dorađena je kontrola 14 - dodana je iznimka za obveznike koji su počeli s radom tokom godine, a ne od 1.1. Kod tih obveznika kontrola vrijedi samo za kolonu tekuće godine. Popravljena je kontrola 241 u koloni tekuće godine. Dodano je objašnjenje za prikaz datuma izvještavanja i datuma rada obveznika u 2. pasusu Uputa. Dodana je verzija Excel datoteke i na referentnu stranicu radi lakše provjere verzije.
A26: 3.0.4. | B26: Dodan razdjel 033 - DRŽAVNI URED ZA OBNOVU I STAMBENO ZBRINJAVANJE. Dodane su nove kontrole koje provjeravaju jesu li korisnici popunili AOP oznake koje prema razini ne bi smjeli popuniti, tj. na kojima ne mogu imati upisan podatak različit od nule (kontrole 160 do 167). Ispravljena je formula za AOP 003 u PR-RAS obrascu, Porez i prirez na dohodak (AOP 004 do 009 - 010 - 011). Do sada je bilo pogrešno Porez i prirez na dohodak (AOP 004 do 009 - 010 + 011)
A27: 3.0.5. | B27: Ispraljena nova kontrola za razinu 31, umjesto 553 do 570, ova razina stvarno ne može imati popunjene AOP oznake 553 do 557.
A28: 3.0.6. | B28: Dodana nova razdoblja za 2014. godinu te je dorađen popis razdjela i glava (omogućen samo unos onih koji su postojali u 2013. ili su otvoreni početkom 2014. godine).
